{"text_format":"1","workbook":"xlsx","n_sheets":43,"sheets":["LA Sheets","NOTES","Cairngorms Statement","Summary Data","Legacy Cases","Clock Stops","Glasgow Note","Charts_data -Annual","SCOTLAND","Aberdeen City","Aberdeenshire","Angus","Argyll and Bute","Cairngorms National Park","Clackmannanshire","Dumfries and Galloway","Dundee","East Ayrshire","East Dunbartonshire","East Lothian","East Renfrewshire","City of Edinburgh","Falkirk","Fife","Glasgow City","Highland","Inverclyde","Loch Lomond","Midlothian","Moray","Na h-Eileanan Siar","North Ayrshire","North Lanarkshire","Orkney Islands","Perth and Kinross","Renfrewshire","Scottish Borders","Shetland Islands","South Ayrshire","South Lanarkshire","Stirling","West Dunbartonshire","West Lothian"],"not_rendered":{"charts":0,"images":0,"macros":1,"external_links":0,"defined_names":84,"comments":0,"pivot_tables":0},"unopened":[],"bounds":{"document_bytes":16777216,"sheet_cells":100000,"rows_first":2000,"rows_last":500,"rows_between":2000,"halvings":0,"cell_chars":16384,"cell_head_chars":4096},"cells_cut":0,"cells_raw":0,"read":"whole","date_system":"1900"}

{"sheet":"LA Sheets","index":0,"n_rows":46,"n_cols":2,"rows_kept":46,"cut":false,"hidden":false,"merged":[]}
[]
[null,"2018/19 Quarterly Planning Performance Statistics"]
[null,"Quarter 4"]
[null,"Published 23rd July 2019"]
[]
[null,"SCOTLAND"]
[null,"Aberdeen City"]
[null,"Aberdeenshire"]
[null,"Angus"]
[null,"Argyll and Bute"]
[null,"Cairngorms National Park"]
[null,"Clackmannanshire"]
[null,"Dumfries and Galloway"]
[null,"Dundee City"]
[null,"East Ayrshire"]
[null,"East Dunbartonshire"]
[null,"East Lothian"]
[null,"East Renfrewshire"]
[null,"City of Edinburgh"]
[null,"Falkirk"]
[null,"Fife"]
[null,"Glasgow City "]
[null,"Highland"]
[null,"Inverclyde"]
[null,"Loch Lomond and The Trossachs National Park"]
[null,"Midlothian"]
[null,"Moray"]
[null,"Na h-Eileanan Siar"]
[null,"North Ayrshire"]
[null,"North Lanarkshire"]
[null,"Orkney Islands"]
[null,"Perth and Kinross"]
[null,"Renfrewshire"]
[null,"Scottish Borders"]
[null,"Shetland Islands"]
[null,"South Ayrshire"]
[null,"South Lanarkshire"]
[null,"Stirling"]
[null,"West Dunbartonshire"]
[null,"West Lothian"]
[]
[null,"Notes"]
[null,"Cairngorms Statement"]
[null,"Summary Data"]
[null,"Legacy Cases"]
[null,"Clock Stops by Planning Authority"]

{"sheet":"NOTES","index":1,"n_rows":1,"n_cols":15,"rows_kept":1,"cut":false,"hidden":false,"merged":[]}
[null,null,null,null,null,null,null,null,null,null,null,null,null,null,"Return to Contents"]

{"sheet":"Cairngorms Statement","index":2,"n_rows":1,"n_cols":13,"rows_kept":1,"cut":false,"hidden":false,"merged":[]}
[" ",null,null,null,null,null,null,null,null,null,null,null,"Return to Contents"]

{"sheet":"Summary Data","index":3,"n_rows":33,"n_cols":19,"rows_kept":33,"cut":false,"hidden":false,"merged":[[32,0,32,2],[22,1,22,3],[22,22,22,24],[22,19,22,21],[22,16,22,18],[22,13,22,15],[22,7,22,9],[22,10,22,12],[22,4,22,6],[4,1,4,3],[13,1,13,2],[13,11,13,12],[4,4,4,5],[13,3,13,4],[4,14,4,15],[13,7,13,8],[13,13,13,14],[13,9,13,10],[4,10,4,11],[4,8,4,9],[4,6,4,7],[13,5,13,6],[4,12,4,13]]}
["Summary Comparisons1",null,null,null,null,null,null,null,null,null,null,null,null,null,null,"Return to Contents"]
[]
["Local Developments (excluding legacy cases)"]
[null,"Post 3 August 2009",null,null,null,null,null,null,null,null,null,null,"Return To Contents"]
[null,"Q4 - 2018/19",null,null,"Q3 - 2018/19",null,"Q2 - 2018/19",null,"Q1 - 2018/19",null,"Q4 - 2017/18",null,"Q3 - 2017/18"]
[null,"Applications","Overall Average (Weeks)","Percentage under 2 months","Overall Average (Weeks)","Percentage under 2 months","Overall Average (Weeks)","Percentage under 2 months","Overall Average (Weeks)","Percentage under 2 months","Overall Average (Weeks)","Percentage under 2 months","Overall Average (Weeks)","Percentage under 2 months"]
["All Local Developments2",5699,9.402401423808687,0.72310931742410944,8.8390391087385414,0.76815597075548336,8.8265739415893218,0.7570518653321201,8.9026318002186162,0.7545615067686875,9.3284007801072644,0.72559726962457338,9.0985417394341574,0.7169926650366748]
["Householder",2681,7.3716097405019463,0.85154792987691164,6.9574338276703589,0.8810775295663601,7.2431426840875686,0.86129618413082976,7.2122389911101932,0.85933429811866857,7.622048459282885,0.82715160244868569,7.3454233833611262,0.82976653696498059]
["Housing",1083,13.156179923492944,0.51892890120036939,12.251863619699376,0.59794696321642427,12.066139817629177,0.58127659574468082,11.975780975780973,0.56511056511056512,11.960875160875162,0.58828828828828827,11.704140615783887,0.54252683732452522]
["Business and Industry",319,9.9762651141961491,0.63322884012539182,9.2139016897081429,0.70161290322580649,8.9697305278700643,0.70025839793281652,8.5717866093805934,0.75939849624060152,9.4671389216843753,0.7024793388429752,10.183058147882267,0.6733668341708543]
[]
["Major Developments (excluding legacy cases)"]
[null,"Post 3 August 2009"]
[null,"Q4 - 2018/19",null,"Q3 - 2018/19",null,"Q2 - 2018/19",null,"Q1 - 2018/19",null,"Q4 - 2017/18",null,"Q3 - 2017/18"]
[null,"Applications","Overall Average (Weeks)","Applications","Overall Average (Weeks)","Applications","Overall Average (Weeks)","Applications","Overall Average (Weeks)","Applications","Overall Average (Weeks)","Applications","Overall Average (Weeks)"]
["All Major developments2",39,34.754578754578752,58,26.455665024630544,57,37.719298245614034,54,31.740740740740733,63,34.775510204081634,63,27.673469387755105]
["Housing",18,37.32539682539683,28,30.02551020408163,28,39.005102040816318,24,34.642857142857146,33,38.112554112554115,31,33.8110599078341]
["Business and Industry",4,48.857142857142861,8,13.375000000000002,2,12.571428571428571,8,24.357142857142858,7,21.510204081632651,6,33.976190476190474]
[]
[]
["Legal Agreements Comparison3"]
[null,"Post 3 August 2009"]
[null,"Q4 - 2018/19",null,null,"Q3 - 2018/19",null,null,"Q2 - 2018/19",null,null,"Q1 - 2018/19",null,null,"Q4 - 2017/18",null,null,"Q3 - 2017/18"]
[null,"Without Legal Agreements  (weeks)","With Legal Agreement  (weeks)","Overall Average (Weeks)","Without Legal Agreements  (weeks)","With Legal Agreement  (weeks)","Overall Average (Weeks)","Without Legal Agreements  (weeks)","With Legal Agreement  (weeks)","Overall Average (Weeks)","Without Legal Agreements  (weeks)","With Legal Agreement  (weeks)","Overall Average (Weeks)","Without Legal Agreements  (weeks)","With Legal Agreement  (weeks)","Overall Average (Weeks)","Without Legal Agreements  (weeks)","With Legal Agreement  (weeks)","Overall Average (Weeks)"]
["All Local4",8.9549369935843366,32.137662337662341,9.4024014238086888,8.4362127339415025,39.820976491862567,8.8390391087385414,8.5676202149313863,34.053304904051174,8.8265739416785838,8.6685578292003989,30.459882583170259,8.9026318002186162,9.0132453604171285,32.390596745027125,9.3284007801072644,8.9598193633660088,24.346246973365616,9.098541739434161]
["All Major",25.428571428571427,55.738095238095234,34.754578754578752,19.653571428571428,41.571428571428569,26.455665024630544,27.703832752613241,63.383928571428562,37.719298245614034,19.68571428571429,46.809523809523803,31.740740740740733,26.064285714285717,49.925465838509311,34.775510204081634,20.516483516483518,39.303571428571423,27.673469387755105]
[]
[]
[]
["1. Excludes Other Consents, Local developments with Environmental Impact Assessments, and applications with processing agreements."]
["2. Overall averages per quarter will be affected by the volumes of different case-types that happen to be decided on in that quarter."]
["3. Excludes legacy cases and applications with legal agreements that also had a processing agreement."]
["4. 2018/19 Q1/Q2 figures were revised on 23 July 2019."]

{"sheet":"Legacy Cases","index":4,"n_rows":19,"n_cols":9,"rows_kept":19,"cut":false,"hidden":false,"merged":[]}
["Legacy Cases (pre-3rd August 2009)",null,null,null,null,null,"2018/19 Quarter 4",null,"Return to Contents"]
[]
["The following tables show details of applications that were validated pre-3rd August 2009 and so were originally subject to a previous reporting system."]
[]
["Legacy cases by planning authority - applications with processing agreements",null,null,null," Legacy cases by development type - applications with processing agreements"]
["Local Authority","Number of Legacy Cases","% meeting agreed timescales",null,"Development Type","Number of Legacy Cases","% meeting agreed timescales"]
["None",0,"-",null,"None",0,"-"]
[]
["Total",null,null,null,"Total "]
[]
["Legacy cases by planning authority - applications without  processing agreements",null,null,null," Legacy cases by development type - applications without processing agreements"]
["Local Authority","Number of Legacy Cases","Average Decision Time (weeks)",null,"Development Type","Number of Legacy Cases","Average Decision Time (weeks)"]
["East Lothian1",1,185.3,null,"Housing - Local1",1,185.3]
[]
[]
["Total",1,185.3]
[null,null,null,null,"Total ",1,185.3]
[]
["1. These legacy cases had time removed from the decision time calculation where delays were caused by the applicant or external consultees, outwith the planning authority’s control."]

{"sheet":"Clock Stops","index":5,"n_rows":41,"n_cols":7,"rows_kept":41,"cut":false,"hidden":false,"merged":[]}
["Clock Stops by Planning Authority1,2",null,null,null,"2018/19 Quarter 4",null,"Return to Contents"]
[]
["Planning Authority","Total applications decided in 2018/19 Q4","Number of applications with clock stopped","Percentage of applications with clock stopped","Average length of time clock stopped (weeks)"]
["Aberdeen City",189,6,3.1746031746031744E-2,18.809523809523807]
["Aberdeenshire",417,6,1.4388489208633094E-2,2.5238095238095242]
["Angus",136,0,0,0]
["Argyll and Bute",287,30,0.10452961672473868,15.333333333333332]
["Cairngorms National Park",0,"-","-","-"]
["Clackmannanshire",62,6,9.6774193548387094E-2,6.8333333333333339]
["Dumfries and Galloway",321,13,4.0498442367601244E-2,33.35164835164835]
["Dundee City",127,7,5.5118110236220472E-2,16.326530612244898]
["East Ayrshire ",85,7,8.2352941176470587E-2,10.5]
["East Dunbartonshire",145,30,0.20689655172413793,4.1238095238095243]
["East Lothian ",246,17,6.910569105691057E-2,10.46218487394958]
["East Renfrewshire",136,1,7.3529411764705881E-3,55.142857142857146]
["City of Edinburgh",777,4,5.1480051480051478E-3,121.75]
["Falkirk",147,2,1.3605442176870748E-2,29.928571428571427]
["Fife",414,1,2.4154589371980675E-3,2.7142857142857144]
["Glasgow City",542,96,0.17712177121771217,11.736607142857142]
["Highland",688,38,5.5232558139534885E-2,16.943609022556391]
["Inverclyde",74,11,0.14864864864864866,11.090909090909092," "]
["Loch Lomond and The Trossachs National Park",80,20,0.25,12.5]
["Midlothian",146,18,0.12328767123287671,12.214285714285714]
["Moray",128,40,0.3125,7.9928571428571429]
["Na h-Eileanan Siar",90,0,0,0]
["North Ayrshire",138,10,7.2463768115942032E-2,5.9714285714285706]
["North Lanarkshire",155,4,2.5806451612903226E-2,90.071428571428569]
["Orkney Islands",98,30,0.30612244897959184,8.0047619047619047]
["Perth and Kinross",357,14,3.9215686274509803E-2,16.540816326530614]
["Renfrewshire",161,31,0.19254658385093168,7.6313364055299546]
["Scottish Borders",212,3,1.4150943396226415E-2,27.190476190476193]
["Shetland Islands",64,4,6.25E-2,1.8214285714285714]
["South Ayrshire",162,2,1.2345679012345678E-2,3.7857142857142856]
["South Lanarkshire",367,5,1.3623978201634877E-2,10.771428571428572]
["Stirling",150,0,0,0]
["West Dunbartonshire",38,14,0.36842105263157893,13.520408163265305]
["West Lothian2",251,20,7.9681274900398405E-2,39.99285714285714," "]
["SCOTLAND",7390,490,6.6305818673883632E-2,14.47870182555781," "]
["1. Processing Agreements are not included in this analysis.",null," "]
["2. Legacy cases are not included in this analysis",null,null,null," "]
[null," "]

{"sheet":"Glasgow Note","index":6,"n_rows":0,"n_cols":0,"rows_kept":0,"cut":false,"hidden":true,"merged":[]}

{"sheet":"Charts_data -Annual","index":7,"n_rows":547,"n_cols":10,"rows_kept":547,"cut":false,"hidden":true,"merged":[[79,0,82,0],[75,0,78,0],[87,0,90,0],[2,0,5,0],[10,0,13,0],[6,0,9,0],[14,0,17,0],[27,0,30,0],[59,0,62,0],[63,0,66,0],[31,0,34,0],[35,0,38,0],[51,0,54,0],[55,0,58,0],[39,0,42,0],[18,0,21,0],[126,0,126,1],[135,0,138,0],[127,0,130,0],[131,0,134,0],[100,0,100,1],[109,0,112,0],[101,0,104,0],[105,0,108,0],[83,0,86,0],[247,0,247,1],[248,0,251,0],[252,0,255,0],[256,0,259,0],[264,0,267,0],[211,0,214,0],[221,0,221,1],[222,0,225,0],[226,0,229,0],[230,0,233,0],[215,0,218,0],[238,0,241,0],[284,0,287,0],[304,0,307,0],[295,0,295,1],[296,0,299,0],[300,0,303,0],[288,0,291,0],[312,0,315,0],[260,0,263,0],[271,0,271,1],[272,0,275,0],[276,0,279,0],[280,0,283,0],[335,0,338,0],[345,0,345,1],[346,0,349,0],[350,0,353,0],[354,0,357,0],[308,0,311,0],[322,0,322,1],[323,0,326,0],[327,0,330,0],[331,0,334,0],[385,0,388,0],[396,0,396,1],[397,0,400,0],[401,0,404,0],[405,0,408,0],[358,0,361,0],[372,0,372,1],[373,0,376,0],[377,0,380,0],[381,0,384,0],[463,0,466,0],[450,0,450,1],[451,0,454,0],[455,0,458,0],[459,0,462,0],[436,0,439,0],[409,0,412,0],[423,0,423,1],[424,0,427,0],[428,0,431,0],[432,0,435,0],[168,0,171,0],[192,0,195,0],[143,0,146,0],[117,0,120,0],[67,0,70,0],[91,0,94,0],[43,0,46,0],[234,0,237,0],[188,0,191,0],[198,0,198,1],[199,0,202,0],[203,0,206,0],[207,0,210,0],[164,0,167,0],[175,0,175,1],[176,0,179,0],[180,0,183,0],[184,0,187,0],[139,0,142,0],[151,0,151,1],[152,0,155,0],[156,0,159,0],[160,0,163,0],[113,0,116,0],[467,0,470,0],[490,0,493,0],[517,0,520,0],[543,0,546,0],[362,0,365,0],[389,0,392,0],[413,0,416,0],[440,0,443,0],[339,0,342,0],[526,0,526,1],[527,0,530,0],[535,0,538,0],[531,0,534,0],[539,0,542,0],[500,0,500,1],[501,0,504,0],[505,0,508,0],[509,0,512,0],[513,0,516,0],[473,0,473,1],[474,0,477,0],[478,0,481,0],[482,0,485,0],[486,0,489,0]]}
["Chart 5: Local Development Planning Applications -  Number of decisions"]
[null,null,"Number of decisions"]
["2012/13","Q1",{"$f":"#REF!","v":{"$error":"#REF!"}}]
[null,"Q2",{"$f":"#REF!","v":{"$error":"#REF!"}}]
[null,"Q3",{"$f":"#REF!","v":{"$error":"#REF!"}}]
[null,"Q4",{"$f":"#REF!","v":{"$error":"#REF!"}}]
["2013/14","Q1",{"$f":"#REF!","v":{"$error":"#REF!"}}]
[null,"Q2",{"$f":"#REF!","v":{"$error":"#REF!"}}]
[null,"Q3",{"$f":"#REF!","v":{"$error":"#REF!"}}]
[null,"Q4",{"$f":"#REF!","v":{"$error":"#REF!"}}]
["2014/15","Q1",{"$f":"#REF!","v":{"$error":"#REF!"}}]
[null,"Q2",{"$f":"#REF!","v":{"$error":"#REF!"}}]
[null,"Q3",{"$f":"#REF!","v":{"$error":"#REF!"}}]
[null,"Q4",{"$f":"#REF!","v":{"$error":"#REF!"}}]
["2015/16","Q1",{"$f":"#REF!","v":{"$error":"#REF!"}}]
[null,"Q2",{"$f":"#REF!","v":{"$error":"#REF!"}}]
[null,"Q3",{"$f":"#REF!","v":{"$error":"#REF!"}}]
[null,"Q4",{"$f":"#REF!","v":{"$error":"#REF!"}}]
["2016/17","Q1",{"$f":"#REF!","v":{"$error":"#REF!"}}]
[null,"Q2",{"$f":"#REF!","v":{"$error":"#REF!"}}]
[null,"Q3",{"$f":"#REF!","v":{"$error":"#REF!"}}]
[null,"Q4",{"$f":"#REF!","v":{"$error":"#REF!"}}]
[]
[]
[]
["Chart 6: Local Development Planning Applications -  Average decision time (weeks)"]
[null,null,"Average decision time"]
["2012/13","Q1",{"$f":"#REF!","v":{"$error":"#REF!"}}]
[null,"Q2",{"$f":"#REF!","v":{"$error":"#REF!"}}]
[null,"Q3",{"$f":"#REF!","v":{"$error":"#REF!"}}]
[null,"Q4",{"$f":"#REF!","v":{"$error":"#REF!"}}]
["2013/14","Q1",{"$f":"#REF!","v":{"$error":"#REF!"}}]
[null,"Q2",{"$f":"#REF!","v":{"$error":"#REF!"}}]
[null,"Q3",{"$f":"#REF!","v":{"$error":"#REF!"}}]
[null,"Q4",{"$f":"#REF!","v":{"$error":"#REF!"}}]
["2014/15","Q1",{"$f":"#REF!","v":{"$error":"#REF!"}}]
[null,"Q2",{"$f":"#REF!","v":{"$error":"#REF!"}}]
[null,"Q3",{"$f":"#REF!","v":{"$error":"#REF!"}}]
[null,"Q4",{"$f":"#REF!","v":{"$error":"#REF!"}}]
["2015/16","Q1",{"$f":"#REF!","v":{"$error":"#REF!"}}]
[null,"Q2",{"$f":"#REF!","v":{"$error":"#REF!"}}]
[null,"Q3",{"$f":"#REF!","v":{"$error":"#REF!"}}]
[null,"Q4",{"$f":"#REF!","v":{"$error":"#REF!"}}]
["2016/17","Q1",{"$f":"#REF!","v":{"$error":"#REF!"}}]
[null,"Q2",{"$f":"#REF!","v":{"$error":"#REF!"}}]
[null,"Q3",{"$f":"#REF!","v":{"$error":"#REF!"}}]
[null,"Q4",{"$f":"#REF!","v":{"$error":"#REF!"}}]
[]
[]
["Chart 7: Major Development Planning Applications -  Number of decisions"]
[null,null,"Number of decisions"]
["2012/13","Q1",{"$f":"#REF!","v":{"$error":"#REF!"}}]
[null,"Q2",{"$f":"#REF!","v":{"$error":"#REF!"}}]
[null,"Q3",{"$f":"#REF!","v":{"$error":"#REF!"}}]
[null,"Q4",{"$f":"#REF!","v":{"$error":"#REF!"}}]
["2013/14","Q1",{"$f":"#REF!","v":{"$error":"#REF!"}}]
[null,"Q2",{"$f":"#REF!","v":{"$error":"#REF!"}}]
[null,"Q3",{"$f":"#REF!","v":{"$error":"#REF!"}}]
[null,"Q4",{"$f":"#REF!","v":{"$error":"#REF!"}}]
["2014/15","Q1",{"$f":"#REF!","v":{"$error":"#REF!"}}]
[null,"Q2",{"$f":"#REF!","v":{"$error":"#REF!"}}]
[null,"Q3",{"$f":"#REF!","v":{"$error":"#REF!"}}]
[null,"Q4",{"$f":"#REF!","v":{"$error":"#REF!"}}]
["2015/16","Q1",{"$f":"#REF!","v":{"$error":"#REF!"}}]
[null,"Q2",{"$f":"#REF!","v":{"$error":"#REF!"}}]
[null,"Q3",{"$f":"#REF!","v":{"$error":"#REF!"}}]
[null,"Q4",{"$f":"#REF!","v":{"$error":"#REF!"}}]
["2016/17","Q1",{"$f":"#REF!","v":{"$error":"#REF!"}}]
[null,"Q2",{"$f":"#REF!","v":{"$error":"#REF!"}}]
[null,"Q3",{"$f":"#REF!","v":{"$error":"#REF!"}}]
[null,"Q4",{"$f":"#REF!","v":{"$error":"#REF!"}}]
[]
[]
["Chart 8: Major Development Planning Applications -  Average decision time (weeks"]
[null,null,"Average decision time"]
["2012/13","Q1",{"$f":"#REF!","v":{"$error":"#REF!"}}]
[null,"Q2",{"$f":"#REF!","v":{"$error":"#REF!"}}]
[null,"Q3",{"$f":"#REF!","v":{"$error":"#REF!"}}]
[null,"Q4",{"$f":"#REF!","v":{"$error":"#REF!"}}]
["2013/14","Q1",{"$f":"#REF!","v":{"$error":"#REF!"}}]
[null,"Q2",{"$f":"#REF!","v":{"$error":"#REF!"}}]
[null,"Q3",{"$f":"#REF!","v":{"$error":"#REF!"}}]
[null,"Q4",{"$f":"#REF!","v":{"$error":"#REF!"}}]
["2014/15","Q1",{"$f":"#REF!","v":{"$error":"#REF!"}}]
[null,"Q2",{"$f":"#REF!","v":{"$error":"#REF!"}}]
[null,"Q3",{"$f":"#REF!","v":{"$error":"#REF!"}}]
[null,"Q4",{"$f":"#REF!","v":{"$error":"#REF!"}}]
["2015/16","Q1",{"$f":"#REF!","v":{"$error":"#REF!"}}]
[null,"Q2",{"$f":"#REF!","v":{"$error":"#REF!"}}]
[null,"Q3",{"$f":"#REF!","v":{"$error":"#REF!"}}]
[null,"Q4",{"$f":"#REF!","v":{"$error":"#REF!"}}]
["2016/17","Q1",{"$f":"#REF!","v":{"$error":"#REF!"}}]
[null,"Q2",{"$f":"#REF!","v":{"$error":"#REF!"}}]
[null,"Q3",{"$f":"#REF!","v":{"$error":"#REF!"}}]
[null,"Q4",{"$f":"#REF!","v":{"$error":"#REF!"}}]
[]
[]
[]
[]
["Chart 21: All Local Development Planning Applications -  Number of decisions "]
["Year/ Quarter",null,"All Applications","Post-August 2009"]
["2012/13","Q1",{"$f":"#REF!","v":{"$error":"#REF!"}},{"$f":"#REF!","v":{"$error":"#REF!"}}]
[null,"Q2",{"$f":"#REF!","v":{"$error":"#REF!"}},{"$f":"#REF!","v":{"$error":"#REF!"}}]
[null,"Q3",{"$f":"#REF!","v":{"$error":"#REF!"}},{"$f":"#REF!","v":{"$error":"#REF!"}}]
[null,"Q4",{"$f":"#REF!","v":{"$error":"#REF!"}},{"$f":"#REF!","v":{"$error":"#REF!"}}]
["2013/14","Q1",{"$f":"#REF!","v":{"$error":"#REF!"}},{"$f":"#REF!","v":{"$error":"#REF!"}}]
[null,"Q2",{"$f":"#REF!","v":{"$error":"#REF!"}},{"$f":"#REF!","v":{"$error":"#REF!"}}]
[null,"Q3",{"$f":"#REF!","v":{"$error":"#REF!"}},{"$f":"#REF!","v":{"$error":"#REF!"}}]
[null,"Q4",{"$f":"#REF!","v":{"$error":"#REF!"}},{"$f":"#REF!","v":{"$error":"#REF!"}}]
["2014/15","Q1",{"$f":"#REF!","v":{"$error":"#REF!"}},{"$f":"#REF!","v":{"$error":"#REF!"}}]
[null,"Q2",{"$f":"#REF!","v":{"$error":"#REF!"}},{"$f":"#REF!","v":{"$error":"#REF!"}}]
[null,"Q3",{"$f":"#REF!","v":{"$error":"#REF!"}},{"$f":"#REF!","v":{"$error":"#REF!"}}]
[null,"Q4",{"$f":"#REF!","v":{"$error":"#REF!"}},{"$f":"#REF!","v":{"$error":"#REF!"}}]
["2015/16","Q1",{"$f":"#REF!","v":{"$error":"#REF!"}},{"$f":"#REF!","v":{"$error":"#REF!"}}]
[null,"Q2",{"$f":"#REF!","v":{"$error":"#REF!"}},{"$f":"#REF!","v":{"$error":"#REF!"}}]
[null,"Q3",{"$f":"#REF!","v":{"$error":"#REF!"}},{"$f":"#REF!","v":{"$error":"#REF!"}}]
[null,"Q4",{"$f":"#REF!","v":{"$error":"#REF!"}},{"$f":"#REF!","v":{"$error":"#REF!"}}]
["2016/17","Q1",{"$f":"#REF!","v":{"$error":"#REF!"}},{"$f":"#REF!","v":{"$error":"#REF!"}}]
[null,"Q2",{"$f":"#REF!","v":{"$error":"#REF!"}},{"$f":"#REF!","v":{"$error":"#REF!"}}]
[null,"Q3",{"$f":"#REF!","v":{"$error":"#REF!"}},{"$f":"#REF!","v":{"$error":"#REF!"}}]
[null,"Q4",{"$f":"#REF!","v":{"$error":"#REF!"}},{"$f":"#REF!","v":{"$error":"#REF!"}}]
[]
[]
[]
[]
["Chart 22: All Local Development Planning Applications -  Average decision time (weeks)"]
["Year/ Quarter",null,"All Applications","Post-August 2009"]
["2012/13","Q1",{"$f":"#REF!","v":{"$error":"#REF!"}},{"$f":"#REF!","v":{"$error":"#REF!"}}]
[null,"Q2",{"$f":"#REF!","v":{"$error":"#REF!"}},{"$f":"#REF!","v":{"$error":"#REF!"}}]
[null,"Q3",{"$f":"#REF!","v":{"$error":"#REF!"}},{"$f":"#REF!","v":{"$error":"#REF!"}}]
[null,"Q4",{"$f":"#REF!","v":{"$error":"#REF!"}},{"$f":"#REF!","v":{"$error":"#REF!"}}]
["2013/14","Q1",{"$f":"#REF!","v":{"$error":"#REF!"}},{"$f":"#REF!","v":{"$error":"#REF!"}}]
[null,"Q2",{"$f":"#REF!","v":{"$error":"#REF!"}},{"$f":"#REF!","v":{"$error":"#REF!"}}]
[null,"Q3",{"$f":"#REF!","v":{"$error":"#REF!"}},{"$f":"#REF!","v":{"$error":"#REF!"}}]
[null,"Q4",{"$f":"#REF!","v":{"$error":"#REF!"}},{"$f":"#REF!","v":{"$error":"#REF!"}}]
["2014/15","Q1",{"$f":"#REF!","v":{"$error":"#REF!"}},{"$f":"#REF!","v":{"$error":"#REF!"}}]
[null,"Q2",{"$f":"#REF!","v":{"$error":"#REF!"}},{"$f":"#REF!","v":{"$error":"#REF!"}}]
[null,"Q3",{"$f":"#REF!","v":{"$error":"#REF!"}},{"$f":"#REF!","v":{"$error":"#REF!"}}]
[null,"Q4",{"$f":"#REF!","v":{"$error":"#REF!"}},{"$f":"#REF!","v":{"$error":"#REF!"}}]
["2015/16","Q1",{"$f":"#REF!","v":{"$error":"#REF!"}},{"$f":"#REF!","v":{"$error":"#REF!"}}]
[null,"Q2",{"$f":"#REF!","v":{"$error":"#REF!"}},{"$f":"#REF!","v":{"$error":"#REF!"}}]
[null,"Q3",{"$f":"#REF!","v":{"$error":"#REF!"}},{"$f":"#REF!","v":{"$error":"#REF!"}}]
[null,"Q4",{"$f":"#REF!","v":{"$error":"#REF!"}},{"$f":"#REF!","v":{"$error":"#REF!"}}]
["2016/17","Q1",{"$f":"#REF!","v":{"$error":"#REF!"}},{"$f":"#REF!","v":{"$error":"#REF!"}}]
[null,"Q2",{"$f":"#REF!","v":{"$error":"#REF!"}},{"$f":"#REF!","v":{"$error":"#REF!"}}]
[null,"Q3",{"$f":"#REF!","v":{"$error":"#REF!"}},{"$f":"#REF!","v":{"$error":"#REF!"}}]
[null,"Q4",{"$f":"#REF!","v":{"$error":"#REF!"}},{"$f":"#REF!","v":{"$error":"#REF!"}}]
[]
[]
[]
["Chart 23: Householder developments -  Number of decisions"]
["Year/ Quarter",null,"All Applications","Post-August 2009"]
["2012/13","Q1",{"$f":"#REF!","v":{"$error":"#REF!"}},{"$f":"#REF!","v":{"$error":"#REF!"}}]
[null,"Q2",{"$f":"#REF!","v":{"$error":"#REF!"}},{"$f":"#REF!","v":{"$error":"#REF!"}}]
[null,"Q3",{"$f":"#REF!","v":{"$error":"#REF!"}},{"$f":"#REF!","v":{"$error":"#REF!"}}]
[null,"Q4",{"$f":"#REF!","v":{"$error":"#REF!"}},{"$f":"#REF!","v":{"$error":"#REF!"}}]
["2013/14","Q1",{"$f":"#REF!","v":{"$error":"#REF!"}},{"$f":"#REF!","v":{"$error":"#REF!"}}]
[null,"Q2",{"$f":"#REF!","v":{"$error":"#REF!"}},{"$f":"#REF!","v":{"$error":"#REF!"}}]
[null,"Q3",{"$f":"#REF!","v":{"$error":"#REF!"}},{"$f":"#REF!","v":{"$error":"#REF!"}}]
[null,"Q4",{"$f":"#REF!","v":{"$error":"#REF!"}},{"$f":"#REF!","v":{"$error":"#REF!"}}]
["2014/15","Q1",{"$f":"#REF!","v":{"$error":"#REF!"}},{"$f":"#REF!","v":{"$error":"#REF!"}}]
[null,"Q2",{"$f":"#REF!","v":{"$error":"#REF!"}},{"$f":"#REF!","v":{"$error":"#REF!"}}]
[null,"Q3",{"$f":"#REF!","v":{"$error":"#REF!"}},{"$f":"#REF!","v":{"$error":"#REF!"}}]
[null,"Q4",{"$f":"#REF!","v":{"$error":"#REF!"}},{"$f":"#REF!","v":{"$error":"#REF!"}}]
["2015/16","Q1",{"$f":"#REF!","v":{"$error":"#REF!"}},{"$f":"#REF!","v":{"$error":"#REF!"}}]
[null,"Q2",{"$f":"#REF!","v":{"$error":"#REF!"}},{"$f":"#REF!","v":{"$error":"#REF!"}}]
[null,"Q3",{"$f":"#REF!","v":{"$error":"#REF!"}},{"$f":"#REF!","v":{"$error":"#REF!"}}]
[null,"Q4",{"$f":"#REF!","v":{"$error":"#REF!"}},{"$f":"#REF!","v":{"$error":"#REF!"}}]
["2016/17","Q1",{"$f":"#REF!","v":{"$error":"#REF!"}},{"$f":"#REF!","v":{"$error":"#REF!"}}]
[null,"Q2",{"$f":"#REF!","v":{"$error":"#REF!"}},{"$f":"#REF!","v":{"$error":"#REF!"}}]
[null,"Q3",{"$f":"#REF!","v":{"$error":"#REF!"}},{"$f":"#REF!","v":{"$error":"#REF!"}}]
[null,"Q4",{"$f":"#REF!","v":{"$error":"#REF!"}},{"$f":"#REF!","v":{"$error":"#REF!"}}]
[]
[]
["Chart 24: Householder developments -  Average decision time (weeks)"]
["Year/ Quarter",null,"All Applications","Post-August 2009"]
["2012/13","Q1",{"$f":"#REF!","v":{"$error":"#REF!"}},{"$f":"#REF!","v":{"$error":"#REF!"}}]
[null,"Q2",{"$f":"#REF!","v":{"$error":"#REF!"}},{"$f":"#REF!","v":{"$error":"#REF!"}}]
[null,"Q3",{"$f":"#REF!","v":{"$error":"#REF!"}},{"$f":"#REF!","v":{"$error":"#REF!"}}]
[null,"Q4",{"$f":"#REF!","v":{"$error":"#REF!"}},{"$f":"#REF!","v":{"$error":"#REF!"}}]
["2013/14","Q1",{"$f":"#REF!","v":{"$error":"#REF!"}},{"$f":"#REF!","v":{"$error":"#REF!"}}]
[null,"Q2",{"$f":"#REF!","v":{"$error":"#REF!"}},{"$f":"#REF!","v":{"$error":"#REF!"}}]
[null,"Q3",{"$f":"#REF!","v":{"$error":"#REF!"}},{"$f":"#REF!","v":{"$error":"#REF!"}}]
[null,"Q4",{"$f":"#REF!","v":{"$error":"#REF!"}},{"$f":"#REF!","v":{"$error":"#REF!"}}]
["2014/15","Q1",{"$f":"#REF!","v":{"$error":"#REF!"}},{"$f":"#REF!","v":{"$error":"#REF!"}}]
[null,"Q2",{"$f":"#REF!","v":{"$error":"#REF!"}},{"$f":"#REF!","v":{"$error":"#REF!"}}]
[null,"Q3",{"$f":"#REF!","v":{"$error":"#REF!"}},{"$f":"#REF!","v":{"$error":"#REF!"}}]
[null,"Q4",{"$f":"#REF!","v":{"$error":"#REF!"}},{"$f":"#REF!","v":{"$error":"#REF!"}}]
["2015/16","Q1",{"$f":"#REF!","v":{"$error":"#REF!"}},{"$f":"#REF!","v":{"$error":"#REF!"}}]
[null,"Q2",{"$f":"#REF!","v":{"$error":"#REF!"}},{"$f":"#REF!","v":{"$error":"#REF!"}}]
[null,"Q3",{"$f":"#REF!","v":{"$error":"#REF!"}},{"$f":"#REF!","v":{"$error":"#REF!"}}]
[null,"Q4",{"$f":"#REF!","v":{"$error":"#REF!"}},{"$f":"#REF!","v":{"$error":"#REF!"}}]
["2016/17","Q1",{"$f":"#REF!","v":{"$error":"#REF!"}},{"$f":"#REF!","v":{"$error":"#REF!"}}]
[null,"Q2",{"$f":"#REF!","v":{"$error":"#REF!"}},{"$f":"#REF!","v":{"$error":"#REF!"}}]
[null,"Q3",{"$f":"#REF!","v":{"$error":"#REF!"}},{"$f":"#REF!","v":{"$error":"#REF!"}}]
[null,"Q4",{"$f":"#REF!","v":{"$error":"#REF!"}},{"$f":"#REF!","v":{"$error":"#REF!"}}]
[]
["Chart 25: Local Housing developments -  Number of decisions"]
["Year/ Quarter",null,"All Applications","Post-August 2009"]
["2012/13","Q1",{"$f":"#REF!","v":{"$error":"#REF!"}},{"$f":"#REF!","v":{"$error":"#REF!"}}]
[null,"Q2",{"$f":"#REF!","v":{"$error":"#REF!"}},{"$f":"#REF!","v":{"$error":"#REF!"}}]
[null,"Q3",{"$f":"#REF!","v":{"$error":"#REF!"}},{"$f":"#REF!","v":{"$error":"#REF!"}}]
[null,"Q4",{"$f":"#REF!","v":{"$error":"#REF!"}},{"$f":"#REF!","v":{"$error":"#REF!"}}]
["2013/14","Q1",{"$f":"#REF!","v":{"$error":"#REF!"}},{"$f":"#REF!","v":{"$error":"#REF!"}}]
[null,"Q2",{"$f":"#REF!","v":{"$error":"#REF!"}},{"$f":"#REF!","v":{"$error":"#REF!"}}]
[null,"Q3",{"$f":"#REF!","v":{"$error":"#REF!"}},{"$f":"#REF!","v":{"$error":"#REF!"}}]
[null,"Q4",{"$f":"#REF!","v":{"$error":"#REF!"}},{"$f":"#REF!","v":{"$error":"#REF!"}}]
["2014/15","Q1",{"$f":"#REF!","v":{"$error":"#REF!"}},{"$f":"#REF!","v":{"$error":"#REF!"}}]
[null,"Q2",{"$f":"#REF!","v":{"$error":"#REF!"}},{"$f":"#REF!","v":{"$error":"#REF!"}}]
[null,"Q3",{"$f":"#REF!","v":{"$error":"#REF!"}},{"$f":"#REF!","v":{"$error":"#REF!"}}]
[null,"Q4",{"$f":"#REF!","v":{"$error":"#REF!"}},{"$f":"#REF!","v":{"$error":"#REF!"}}]
["2015/16","Q1",{"$f":"#REF!","v":{"$error":"#REF!"}},{"$f":"#REF!","v":{"$error":"#REF!"}}]
[null,"Q2",{"$f":"#REF!","v":{"$error":"#REF!"}},{"$f":"#REF!","v":{"$error":"#REF!"}}]
[null,"Q3",{"$f":"#REF!","v":{"$error":"#REF!"}},{"$f":"#REF!","v":{"$error":"#REF!"}}]
[null,"Q4",{"$f":"#REF!","v":{"$error":"#REF!"}},{"$f":"#REF!","v":{"$error":"#REF!"}}]
["2016/17","Q1",{"$f":"#REF!","v":{"$error":"#REF!"}},{"$f":"#REF!","v":{"$error":"#REF!"}}]
[null,"Q2",{"$f":"#REF!","v":{"$error":"#REF!"}},{"$f":"#REF!","v":{"$error":"#REF!"}}]
[null,"Q3",{"$f":"#REF!","v":{"$error":"#REF!"}},{"$f":"#REF!","v":{"$error":"#REF!"}}]
[null,"Q4",{"$f":"#REF!","v":{"$error":"#REF!"}},{"$f":"#REF!","v":{"$error":"#REF!"}}]
[]
["Chart 26: Local Housing developments -  Average decision time (weeks)"]
["Year/ Quarter",null,"All Applications","Post-August 2009"]
["2012/13","Q1",24.870448179271705,18.275097917955058]
[null,"Q2",20.058038896242742,16.879064935064935]
[null,"Q3",18.436985912829723,16.001341381623071]
[null,"Q4",20.445127030403995,17.796265034817466]
["2013/14","Q1",17.75521845851743,15.326477918452801]
[null,"Q2",18.53038202673239,15.592549923195083]
[null,"Q3",16.666171666171667,14.779974044124986]
[null,"Q4",16.910375939849622,15.031329210179457]
["2014/15","Q1",15.648944805194805,15.312271062271064]
[null,"Q2",15.408070500927645,14.283660130718955]
[null,"Q3",14.068930421909695,13.922962825623433]
[null,"Q4",16.158907312925173,14.452273702273706]
["2015/16","Q1",13.6,13.5]
[null,"Q2",14.357789945246392,13.106291324383893]
[null,"Q3",13.807703762533505,13.623802873104548]
[null,"Q4",16.2,14.6]
["2016/17","Q1",12.7,12.4]
[null,"Q2",13,12.6]
[null,"Q3",12.8,12.8]
[null,"Q4",12.809604043807919,12.809604043807919]
[]
[]
[]
[]
["Chart 27: Local Business and Industry developments -  Number of decisions"]
["Year/ Quarter",null,"All Applications","Post-August 2009"]
["2012/13","Q1",{"$f":"#REF!","v":{"$error":"#REF!"}},{"$f":"#REF!","v":{"$error":"#REF!"}}]
[null,"Q2",{"$f":"#REF!","v":{"$error":"#REF!"}},{"$f":"#REF!","v":{"$error":"#REF!"}}]
[null,"Q3",{"$f":"#REF!","v":{"$error":"#REF!"}},{"$f":"#REF!","v":{"$error":"#REF!"}}]
[null,"Q4",{"$f":"#REF!","v":{"$error":"#REF!"}},{"$f":"#REF!","v":{"$error":"#REF!"}}]
["2013/14","Q1",{"$f":"#REF!","v":{"$error":"#REF!"}},{"$f":"#REF!","v":{"$error":"#REF!"}}]
[null,"Q2",{"$f":"#REF!","v":{"$error":"#REF!"}},{"$f":"#REF!","v":{"$error":"#REF!"}}]
[null,"Q3",{"$f":"#REF!","v":{"$error":"#REF!"}},{"$f":"#REF!","v":{"$error":"#REF!"}}]
[null,"Q4",{"$f":"#REF!","v":{"$error":"#REF!"}},{"$f":"#REF!","v":{"$error":"#REF!"}}]
["2014/15","Q1",{"$f":"#REF!","v":{"$error":"#REF!"}},{"$f":"#REF!","v":{"$error":"#REF!"}}]
[null,"Q2",{"$f":"#REF!","v":{"$error":"#REF!"}},{"$f":"#REF!","v":{"$error":"#REF!"}}]
[null,"Q3",{"$f":"#REF!","v":{"$error":"#REF!"}},{"$f":"#REF!","v":{"$error":"#REF!"}}]
[null,"Q4",{"$f":"#REF!","v":{"$error":"#REF!"}},{"$f":"#REF!","v":{"$error":"#REF!"}}]
["2015/16","Q1",{"$f":"#REF!","v":{"$error":"#REF!"}},{"$f":"#REF!","v":{"$error":"#REF!"}}]
[null,"Q2",{"$f":"#REF!","v":{"$error":"#REF!"}},{"$f":"#REF!","v":{"$error":"#REF!"}}]
[null,"Q3",{"$f":"#REF!","v":{"$error":"#REF!"}},{"$f":"#REF!","v":{"$error":"#REF!"}}]
[null,"Q4",{"$f":"#REF!","v":{"$error":"#REF!"}},{"$f":"#REF!","v":{"$error":"#REF!"}}]
["2016/17","Q1",{"$f":"#REF!","v":{"$error":"#REF!"}},{"$f":"#REF!","v":{"$error":"#REF!"}}]
[null,"Q2",{"$f":"#REF!","v":{"$error":"#REF!"}},{"$f":"#REF!","v":{"$error":"#REF!"}}]
[null,"Q3",{"$f":"#REF!","v":{"$error":"#REF!"}},{"$f":"#REF!","v":{"$error":"#REF!"}}]
[null,"Q4",{"$f":"#REF!","v":{"$error":"#REF!"}},{"$f":"#REF!","v":{"$error":"#REF!"}}]
[]
[]
["Chart 28: Local Business and Industry developments -  Average decision time (weeks)"]
["Year/ Quarter",null,"All Applications","Post-August 2009"]
["2012/13","Q1",{"$f":"#REF!","v":{"$error":"#REF!"}},{"$f":"#REF!","v":{"$error":"#REF!"}}]
[null,"Q2",{"$f":"#REF!","v":{"$error":"#REF!"}},{"$f":"#REF!","v":{"$error":"#REF!"}}]
[null,"Q3",{"$f":"#REF!","v":{"$error":"#REF!"}},{"$f":"#REF!","v":{"$error":"#REF!"}}]
[null,"Q4",{"$f":"#REF!","v":{"$error":"#REF!"}},{"$f":"#REF!","v":{"$error":"#REF!"}}]
["2013/14","Q1",{"$f":"#REF!","v":{"$error":"#REF!"}},{"$f":"#REF!","v":{"$error":"#REF!"}}]
[null,"Q2",{"$f":"#REF!","v":{"$error":"#REF!"}},{"$f":"#REF!","v":{"$error":"#REF!"}}]
[null,"Q3",{"$f":"#REF!","v":{"$error":"#REF!"}},{"$f":"#REF!","v":{"$error":"#REF!"}}]
[null,"Q4",{"$f":"#REF!","v":{"$error":"#REF!"}},{"$f":"#REF!","v":{"$error":"#REF!"}}]
["2014/15","Q1",{"$f":"#REF!","v":{"$error":"#REF!"}},{"$f":"#REF!","v":{"$error":"#REF!"}}]
[null,"Q2",{"$f":"#REF!","v":{"$error":"#REF!"}},{"$f":"#REF!","v":{"$error":"#REF!"}}]
[null,"Q3",{"$f":"#REF!","v":{"$error":"#REF!"}},{"$f":"#REF!","v":{"$error":"#REF!"}}]
[null,"Q4",{"$f":"#REF!","v":{"$error":"#REF!"}},{"$f":"#REF!","v":{"$error":"#REF!"}}]
["2015/16","Q1",{"$f":"#REF!","v":{"$error":"#REF!"}},{"$f":"#REF!","v":{"$error":"#REF!"}}]
[null,"Q2",{"$f":"#REF!","v":{"$error":"#REF!"}},{"$f":"#REF!","v":{"$error":"#REF!"}}]
[null,"Q3",{"$f":"#REF!","v":{"$error":"#REF!"}},{"$f":"#REF!","v":{"$error":"#REF!"}}]
[null,"Q4",{"$f":"#REF!","v":{"$error":"#REF!"}},{"$f":"#REF!","v":{"$error":"#REF!"}}]
["2016/17","Q1",{"$f":"#REF!","v":{"$error":"#REF!"}},{"$f":"#REF!","v":{"$error":"#REF!"}}]
[null,"Q2",{"$f":"#REF!","v":{"$error":"#REF!"}},{"$f":"#REF!","v":{"$error":"#REF!"}}]
[null,"Q3",{"$f":"#REF!","v":{"$error":"#REF!"}},{"$f":"#REF!","v":{"$error":"#REF!"}}]
[null,"Q4",{"$f":"#REF!","v":{"$error":"#REF!"}},{"$f":"#REF!","v":{"$error":"#REF!"}}]
[]
[]
["Chart 29: All Major developments - Number of decisions"]
["Year/ Quarter",null,"All Applications","Post-August 2009"]
["2012/13","Q1",{"$f":"#REF!","v":{"$error":"#REF!"}},{"$f":"#REF!","v":{"$error":"#REF!"}}]
[null,"Q2",{"$f":"#REF!","v":{"$error":"#REF!"}},{"$f":"#REF!","v":{"$error":"#REF!"}}]
[null,"Q3",{"$f":"#REF!","v":{"$error":"#REF!"}},{"$f":"#REF!","v":{"$error":"#REF!"}}]
[null,"Q4",{"$f":"#REF!","v":{"$error":"#REF!"}},{"$f":"#REF!","v":{"$error":"#REF!"}}]
["2013/14","Q1",{"$f":"#REF!","v":{"$error":"#REF!"}},{"$f":"#REF!","v":{"$error":"#REF!"}}]
[null,"Q2",{"$f":"#REF!","v":{"$error":"#REF!"}},{"$f":"#REF!","v":{"$error":"#REF!"}}]
[null,"Q3",{"$f":"#REF!","v":{"$error":"#REF!"}},{"$f":"#REF!","v":{"$error":"#REF!"}}]
[null,"Q4",{"$f":"#REF!","v":{"$error":"#REF!"}},{"$f":"#REF!","v":{"$error":"#REF!"}}]
["2014/15","Q1",{"$f":"#REF!","v":{"$error":"#REF!"}},{"$f":"#REF!","v":{"$error":"#REF!"}}]
[null,"Q2",{"$f":"#REF!","v":{"$error":"#REF!"}},{"$f":"#REF!","v":{"$error":"#REF!"}}]
[null,"Q3",{"$f":"#REF!","v":{"$error":"#REF!"}},{"$f":"#REF!","v":{"$error":"#REF!"}}]
[null,"Q4",{"$f":"#REF!","v":{"$error":"#REF!"}},{"$f":"#REF!","v":{"$error":"#REF!"}}]
["2015/16","Q1",{"$f":"#REF!","v":{"$error":"#REF!"}},{"$f":"#REF!","v":{"$error":"#REF!"}}]
[null,"Q2",{"$f":"#REF!","v":{"$error":"#REF!"}},{"$f":"#REF!","v":{"$error":"#REF!"}}]
[null,"Q3",{"$f":"#REF!","v":{"$error":"#REF!"}},{"$f":"#REF!","v":{"$error":"#REF!"}}]
[null,"Q4",{"$f":"#REF!","v":{"$error":"#REF!"}},{"$f":"#REF!","v":{"$error":"#REF!"}}]
["2016/17","Q1",{"$f":"#REF!","v":{"$error":"#REF!"}},{"$f":"#REF!","v":{"$error":"#REF!"}}]
[null,"Q2",{"$f":"#REF!","v":{"$error":"#REF!"}},{"$f":"#REF!","v":{"$error":"#REF!"}}]
[null,"Q3",{"$f":"#REF!","v":{"$error":"#REF!"}},{"$f":"#REF!","v":{"$error":"#REF!"}}]
[null,"Q4",{"$f":"#REF!","v":{"$error":"#REF!"}},{"$f":"#REF!","v":{"$error":"#REF!"}}]
[]
[]
[]
[]
[]
["Chart 30: All Major developments - Average decision time (weeks)"]
["Year/ Quarter",null,"All Applications","Post-August 2009"]
["2012/13","Q1",{"$f":"#REF!","v":{"$error":"#REF!"}},{"$f":"#REF!","v":{"$error":"#REF!"}}]
[null,"Q2",{"$f":"#REF!","v":{"$error":"#REF!"}},{"$f":"#REF!","v":{"$error":"#REF!"}}]
[null,"Q3",{"$f":"#REF!","v":{"$error":"#REF!"}},{"$f":"#REF!","v":{"$error":"#REF!"}}]
[null,"Q4",{"$f":"#REF!","v":{"$error":"#REF!"}},{"$f":"#REF!","v":{"$error":"#REF!"}}]
["2013/14","Q1",{"$f":"#REF!","v":{"$error":"#REF!"}},{"$f":"#REF!","v":{"$error":"#REF!"}}]
[null,"Q2",{"$f":"#REF!","v":{"$error":"#REF!"}},{"$f":"#REF!","v":{"$error":"#REF!"}}]
[null,"Q3",{"$f":"#REF!","v":{"$error":"#REF!"}},{"$f":"#REF!","v":{"$error":"#REF!"}}]
[null,"Q4",{"$f":"#REF!","v":{"$error":"#REF!"}},{"$f":"#REF!","v":{"$error":"#REF!"}}]
["2014/15","Q1",{"$f":"#REF!","v":{"$error":"#REF!"}},{"$f":"#REF!","v":{"$error":"#REF!"}}]
[null,"Q2",{"$f":"#REF!","v":{"$error":"#REF!"}},{"$f":"#REF!","v":{"$error":"#REF!"}}]
[null,"Q3",{"$f":"#REF!","v":{"$error":"#REF!"}},{"$f":"#REF!","v":{"$error":"#REF!"}}]
[null,"Q4",{"$f":"#REF!","v":{"$error":"#REF!"}},{"$f":"#REF!","v":{"$error":"#REF!"}}]
["2015/16","Q1",{"$f":"#REF!","v":{"$error":"#REF!"}},{"$f":"#REF!","v":{"$error":"#REF!"}}]
[null,"Q2",{"$f":"#REF!","v":{"$error":"#REF!"}},{"$f":"#REF!","v":{"$error":"#REF!"}}]
[null,"Q3",{"$f":"#REF!","v":{"$error":"#REF!"}},{"$f":"#REF!","v":{"$error":"#REF!"}}]
[null,"Q4",{"$f":"#REF!","v":{"$error":"#REF!"}},{"$f":"#REF!","v":{"$error":"#REF!"}}]
["2016/17","Q1",{"$f":"#REF!","v":{"$error":"#REF!"}},{"$f":"#REF!","v":{"$error":"#REF!"}}]
[null,"Q2",{"$f":"#REF!","v":{"$error":"#REF!"}},{"$f":"#REF!","v":{"$error":"#REF!"}}]
[null,"Q3",{"$f":"#REF!","v":{"$error":"#REF!"}},{"$f":"#REF!","v":{"$error":"#REF!"}}]
[null,"Q4",{"$f":"#REF!","v":{"$error":"#REF!"}},{"$f":"#REF!","v":{"$error":"#REF!"}}]
[]
["Chart 31: Major Housing developments - Number of decisions"]
["Year/ Quarter",null,"All Applications","Post-August 2009"]
["2012/13","Q1",{"$f":"#REF!","v":{"$error":"#REF!"}},{"$f":"#REF!","v":{"$error":"#REF!"}}]
[null,"Q2",{"$f":"#REF!","v":{"$error":"#REF!"}},{"$f":"#REF!","v":{"$error":"#REF!"}}]
[null,"Q3",{"$f":"#REF!","v":{"$error":"#REF!"}},{"$f":"#REF!","v":{"$error":"#REF!"}}]
[null,"Q4",{"$f":"#REF!","v":{"$error":"#REF!"}},{"$f":"#REF!","v":{"$error":"#REF!"}}]
["2013/14","Q1",{"$f":"#REF!","v":{"$error":"#REF!"}},{"$f":"#REF!","v":{"$error":"#REF!"}}]
[null,"Q2",{"$f":"#REF!","v":{"$error":"#REF!"}},{"$f":"#REF!","v":{"$error":"#REF!"}}]
[null,"Q3",{"$f":"#REF!","v":{"$error":"#REF!"}},{"$f":"#REF!","v":{"$error":"#REF!"}}]
[null,"Q4",{"$f":"#REF!","v":{"$error":"#REF!"}},{"$f":"#REF!","v":{"$error":"#REF!"}},null,null,null,null,null,2]
["2014/15","Q1",{"$f":"#REF!","v":{"$error":"#REF!"}},{"$f":"#REF!","v":{"$error":"#REF!"}}]
[null,"Q2",{"$f":"#REF!","v":{"$error":"#REF!"}},{"$f":"#REF!","v":{"$error":"#REF!"}}]
[null,"Q3",{"$f":"#REF!","v":{"$error":"#REF!"}},{"$f":"#REF!","v":{"$error":"#REF!"}}]
[null,"Q4",{"$f":"#REF!","v":{"$error":"#REF!"}},{"$f":"#REF!","v":{"$error":"#REF!"}}]
["2015/16","Q1",{"$f":"#REF!","v":{"$error":"#REF!"}},{"$f":"#REF!","v":{"$error":"#REF!"}}]
[null,"Q2",{"$f":"#REF!","v":{"$error":"#REF!"}},{"$f":"#REF!","v":{"$error":"#REF!"}}]
[null,"Q3",{"$f":"#REF!","v":{"$error":"#REF!"}},{"$f":"#REF!","v":{"$error":"#REF!"}}]
[null,"Q4",{"$f":"#REF!","v":{"$error":"#REF!"}},{"$f":"#REF!","v":{"$error":"#REF!"}}]
["2016/17","Q1",{"$f":"#REF!","v":{"$error":"#REF!"}},{"$f":"#REF!","v":{"$error":"#REF!"}}]
[null,"Q2",{"$f":"#REF!","v":{"$error":"#REF!"}},{"$f":"#REF!","v":{"$error":"#REF!"}}]
[null,"Q3",{"$f":"#REF!","v":{"$error":"#REF!"}},{"$f":"#REF!","v":{"$error":"#REF!"}}]
[null,"Q4",{"$f":"#REF!","v":{"$error":"#REF!"}},{"$f":"#REF!","v":{"$error":"#REF!"}}]
[]
[]
[]
[]
[]
["Chart 32: Major Housing developments - Average decision time (weeks)"]
["Year/ Quarter",null,"All Applications","Post-August 2009"]
["2012/13","Q1",{"$f":"#REF!","v":{"$error":"#REF!"}},{"$f":"#REF!","v":{"$error":"#REF!"}}]
[null,"Q2",{"$f":"#REF!","v":{"$error":"#REF!"}},{"$f":"#REF!","v":{"$error":"#REF!"}}]
[null,"Q3",{"$f":"#REF!","v":{"$error":"#REF!"}},{"$f":"#REF!","v":{"$error":"#REF!"}}]
[null,"Q4",{"$f":"#REF!","v":{"$error":"#REF!"}},{"$f":"#REF!","v":{"$error":"#REF!"}}]
["2013/14","Q1",{"$f":"#REF!","v":{"$error":"#REF!"}},{"$f":"#REF!","v":{"$error":"#REF!"}}]
[null,"Q2",{"$f":"#REF!","v":{"$error":"#REF!"}},{"$f":"#REF!","v":{"$error":"#REF!"}}]
[null,"Q3",{"$f":"#REF!","v":{"$error":"#REF!"}},{"$f":"#REF!","v":{"$error":"#REF!"}}]
[null,"Q4",{"$f":"#REF!","v":{"$error":"#REF!"}},{"$f":"#REF!","v":{"$error":"#REF!"}}]
["2014/15","Q1",{"$f":"#REF!","v":{"$error":"#REF!"}},{"$f":"#REF!","v":{"$error":"#REF!"}}]
[null,"Q2",{"$f":"#REF!","v":{"$error":"#REF!"}},{"$f":"#REF!","v":{"$error":"#REF!"}}]
[null,"Q3",{"$f":"#REF!","v":{"$error":"#REF!"}},{"$f":"#REF!","v":{"$error":"#REF!"}}]
[null,"Q4",{"$f":"#REF!","v":{"$error":"#REF!"}},{"$f":"#REF!","v":{"$error":"#REF!"}}]
["2015/16","Q1",{"$f":"#REF!","v":{"$error":"#REF!"}},{"$f":"#REF!","v":{"$error":"#REF!"}}]
[null,"Q2",{"$f":"#REF!","v":{"$error":"#REF!"}},{"$f":"#REF!","v":{"$error":"#REF!"}}]
[null,"Q3",{"$f":"#REF!","v":{"$error":"#REF!"}},{"$f":"#REF!","v":{"$error":"#REF!"}}]
[null,"Q4",{"$f":"#REF!","v":{"$error":"#REF!"}},{"$f":"#REF!","v":{"$error":"#REF!"}}]
["2016/17","Q1",{"$f":"#REF!","v":{"$error":"#REF!"}},{"$f":"#REF!","v":{"$error":"#REF!"}}]
[null,"Q2",{"$f":"#REF!","v":{"$error":"#REF!"}},{"$f":"#REF!","v":{"$error":"#REF!"}}]
[null,"Q3",{"$f":"#REF!","v":{"$error":"#REF!"}},{"$f":"#REF!","v":{"$error":"#REF!"}}]
[null,"Q4",{"$f":"#REF!","v":{"$error":"#REF!"}},{"$f":"#REF!","v":{"$error":"#REF!"}}]
[]
[]
["Chart 33: Major Business and Industry developments - Number of decisions"]
["Year/ Quarter",null,"All Applications","Post-August 2009"]
["2012/13","Q1",{"$f":"#REF!","v":{"$error":"#REF!"}},{"$f":"#REF!","v":{"$error":"#REF!"}}]
[null,"Q2",{"$f":"#REF!","v":{"$error":"#REF!"}},{"$f":"#REF!","v":{"$error":"#REF!"}}]
[null,"Q3",{"$f":"#REF!","v":{"$error":"#REF!"}},{"$f":"#REF!","v":{"$error":"#REF!"}}]
[null,"Q4",{"$f":"#REF!","v":{"$error":"#REF!"}},{"$f":"#REF!","v":{"$error":"#REF!"}}]
["2013/14","Q1",{"$f":"#REF!","v":{"$error":"#REF!"}},{"$f":"#REF!","v":{"$error":"#REF!"}}]
[null,"Q2",{"$f":"#REF!","v":{"$error":"#REF!"}},{"$f":"#REF!","v":{"$error":"#REF!"}}]
[null,"Q3",{"$f":"#REF!","v":{"$error":"#REF!"}},{"$f":"#REF!","v":{"$error":"#REF!"}}]
[null,"Q4",{"$f":"#REF!","v":{"$error":"#REF!"}},{"$f":"#REF!","v":{"$error":"#REF!"}}]
["2014/15","Q1",{"$f":"#REF!","v":{"$error":"#REF!"}},{"$f":"#REF!","v":{"$error":"#REF!"}}]
[null,"Q2",{"$f":"#REF!","v":{"$error":"#REF!"}},{"$f":"#REF!","v":{"$error":"#REF!"}}]
[null,"Q3",{"$f":"#REF!","v":{"$error":"#REF!"}},{"$f":"#REF!","v":{"$error":"#REF!"}}]
[null,"Q4",{"$f":"#REF!","v":{"$error":"#REF!"}},{"$f":"#REF!","v":{"$error":"#REF!"}}]
["2015/16","Q1",{"$f":"#REF!","v":{"$error":"#REF!"}},{"$f":"#REF!","v":{"$error":"#REF!"}}]
[null,"Q2",{"$f":"#REF!","v":{"$error":"#REF!"}},{"$f":"#REF!","v":{"$error":"#REF!"}}]
[null,"Q3",{"$f":"#REF!","v":{"$error":"#REF!"}},{"$f":"#REF!","v":{"$error":"#REF!"}}]
[null,"Q4",{"$f":"#REF!","v":{"$error":"#REF!"}},{"$f":"#REF!","v":{"$error":"#REF!"}}]
["2016/17","Q1",{"$f":"#REF!","v":{"$error":"#REF!"}},{"$f":"#REF!","v":{"$error":"#REF!"}}]
[null,"Q2",{"$f":"#REF!","v":{"$error":"#REF!"}},{"$f":"#REF!","v":{"$error":"#REF!"}}]
[null,"Q3",{"$f":"#REF!","v":{"$error":"#REF!"}},{"$f":"#REF!","v":{"$error":"#REF!"}}]
[null,"Q4",{"$f":"#REF!","v":{"$error":"#REF!"}},{"$f":"#REF!","v":{"$error":"#REF!"}}]
[]
[]
[]
[]
[]
["Chart 34: Major Business and Industry developments - Average decision time (weeks)"]
["Year/ Quarter",null,"All Applications","Post-August 2009"]
["2012/13","Q1",{"$f":"#REF!","v":{"$error":"#REF!"}},{"$f":"#REF!","v":{"$error":"#REF!"}}]
[null,"Q2",{"$f":"#REF!","v":{"$error":"#REF!"}},{"$f":"#REF!","v":{"$error":"#REF!"}}]
[null,"Q3",{"$f":"#REF!","v":{"$error":"#REF!"}},{"$f":"#REF!","v":{"$error":"#REF!"}}]
[null,"Q4",{"$f":"#REF!","v":{"$error":"#REF!"}},{"$f":"#REF!","v":{"$error":"#REF!"}}]
["2013/14","Q1",{"$f":"#REF!","v":{"$error":"#REF!"}},{"$f":"#REF!","v":{"$error":"#REF!"}}]
[null,"Q2",{"$f":"#REF!","v":{"$error":"#REF!"}},{"$f":"#REF!","v":{"$error":"#REF!"}}]
[null,"Q3",{"$f":"#REF!","v":{"$error":"#REF!"}},{"$f":"#REF!","v":{"$error":"#REF!"}}]
[null,"Q4",{"$f":"#REF!","v":{"$error":"#REF!"}},{"$f":"#REF!","v":{"$error":"#REF!"}}]
["2014/15","Q1",{"$f":"#REF!","v":{"$error":"#REF!"}},{"$f":"#REF!","v":{"$error":"#REF!"}}]
[null,"Q2",{"$f":"#REF!","v":{"$error":"#REF!"}},{"$f":"#REF!","v":{"$error":"#REF!"}}]
[null,"Q3",{"$f":"#REF!","v":{"$error":"#REF!"}},{"$f":"#REF!","v":{"$error":"#REF!"}}]
[null,"Q4",{"$f":"#REF!","v":{"$error":"#REF!"}},{"$f":"#REF!","v":{"$error":"#REF!"}}]
["2015/16","Q1",{"$f":"#REF!","v":{"$error":"#REF!"}},{"$f":"#REF!","v":{"$error":"#REF!"}}]
[null,"Q2",{"$f":"#REF!","v":{"$error":"#REF!"}},{"$f":"#REF!","v":{"$error":"#REF!"}}]
[null,"Q3",{"$f":"#REF!","v":{"$error":"#REF!"}},{"$f":"#REF!","v":{"$error":"#REF!"}}]
[null,"Q4",{"$f":"#REF!","v":{"$error":"#REF!"}},{"$f":"#REF!","v":{"$error":"#REF!"}}]
["2016/17","Q1",{"$f":"#REF!","v":{"$error":"#REF!"}},{"$f":"#REF!","v":{"$error":"#REF!"}}]
[null,"Q2",{"$f":"#REF!","v":{"$error":"#REF!"}},{"$f":"#REF!","v":{"$error":"#REF!"}}]
[null,"Q3",{"$f":"#REF!","v":{"$error":"#REF!"}},{"$f":"#REF!","v":{"$error":"#REF!"}}]
[null,"Q4",{"$f":"#REF!","v":{"$error":"#REF!"}},{"$f":"#REF!","v":{"$error":"#REF!"}}]
[]
[]
[]
[]
[]
["Chart 35: Local developments with Legal Agreements -  Number of decisions "]
["Year/ Quarter",null,"All Applications","Post-August 2009"]
["2012/13","Q1",132,108]
[null,"Q2",98,95]
[null,"Q3",111,97]
[null,"Q4",125,115]
["2013/14","Q1",99,84]
[null,"Q2",116,104]
[null,"Q3",102,90]
[null,"Q4",115,105]
["2014/15","Q1",141,136]
[null,"Q2",112,103]
[null,"Q3",82,79]
[null,"Q4",125,115]
["2015/16","Q1",125,121]
[null,"Q2",101,97]
[null,"Q3",130,122]
[null,"Q4",113,111]
["2016/17","Q1",128,128]
[null,"Q2",138,137,null,"Aberdeenshire figures were amended"]
[null,"Q3",102,102]
[null,"Q4",131,131]
[]
["Chart 36: Local developments with Legal Agreements - Average decision time (weeks)"]
["Year/ Quarter",null,"All Applications","Post-August 2009"]
["2012/13","Q1",{"$f":"#REF!","v":{"$error":"#REF!"}},{"$f":"#REF!","v":{"$error":"#REF!"}}]
[null,"Q2",{"$f":"#REF!","v":{"$error":"#REF!"}},{"$f":"#REF!","v":{"$error":"#REF!"}}]
[null,"Q3",{"$f":"#REF!","v":{"$error":"#REF!"}},{"$f":"#REF!","v":{"$error":"#REF!"}}]
[null,"Q4",{"$f":"#REF!","v":{"$error":"#REF!"}},{"$f":"#REF!","v":{"$error":"#REF!"}}]
["2013/14","Q1",{"$f":"#REF!","v":{"$error":"#REF!"}},{"$f":"#REF!","v":{"$error":"#REF!"}}]
[null,"Q2",{"$f":"#REF!","v":{"$error":"#REF!"}},{"$f":"#REF!","v":{"$error":"#REF!"}}]
[null,"Q3",{"$f":"#REF!","v":{"$error":"#REF!"}},{"$f":"#REF!","v":{"$error":"#REF!"}}]
[null,"Q4",{"$f":"#REF!","v":{"$error":"#REF!"}},{"$f":"#REF!","v":{"$error":"#REF!"}}]
["2014/15","Q1",{"$f":"#REF!","v":{"$error":"#REF!"}},{"$f":"#REF!","v":{"$error":"#REF!"}}]
[null,"Q2",{"$f":"#REF!","v":{"$error":"#REF!"}},{"$f":"#REF!","v":{"$error":"#REF!"}}]
[null,"Q3",{"$f":"#REF!","v":{"$error":"#REF!"}},{"$f":"#REF!","v":{"$error":"#REF!"}}]
[null,"Q4",{"$f":"#REF!","v":{"$error":"#REF!"}},{"$f":"#REF!","v":{"$error":"#REF!"}}]
["2015/16","Q1",{"$f":"#REF!","v":{"$error":"#REF!"}},{"$f":"#REF!","v":{"$error":"#REF!"}}]
[null,"Q2",{"$f":"#REF!","v":{"$error":"#REF!"}},{"$f":"#REF!","v":{"$error":"#REF!"}}]
[null,"Q3",{"$f":"#REF!","v":{"$error":"#REF!"}},{"$f":"#REF!","v":{"$error":"#REF!"}}]
[null,"Q4",{"$f":"#REF!","v":{"$error":"#REF!"}},{"$f":"#REF!","v":{"$error":"#REF!"}}]
["2016/17","Q1",{"$f":"#REF!","v":{"$error":"#REF!"}},{"$f":"#REF!","v":{"$error":"#REF!"}}]
[null,"Q2",{"$f":"#REF!","v":{"$error":"#REF!"}},{"$f":"#REF!","v":{"$error":"#REF!"}}]
[null,"Q3",{"$f":"#REF!","v":{"$error":"#REF!"}},{"$f":"#REF!","v":{"$error":"#REF!"}}]
[null,"Q4",{"$f":"#REF!","v":{"$error":"#REF!"}},{"$f":"#REF!","v":{"$error":"#REF!"}}]
[]
[]
[]
[]
[]
["Chart 37: Major developments with Legal Agreements -  Number of decisions "]
["Year/ Quarter",null,"All Applications","Post-August 2009"]
["2012/13","Q1",22,17]
[null,"Q2",23,10]
[null,"Q3",26,17]
[null,"Q4",21,14]
["2013/14","Q1",22,17]
[null,"Q2",22,14]
[null,"Q3",30,23]
[null,"Q4",37,32]
["2014/15","Q1",21,17]
[null,"Q2",16,12]
[null,"Q3",16,14]
[null,"Q4",17,14]
["2015/16","Q1",15,13]
[null,"Q2",21,17]
[null,"Q3",20,18]
[null,"Q4",24,19]
["2016/17","Q1",24,24]
[null,"Q2",18,18]
[null,"Q3",34,34]
[null,"Q4",25,24]
[]
[]
[]
[]
["Chart 38: Major developments with Legal Agreements - Average decision time (weeks) "]
["Year/ Quarter",null,"All Applications","Post-August 2009"]
["2012/13","Q1",98.987012987012989,55.974789915966383]
[null,"Q2",101.98136645962732,61.857142857142854]
[null,"Q3",105.9835164835165,57.210084033613441]
[null,"Q4",93.244897959183675,58.387755102040806]
["2013/14","Q1",103.82467532467533,71.588235294117652]
[null,"Q2",122.57142857142857,54.132653061224495]
[null,"Q3",67.666666666666671,49.385093167701868]
[null,"Q4",68.895752895752892,48.401785714285715]
["2014/15","Q1",79.639455782312922,45.378151260504204]
[null,"Q2",95.008928571428569,72.321428571428569]
[null,"Q3",91.964285714285722,75.520408163265301]
[null,"Q4",107.59663865546219,67.989795918367349]
["2015/16","Q1",{"$f":"#REF!","v":{"$error":"#REF!"}},{"$f":"#REF!","v":{"$error":"#REF!"}}]
[null,"Q2",{"$f":"#REF!","v":{"$error":"#REF!"}},{"$f":"#REF!","v":{"$error":"#REF!"}}]
[null,"Q3",{"$f":"#REF!","v":{"$error":"#REF!"}},{"$f":"#REF!","v":{"$error":"#REF!"}}]
[null,"Q4",{"$f":"#REF!","v":{"$error":"#REF!"}},{"$f":"#REF!","v":{"$error":"#REF!"}}]
["2016/17","Q1",{"$f":"#REF!","v":{"$error":"#REF!"}},{"$f":"#REF!","v":{"$error":"#REF!"}}]
[null,"Q2",{"$f":"#REF!","v":{"$error":"#REF!"}},{"$f":"#REF!","v":{"$error":"#REF!"}}]
[null,"Q3",{"$f":"#REF!","v":{"$error":"#REF!"}},{"$f":"#REF!","v":{"$error":"#REF!"}}]
[null,"Q4",{"$f":"#REF!","v":{"$error":"#REF!"}},{"$f":"#REF!","v":{"$error":"#REF!"}}]

{"sheet":"SCOTLAND","index":8,"n_rows":80,"n_cols":13,"rows_kept":80,"cut":false,"hidden":false,"merged":[[75,0,78,3],[0,8,1,12]]}
["Planning Authority Performance Statistics1,2",null,null,"SCOTLAND",null,null,null,null,"For Scottish Government Use during analysis\nPlease do not delete or move these columns"]
[null,null,null,"2018/19 Q4"]
[null,null,null,"Post-3rd August 2009",null,null,null,null,null,"Check total number of applications"]
[null,null,null,null,null,null,null,null,null,null,8071,"total apps","error - check summary and legacy"]
["Category","Total Number of Decisions","% Within Agreed Timescales",null,null,null,null,null,"Check PA Totals",null,8070,"from summary","OK total is 8071+1 8072"]
["Processing Agreements",680,0.76029411764705879,null,null,null,null,null,"ok",null,1,"legacy"]
["Major Applications",26,0.73076923076923073]
["Local Applications",538,0.76579925650557623]
["EIA developments",3,1]
["Other Consents",113,0.73451327433628322]
[]
[null,"Total Number of Decisions","Proportion of Decisions","Average Time (Weeks)",null,null,null,null,"Check Totals"]
["All Major Developments",39,null,34.754578754578752,null,null,null,null,"ok","ok",34.754578754578752,"ok"]
["Without Legal Agreement",27,0.69230769230769229,25.428571428571427]
["With Legal Agreement",12,0.30769230769230771,55.738095238095234]
[]
["All Local Developments",5699,null,9.4024014238086888,null,null,null,null,"ok","ok",9.4024014238086888,"ok"]
["Without Legal Agreement",5589,0.98069836813476052,8.9549369935843366]
["With Legal Agreement",110,1.9301631865239515E-2,32.137662337662341]
["Local: less than 2 months",4121,0.72310931742410944,6.5547890595209202,null,null,null,null,"ok","ok",9.402401423808687,"ok"]
["Local: more than 2 months",1578,0.2768906825758905,16.839036755386566]
[]
["All Local developments (non-householder)",3018,null,11.206428098078197,null,null,null,null,"ok","ok",11.206428098078199,"ok"]
["Local: less than 2 months",1838,0.60901259111994699,6.6649308254313695]
["Local: more than 2 months",1180,0.39098740888005301,18.280387409200969]
[]
["Householder developments",2681,null,7.3716097405019463,null,null,null,null,"ok","ok",7.3716097405019454,"ok"]
["Local: less than 2 months",2283,0.85154792987691164,6.46611601276516]
["Local: more than 2 months",398,0.14845207012308839,12.565685570710695]
[]
["Housing Developments - Major",18,null,37.32539682539683]
[]
["Housing Developments - Local",1083,null,13.156179923492944,null,null,null,null,"ok","ok",13.156179923492944,"ok"]
["Local: less than 2 months",562,0.51892890120036939,6.8057956278596841]
["Local: more than 2 months",521,0.48107109879963067,20.006306553331509]
[]
["Business & Industry - Major",4,null,48.857142857142861]
[]
["Business & Industry - Local",319,null,9.9762651141961491,null,null,null,null,"ok","ok",9.9762651141961491,"ok"]
["Local: less than 2 months",202,0.63322884012539182,6.7362093352192343]
["Local: more than 2 months",117,0.36677115987460818,15.570207570207575]
[]
["Other developments - Major",10,null,17.785714285714285]
[]
["Other developments - Local",1396,null,9.9594760540319278,null,null,null,null,"ok","ok",9.9594760540319278,"ok"]
["Local: less than 2 months",927,0.66404011461318047,6.5506241331484061]
["Local: more than 2 months",469,0.33595988538681948,16.697228144989339]
[]
["EIA Developments",15,null,24.495238095238097]
["Other Consents",1637,null,8.1465223841521972]
[]
["Decision Making: Applications subject to"]
["Planning/Legal Agreements",123,null,34.544715447154474,null,null,null,null,"Check Local Review Totals"]
["Local Reviews",155,null,12.627649769585254,null,null,null,null,"ok"]
[]
["Decision Making: Local Reviews and Appeals"]
[]
[null,"Total number of decisions","Original decision upheld (%)"]
["Local Reviews",155,0.61883870967741939]
["Appeals to Scottish Ministers3",86,0.4999069767441861]
[]
["Enforcement Activity"]
[]
[null,"Number"]
["Cases Taken Up",1438]
["Notices Served",133]
["Reports to Procurator Fiscal",0]
["Prosecutions",0]
[]
["Approved and Delegated"]
[]
["Percentage Approved",0.94035365531802584,null,null,null,null,null,null,"Approved",7126,7578,"Total Applications less N17"]
["Percentage Delegated",0.95638706479990088,null,null,null,null,null,null,"Delegated",7719,8071,"Total Applications"]
[null,null,null,null,null,null,null,null,null,null,10256,"Applications received (excludes Cairngorms)"]
["1. For a full description of the categories in this analysis please see NOTES page.",null,null,null,null,null,null,null,"Check % approved",null,"OK"]
["2. Time has been removed from the decision time for a total of 490 applications where delays were outwith the control of 30 local authorities. Other local authorities either indicated that they were not able to provide details of dates for delays that were outwith their control or did not require any decision time to be removed from any of their applications. Average decision times for those local authorities who are not able to provide details for delays may be higher than otherwise, and higher than those authorities who are able to report delays in decision making. ",null,null,null,null,null,null,null,"Check % Delegated",null,"OK"]
[]
[null,null,null,null,null,null,null,null,null,null,null," "]
[]
["3. Cases where the decision was recalled and made by Ministers are not included in these figures."]

{"sheet":"Aberdeen City","index":9,"n_rows":77,"n_cols":13,"rows_kept":77,"cut":false,"hidden":false,"merged":[[61,0,61,3],[2,5,2,7],[76,0,77,3],[0,8,0,12],[1,8,1,12]]}
["Planning Authority Performance Statistics1,3",null,null,"Aberdeen City",null,null,null,null,"For Scottish Government Use during analysis\nPlease do not delete or move these columns"]
[null,null,null,"2018/19 Q4",null,null,null,null,"Check total number of applications"]
[null,null,null,"All Applications excluding Legacy Cases",null,null,null,null,null,258,"total apps",null,"OK"]
[null,null,null,null,null,null,null,null,null," "]
["Processing Agreements","Total Number of Decisions","% Within Agreed Timescales"]
["TOTAL",69,0.98550724637681164]
["Major Applications",2,1]
["Local Applications",57,0.98245614035087714]
["EIA  Applications",0,"-"]
["Other Applications",10,1]
["Applications with processing agreements are not included in the following figures."]
[null,"Total Number of Decisions","Proportion of Decisions","Average Time (Weeks)",null,null,null,null,null,"check sums to total"]
["All Major Developments",0,null,"-",null,null,null,null,null,"OK",{"$error":"#VALUE!"},{"$error":"#VALUE!"}]
["Without Legal Agreement",0,"-","-"]
["With Legal Agreement",0,"-","-"]
[null,null,null,null,null,null,null,null,null,"OK"]
["All Local Developments",138,null,7.4202898550724639,null,null,null,null,null,"OK","OK","OK"]
["Without Legal Agreement",137,0.99275362318840576,7.2721584984358705]
["With Legal Agreement",1,7.246376811594203E-3,27.714285714285715]
["Local: less than 2 months",127,0.92028985507246375,6.6715410573678282,null,null,null,null,null,"OK","OK","OK"]
["Local: more than 2 months",11,7.9710144927536225E-2,16.064935064935064]
[]
["All Local developments (non-householder)",52,null,8.2967032967032974,null,null,null,null,null,"OK","OK","OK"]
["Local: less than 2 months",42,0.80769230769230771,6.2755102040816331]
["Local: more than 2 months",10,0.19230769230769232,16.785714285714285]
[]
["Householder developments",86,null,6.8903654485049826,null,null,null,null,null,"OK","OK","OK"]
["Local: less than 2 months",85,0.98837209302325579,6.8672268907563021]
["Local: more than 2 months",1,1.1627906976744186E-2,8.8571428571428577]
[]
["Housing Developments - Major",0,null,"-"]
[]
["Housing Developments - Local",6,null,11.452380952380953,null,null,null,null,null,"OK","OK","OK"]
["Local: less than 2 months",4,0.66666666666666663,6.3928571428571432]
["Local: more than 2 months",2,0.33333333333333331,21.571428571428573]
[]
["Business & Industry - Major",0,null,"-"]
[]
["Business & Industry - Local",6,null,9.4523809523809526,null,null,null,null,null,"OK","OK","OK"]
["Local: less than 2 months",4,0.66666666666666663,8.25]
["Local: more than 2 months",2,0.33333333333333331,11.857142857142858]
[]
["Other developments - Major",0,null,"-",null,null,null,null,null," "]
[]
["Other developments - Local",37,null,7.5791505791505793,null,null,null,null,null,"OK","OK","OK"]
["Local: less than 2 months",32,0.86486486486486491,6.0267857142857144]
["Local: more than 2 months",5,0.13513513513513514,17.514285714285712]
[]
["EIA Developments",0,null,"-"]
["Other Consents",51,null,6.3529411764705879]
[]
["Decision Making: Applications subject to"]
["Planning/Legal Agreements",1,null,27.714285714285715]
["Local Reviews",10,null,5.4285714285714288,null,null,null,null,null,"Check local review totals"]
[null,null,null,null,null,null,null,null,null,"OK"]
["Decision Making: Local Reviews and Appeals"]
[]
[null,"Total number of decisions","Original decision upheld (%)"]
["Local Reviews",10,0.7]
["Appeals to Scottish Ministers2",2,0.5]
[]
["Enforcement Activity"]
[]
[null,"Number"]
["Cases Taken Up",45]
["Notices Served",3]
["Reports to Procurator Fiscal",0]
["Prosecutions",0]
["Number of breaches resolved",29]
["Approved and Delegated"]
[]
["Percentage Approved",0.93548387096774188,null,null,null,null,null,null,"Approved",232,248,"Total Applications less N17"]
["Percentage Delegated",0.96899224806201545,null,null,null,null,null,null,"Delegated",250,258,"Total Applications"]
[null,null,null,null,null,null,null,null,null,null,396,"applications received"]
["1. For a full description of the categories in this analysis please see NOTES page."]
["2. Cases where the decision was recalled and made by Ministers are not included in these figures."]
["3. Time has been removed from the decision time for 6 applications where delays were outwith the control of the local authority."]

{"sheet":"Aberdeenshire","index":10,"n_rows":77,"n_cols":13,"rows_kept":77,"cut":false,"hidden":false,"merged":[[61,0,61,3],[2,5,2,7],[0,8,0,12],[76,0,77,3],[1,8,1,12]]}
["Planning Authority Performance Statistics1,3",null,null,"Aberdeenshire",null,null,null,null,"For Scottish Government Use during analysis\nPlease do not delete or move these columns"]
[null,null,null,"2018/19 Q4",null,null,null,null,"Check total number of applications"]
[null,null,null,"All Applications excluding Legacy Cases",null,null,null,null,null,527,"total apps",null,"OK"]
[null,null,null,null,null,null,null,null,null," "]
["Processing Agreements","Total Number of Decisions","% Within Agreed Timescales"]
["TOTAL",110,0.95454545454545459]
["Major Applications",4,0.75]
["Local Applications",92,0.95652173913043481]
["EIA  Applications",0,"-"]
["Other Applications",14,1]
["Applications with processing agreements are not included in the following figures."]
[null,"Total Number of Decisions","Proportion of Decisions","Average Time (Weeks)",null,null,null,null,null,"check sums to total"]
["All Major Developments",0,null,"-",null,null,null,null,null,"OK",{"$error":"#VALUE!"},{"$error":"#VALUE!"}]
["Without Legal Agreement",0,"-","-"]
["With Legal Agreement",0,"-","-"]
[null,null,null,null,null,null,null,null,null,"OK"]
["All Local Developments",358,null,8.0087789305666401,null,null,null,null,null,"OK","OK","OK"]
["Without Legal Agreement",347,0.96927374301675973,7.8941951420337588]
["With Legal Agreement",11,3.0726256983240222E-2,11.623376623376624]
["Local: less than 2 months",316,0.88268156424581001,7.0343580470162754,null,null,null,null,null,"OK","OK","OK"]
["Local: more than 2 months",42,0.11731843575418995,15.340136054421768]
[]
["All Local developments (non-householder)",214,null,8.61014686248331,null,null,null,null,null,"OK","OK","OK"]
["Local: less than 2 months",180,0.84112149532710279,7.1865079365079367]
["Local: more than 2 months",34,0.15887850467289719,16.147058823529413]
[]
["Householder developments",144,null,7.1150793650793656,null,null,null,null,null,"OK","OK","OK"]
["Local: less than 2 months",136,0.94444444444444442,6.8329831932773102]
["Local: more than 2 months",8,5.5555555555555552E-2,11.910714285714286]
[]
["Housing Developments - Major",0,null,"-"]
[]
["Housing Developments - Local",94,null,8.7933130699088142,null,null,null,null,null,"OK","OK","OK"]
["Local: less than 2 months",75,0.7978723404255319,7.3295238095238089]
["Local: more than 2 months",19,0.20212765957446807,14.571428571428571]
[]
["Business & Industry - Major",0,null,"-"]
[]
["Business & Industry - Local",24,null,7.9166666666666661,null,null,null,null,null,"OK","OK","OK"]
["Local: less than 2 months",22,0.91666666666666663,7.5064935064935066]
["Local: more than 2 months",2,8.3333333333333329E-2,12.428571428571429]
[]
["Other developments - Major",0,null,"-",null,null,null,null,null," "]
[]
["Other developments - Local",77,null,8.4137291280148414,null,null,null,null,null,"OK","OK","OK"]
["Local: less than 2 months",66,0.8571428571428571,6.7857142857142856]
["Local: more than 2 months",11,0.14285714285714285,18.18181818181818]
[]
["EIA Developments",0,null,"-"]
["Other Consents",59,null,6.7530266343825662]
[]
["Decision Making: Applications subject to"]
["Planning/Legal Agreements",11,null,11.623376623376624]
["Local Reviews",7,null,18.30612244897959,null,null,null,null,null,"Check local review totals"]
[null,null,null,null,null,null,null,null,null,"OK"]
["Decision Making: Local Reviews and Appeals"]
[]
[null,"Total number of decisions","Original decision upheld (%)"]
["Local Reviews",7,0.8571428571428571]
["Appeals to Scottish Ministers2",6,0.83299999999999996]
[]
["Enforcement Activity"]
[]
[null,"Number"]
["Cases Taken Up",108]
["Notices Served",5]
["Reports to Procurator Fiscal",0]
["Prosecutions",0]
["Number of breaches resolved",80]
["Approved and Delegated"]
[]
["Percentage Approved",0.93400000000000005,null,null,null,null,null,null,"Approved",467,500,"Total Applications less N17"]
["Percentage Delegated",0.92979127134724859,null,null,null,null,null,null,"Delegated",490,527,"Total Applications"]
[null,null,null,null,null,null,null,null,null,null,611,"applications received"]
["1. For a full description of the categories in this analysis please see NOTES page."]
["2. Cases where the decision was recalled and made by Ministers are not included in these figures."]
["3. Time has been removed from the decision time for 6 applications where delays were outwith the control of the local authority."]

{"sheet":"Angus","index":11,"n_rows":77,"n_cols":13,"rows_kept":77,"cut":false,"hidden":false,"merged":[[61,0,61,3],[2,5,2,7],[0,8,0,12],[1,8,1,12]]}
["Planning Authority Performance Statistics1,3",null,null,"Angus",null,null,null,null,"For Scottish Government Use during analysis\nPlease do not delete or move these columns"]
[null,null,null,"2018/19 Q4",null,null,null,null,"Check total number of applications"]
[null,null,null,"All Applications excluding Legacy Cases",null,null,null,null,null,162,"total apps",null,"OK"]
[null,null,null,null,null,null,null,null,null," "]
["Processing Agreements","Total Number of Decisions","% Within Agreed Timescales"]
["TOTAL",26,0.84615384615384615]
["Major Applications",0,"-"]
["Local Applications",23,0.82608695652173914]
["EIA  Applications",0,"-"]
["Other Applications",3,1]
["Applications with processing agreements are not included in the following figures."]
[null,"Total Number of Decisions","Proportion of Decisions","Average Time (Weeks)",null,null,null,null,null,"check sums to total"]
["All Major Developments",0,null,"-",null,null,null,null,null,"OK",{"$error":"#VALUE!"},{"$error":"#VALUE!"}]
["Without Legal Agreement",0,"-","-"]
["With Legal Agreement",0,"-","-"]
[null,null,null,null,null,null,null,null,null,"OK"]
["All Local Developments",117,null,6.9072039072039075,null,null,null,null,null,"OK","OK","OK"]
["Without Legal Agreement",116,0.99145299145299148,6.8842364532019706]
["With Legal Agreement",1,8.5470085470085479E-3,9.5714285714285712]
["Local: less than 2 months",94,0.80341880341880345,6.2234042553191484,null,null,null,null,null,"OK","OK","OK"]
["Local: more than 2 months",23,0.19658119658119658,9.7018633540372683]
[]
["All Local developments (non-householder)",75,null,7.3676190476190468,null,null,null,null,null,"OK","OK","OK"]
["Local: less than 2 months",55,0.73333333333333328,6.4961038961038966]
["Local: more than 2 months",20,0.26666666666666666,9.7642857142857142]
[]
["Householder developments",42,null,6.0850340136054424,null,null,null,null,null,"OK","OK","OK"]
["Local: less than 2 months",39,0.9285714285714286,5.8388278388278385]
["Local: more than 2 months",3,7.1428571428571425E-2,9.2857142857142865]
[]
["Housing Developments - Major",0,null,"-"]
[]
["Housing Developments - Local",26,null,6.8956043956043951,null,null,null,null,null,"OK","OK","OK"]
["Local: less than 2 months",20,0.76923076923076927,5.9714285714285706]
["Local: more than 2 months",6,0.23076923076923078,9.9761904761904763]
[]
["Business & Industry - Major",0,null,"-"]
[]
["Business & Industry - Local",9,null,7,null,null,null,null,null,"OK","OK","OK"]
["Local: less than 2 months",7,0.77777777777777779,6.3265306122448974]
["Local: more than 2 months",2,0.22222222222222221,9.3571428571428577]
[]
["Other developments - Major",0,null,"-",null,null,null,null,null," "]
[]
["Other developments - Local",37,null,7.7876447876447878,null,null,null,null,null,"OK","OK","OK"]
["Local: less than 2 months",26,0.70270270270270274,6.9285714285714288]
["Local: more than 2 months",11,0.29729729729729731,9.8181818181818183]
[]
["EIA Developments",0,null,"-"]
["Other Consents",19,null,6.0902255639097742]
[]
["Decision Making: Applications subject to"]
["Planning/Legal Agreements",1,null,9.5714285714285712]
["Local Reviews",1,null,9,null,null,null,null,null,"Check local review totals"]
[null,null,null,null,null,null,null,null,null,"OK"]
["Decision Making: Local Reviews and Appeals"]
[]
[null,"Total number of decisions","Original decision upheld (%)"]
["Local Reviews",1,1]
["Appeals to Scottish Ministers2",0,"-"]
[]
["Enforcement Activity"]
[]
[null,"Number"]
["Cases Taken Up",31]
["Notices Served",0]
["Reports to Procurator Fiscal",0]
["Prosecutions",0]
["Number of breaches resolved",19]
["Approved and Delegated"]
[]
["Percentage Approved",0.967741935483871,null,null,null,null,null,null,"Approved",150,155,"Total Applications less N17"]
["Percentage Delegated",0.98765432098765427,null,null,null,null,null,null,"Delegated",160,162,"Total Applications"]
[null,null,null,null,null,null,null,null,null,null,223,"applications received"]
["1. For a full description of the categories in this analysis please see NOTES page."]
["2. Cases where the decision was recalled and made by Ministers are not included in these figures."]
["3. Time has not been removed from the decision time for any applications."]

{"sheet":"Argyll and Bute","index":12,"n_rows":77,"n_cols":13,"rows_kept":77,"cut":false,"hidden":false,"merged":[[76,0,77,3],[2,5,2,7],[0,8,0,12],[61,0,61,3],[1,8,1,12]]}
["Planning Authority Performance Statistics1,3",null,null,"Argyll and Bute",null,null,null,null,"For Scottish Government Use during analysis\nPlease do not delete or move these columns"]
[null,null,null,"2018/19 Q4",null,null,null,null,"Check total number of applications"]
[null,null,null,"All Applications excluding Legacy Cases",null,null,null,null,null,288,"total apps",null,"OK"]
[null,null,null,null,null,null,null,null,null," "]
["Processing Agreements","Total Number of Decisions","% Within Agreed Timescales"]
["TOTAL",1,1]
["Major Applications",0,"-"]
["Local Applications",0,"-"]
["EIA  Applications",0,"-"]
["Other Applications",1,1]
["Applications with processing agreements are not included in the following figures."]
[null,"Total Number of Decisions","Proportion of Decisions","Average Time (Weeks)",null,null,null,null,null,"check sums to total"]
["All Major Developments",3,null,48.095238095238095,null,null,null,null,null,"OK","OK",{"$error":"#VALUE!"}]
["Without Legal Agreement",3,1,48.095238095238095]
["With Legal Agreement",0,0,"-"]
[null,null,null,null,null,null,null,null,null,"OK"]
["All Local Developments",236,null,9.6422518159806287,null,null,null,null,null,"OK","OK","OK"]
["Without Legal Agreement",235,0.99576271186440679,9.6382978723404253]
["With Legal Agreement",1,4.2372881355932203E-3,10.571428571428571]
["Local: less than 2 months",151,0.63983050847457623,6.6130558183538311,null,null,null,null,null,"OK","OK","OK"]
["Local: more than 2 months",85,0.36016949152542371,15.023529411764708]
[]
["All Local developments (non-householder)",146,null,11.198630136986301,null,null,null,null,null,"OK","OK","OK"]
["Local: less than 2 months",77,0.5273972602739726,6.8552875695732842]
["Local: more than 2 months",69,0.4726027397260274,16.045548654244307]
[]
["Householder developments",90,null,7.1174603174603179,null,null,null,null,null,"OK","OK","OK"]
["Local: less than 2 months",74,0.82222222222222219,6.3610038610038604]
["Local: more than 2 months",16,0.17777777777777778,10.616071428571429]
[]
["Housing Developments - Major",0,null,"-"]
[]
["Housing Developments - Local",64,null,11.863839285714286,null,null,null,null,null,"OK","OK","OK"]
["Local: less than 2 months",32,0.5,7.1473214285714288]
["Local: more than 2 months",32,0.5,16.580357142857142]
[]
["Business & Industry - Major",0,null,"-"]
[]
["Business & Industry - Local",6,null,10.047619047619047,null,null,null,null,null,"OK","OK","OK"]
["Local: less than 2 months",3,0.5,7.2857142857142856]
["Local: more than 2 months",3,0.5,12.80952380952381]
[]
["Other developments - Major",1,null,25.428571428571427,null,null,null,null,null," "]
[]
["Other developments - Local",59,null,11.084745762711863,null,null,null,null,null,"OK","OK","OK"]
["Local: less than 2 months",30,0.50847457627118642,6.9190476190476184]
["Local: more than 2 months",29,0.49152542372881358,15.394088669950738]
[]
["EIA Developments",3,null,9.3333333333333321]
["Other Consents",45,null,6.9714285714285706]
[]
["Decision Making: Applications subject to"]
["Planning/Legal Agreements",1,null,10.571428571428571]
["Local Reviews",3,null,17.80952380952381,null,null,null,null,null,"Check local review totals"]
[null,null,null,null,null,null,null,null,null,"OK"]
["Decision Making: Local Reviews and Appeals"]
[]
[null,"Total number of decisions","Original decision upheld (%)"]
["Local Reviews",3,0.33333333333333331]
["Appeals to Scottish Ministers2",1,0]
[]
["Enforcement Activity"]
[]
[null,"Number"]
["Cases Taken Up",52]
["Notices Served",12]
["Reports to Procurator Fiscal",0]
["Prosecutions",0]
["Number of breaches resolved",27]
["Approved and Delegated"]
[]
["Percentage Approved",0.98897058823529416,null,null,null,null,null,null,"Approved",269,272,"Total Applications less N17"]
["Percentage Delegated",0.96527777777777779,null,null,null,null,null,null,"Delegated",278,288,"Total Applications"]
[null,null,null,null,null,null,null,null,null,null,407,"applications received"]
["1. For a full description of the categories in this analysis please see NOTES page."]
["2. Cases where the decision was recalled and made by Ministers are not included in these figures."]
["3. Time has been removed from the decision time for 30 applications where delays were outwith the control of the local authority."]

{"sheet":"Cairngorms National Park","index":13,"n_rows":77,"n_cols":13,"rows_kept":77,"cut":false,"hidden":false,"merged":[[61,0,61,3],[2,5,2,7],[0,8,0,12],[1,8,1,12]]}
["Planning Authority Performance Statistics1,3",null,null,"Cairngorms National Park",null,null,null,null,"For Scottish Government Use during analysis\nPlease do not delete or move these columns"]
[null,null,null,"2018/19 Q4",null,null,null,null,"Check total number of applications"]
[null,null,null,"All Applications excluding Legacy Cases",null,null,null,null,null,5,"total apps",null,"OK"]
[null,null,null,null,null,null,null,null,null," "]
["Processing Agreements","Total Number of Decisions","% Within Agreed Timescales"]
["TOTAL",5,0.8]
["Major Applications",0,"-"]
["Local Applications",5,0.8]
["EIA  Applications",0,"-"]
["Other Applications",0,"-"]
["Applications with processing agreements are not included in the following figures."]
[null,"Total Number of Decisions","Proportion of Decisions","Average Time (Weeks)",null,null,null,null,null,"check sums to total"]
["All Major Developments",0,null,"-",null,null,null,null,null,"OK",{"$error":"#VALUE!"},{"$error":"#VALUE!"}]
["Without Legal Agreement",0,"-","-"]
["With Legal Agreement",0,"-","-"]
[null,null,null,null,null,null,null,null,null,"OK"]
["All Local Developments",0,null,"-",null,null,null,null,null,"OK",{"$error":"#VALUE!"},{"$error":"#VALUE!"}]
["Without Legal Agreement",0,"-","-"]
["With Legal Agreement",0,"-","-"]
["Local: less than 2 months",0,"-","-",null,null,null,null,null,"OK",{"$error":"#VALUE!"},{"$error":"#VALUE!"}]
["Local: more than 2 months",0,"-","-"]
[]
["All Local developments (non-householder)",0,null,"-",null,null,null,null,null,"OK",{"$error":"#VALUE!"},{"$error":"#VALUE!"}]
["Local: less than 2 months",0,"-","-"]
["Local: more than 2 months",0,"-","-"]
[]
["Householder developments",0,null,"-",null,null,null,null,null,"OK",{"$error":"#VALUE!"},{"$error":"#VALUE!"}]
["Local: less than 2 months",0,"-","-"]
["Local: more than 2 months",0,"-","-"]
[]
["Housing Developments - Major",0,null,"-"]
[]
["Housing Developments - Local",0,null,"-",null,null,null,null,null,"OK",{"$error":"#VALUE!"},{"$error":"#VALUE!"}]
["Local: less than 2 months",0,"-","-"]
["Local: more than 2 months",0,"-","-"]
[]
["Business & Industry - Major",0,null,"-"]
[]
["Business & Industry - Local",0,null,"-",null,null,null,null,null,"OK",{"$error":"#VALUE!"},{"$error":"#VALUE!"}]
["Local: less than 2 months",0,"-","-"]
["Local: more than 2 months",0,"-","-"]
[]
["Other developments - Major",0,null,"-",null,null,null,null,null," "]
[]
["Other developments - Local",0,null,"-",null,null,null,null,null,"OK",{"$error":"#VALUE!"},{"$error":"#VALUE!"}]
["Local: less than 2 months",0,"-","-"]
["Local: more than 2 months",0,"-","-"]
[]
["EIA Developments",0,null,"-"]
["Other Consents",0,null,"-"]
[]
["Decision Making: Applications subject to"]
["Planning/Legal Agreements",0,null,"-"]
["Local Reviews",0,null,"-",null,null,null,null,null,"Check local review totals"]
[null,null,null,null,null,null,null,null,null,"OK"]
["Decision Making: Local Reviews and Appeals"]
[]
[null,"Total number of decisions","Original decision upheld (%)"]
["Local Reviews",0,"-"]
["Appeals to Scottish Ministers2",0,"-"]
[]
["Enforcement Activity"]
[]
[null,"Number"]
["Cases Taken Up",16]
["Notices Served",0]
["Reports to Procurator Fiscal",0]
["Prosecutions",0]
["Number of breaches resolved",8]
["Approved and Delegated"]
[]
["Percentage Approved",1,null,null,null,null,null,null,"Approved",5,5,"Total Applications less N17"]
["Percentage Delegated",0,null,null,null,null,null,null,"Delegated",0,5,"Total Applications"]
[null,null,null,null,null,null,null,null,null,null,12,"applications received"]
["1. For a full description of the categories in this analysis please see NOTES page."]
["2. Cases where the decision was recalled and made by Ministers are not included in these figures."]
["3. Time has not been removed from the decision time for any applications."]

{"sheet":"Clackmannanshire","index":14,"n_rows":77,"n_cols":13,"rows_kept":77,"cut":false,"hidden":false,"merged":[[61,0,61,3],[76,0,77,3],[2,5,2,7],[0,8,0,12],[1,8,1,12]]}
["Planning Authority Performance Statistics1,3",null,null,"Clackmannanshire",null,null,null,null,"For Scottish Government Use during analysis\nPlease do not delete or move these columns"]
[null,null,null,"2018/19 Q4",null,null,null,null,"Check total number of applications"]
[null,null,null,"All Applications excluding Legacy Cases",null,null,null,null,null,62,"total apps",null,"OK"]
[null,null,null,null,null,null,null,null,null," "]
["Processing Agreements","Total Number of Decisions","% Within Agreed Timescales"]
["TOTAL",0,"-"]
["Major Applications",0,"-"]
["Local Applications",0,"-"]
["EIA  Applications",0,"-"]
["Other Applications",0,"-"]
["Applications with processing agreements are not included in the following figures."]
[null,"Total Number of Decisions","Proportion of Decisions","Average Time (Weeks)",null,null,null,null,null,"check sums to total"]
["All Major Developments",1,null,35.571428571428569,null,null,null,null,null,"OK","OK",{"$error":"#VALUE!"}]
["Without Legal Agreement",1,1,35.571428571428569]
["With Legal Agreement",0,0,"-"]
[null,null,null,null,null,null,null,null,null,"OK"]
["All Local Developments",49,null,8.0641399416909625,null,null,null,null,null,"OK","OK",{"$error":"#VALUE!"}]
["Without Legal Agreement",49,1,8.0641399416909625]
["With Legal Agreement",0,0,"-"]
["Local: less than 2 months",45,0.91836734693877553,5.3428571428571425,null,null,null,null,null,"OK","OK","OK"]
["Local: more than 2 months",4,8.1632653061224483E-2,38.678571428571431]
[]
["All Local developments (non-householder)",17,null,14.050420168067228,null,null,null,null,null,"OK","OK","OK"]
["Local: less than 2 months",13,0.76470588235294112,6.4725274725274726]
["Local: more than 2 months",4,0.23529411764705882,38.678571428571431]
[]
["Householder developments",32,null,4.8839285714285712,null,null,null,null,null,"OK","OK",{"$error":"#VALUE!"}]
["Local: less than 2 months",32,1,4.8839285714285712]
["Local: more than 2 months",0,0,"-"]
[]
["Housing Developments - Major",1,null,35.571428571428569]
[]
["Housing Developments - Local",7,null,9.6326530612244898,null,null,null,null,null,"OK","OK","OK"]
["Local: less than 2 months",5,0.7142857142857143,6.6857142857142851]
["Local: more than 2 months",2,0.2857142857142857,17]
[]
["Business & Industry - Major",0,null,"-"]
[]
["Business & Industry - Local",6,null,7.2619047619047619,null,null,null,null,null,"OK","OK","OK"]
["Local: less than 2 months",5,0.83333333333333337,6.8285714285714283]
["Local: more than 2 months",1,0.16666666666666666,9.4285714285714288]
[]
["Other developments - Major",0,null,"-",null,null,null,null,null," "]
[]
["Other developments - Local",3,null,5.5238095238095237,null,null,null,null,null,"OK","OK",{"$error":"#VALUE!"}]
["Local: less than 2 months",3,1,5.5238095238095237]
["Local: more than 2 months",0,0,"-"]
[]
["EIA Developments",0,null,"-"]
["Other Consents",12,null,4.9285714285714288]
[]
["Decision Making: Applications subject to"]
["Planning/Legal Agreements",0,null,"-"]
["Local Reviews",2,null,21.5,null,null,null,null,null,"Check local review totals"]
[null,null,null,null,null,null,null,null,null,"OK"]
["Decision Making: Local Reviews and Appeals"]
[]
[null,"Total number of decisions","Original decision upheld (%)"]
["Local Reviews",2,0]
["Appeals to Scottish Ministers2",0,"-"]
[]
["Enforcement Activity"]
[]
[null,"Number"]
["Cases Taken Up",9]
["Notices Served",0]
["Reports to Procurator Fiscal",0]
["Prosecutions",0]
["Number of breaches resolved",11]
["Approved and Delegated"]
[]
["Percentage Approved",1,null,null,null,null,null,null,"Approved",59,59,"Total Applications less N17"]
["Percentage Delegated",0.967741935483871,null,null,null,null,null,null,"Delegated",60,62,"Total Applications"]
[null,null,null,null,null,null,null,null,null,null,60,"applications received"]
["1. For a full description of the categories in this analysis please see NOTES page."]
["2. Cases where the decision was recalled and made by Ministers are not included in these figures."]
["3. Time has been removed from the decision time for 6 applications where delays were outwith the control of the local authority."]

{"sheet":"Dumfries and Galloway","index":15,"n_rows":77,"n_cols":13,"rows_kept":77,"cut":false,"hidden":false,"merged":[[61,0,61,3],[76,0,77,3],[2,5,2,7],[0,8,0,12],[1,8,1,12]]}
["Planning Authority Performance Statistics1,3",null,null,"Dumfries and Galloway",null,null,null,null,"For Scottish Government Use during analysis\nPlease do not delete or move these columns"]
[null,null,null,"2018/19 Q4",null,null,null,null,"Check total number of applications"]
[null,null,null,"All Applications excluding Legacy Cases",null,null,null,null,null,330,"total apps",null,"OK"]
[null,null,null,null,null,null,null,null,null," "]
["Processing Agreements","Total Number of Decisions","% Within Agreed Timescales"]
["TOTAL",9,1]
["Major Applications",0,"-"]
["Local Applications",8,1]
["EIA  Applications",0,"-"]
["Other Applications",1,1]
["Applications with processing agreements are not included in the following figures."]
[null,"Total Number of Decisions","Proportion of Decisions","Average Time (Weeks)",null,null,null,null,null,"check sums to total"]
["All Major Developments",2,null,22,null,null,null,null,null,"OK","OK","OK"]
["Without Legal Agreement",1,0.5,15.714285714285714]
["With Legal Agreement",1,0.5,28.285714285714285]
[null,null,null,null,null,null,null,null,null,"OK"]
["All Local Developments",258,null,8.2281284606865999,null,null,null,null,null,"OK","OK",{"$error":"#VALUE!"}]
["Without Legal Agreement",258,1,8.2281284606865999]
["With Legal Agreement",0,0,"-"]
["Local: less than 2 months",172,0.66666666666666663,5.9252491694352161,null,null,null,null,null,"OK","OK","OK"]
["Local: more than 2 months",86,0.33333333333333331,12.833887043189367]
[]
["All Local developments (non-householder)",157,null,9.7106460418562328,null,null,null,null,null,"OK","OK","OK"]
["Local: less than 2 months",76,0.48407643312101911,6.246240601503759]
["Local: more than 2 months",81,0.51592356687898089,12.961199294532628]
[]
["Householder developments",101,null,5.9236209335219234,null,null,null,null,null,"OK","OK","OK"]
["Local: less than 2 months",96,0.95049504950495045,5.6711309523809517]
["Local: more than 2 months",5,4.9504950495049507E-2,10.771428571428572]
[]
["Housing Developments - Major",0,null,"-"]
[]
["Housing Developments - Local",56,null,12.147959183673469,null,null,null,null,null,"OK","OK","OK"]
["Local: less than 2 months",18,0.32142857142857145,6.7777777777777777]
["Local: more than 2 months",38,0.6785714285714286,14.69172932330827]
[]
["Business & Industry - Major",0,null,"-"]
[]
["Business & Industry - Local",0,null,"-",null,null,null,null,null,"OK",{"$error":"#VALUE!"},{"$error":"#VALUE!"}]
["Local: less than 2 months",0,"-","-"]
["Local: more than 2 months",0,"-","-"]
[]
["Other developments - Major",1,null,15.714285714285714,null,null,null,null,null," "]
[]
["Other developments - Local",90,null,8.2158730158730169,null,null,null,null,null,"OK","OK","OK"]
["Local: less than 2 months",53,0.58888888888888891,6.0539083557951487]
["Local: more than 2 months",37,0.41111111111111109,11.312741312741313]
[]
["EIA Developments",0,null,"-"]
["Other Consents",61,null,7.5948477751756442]
[]
["Decision Making: Applications subject to"]
["Planning/Legal Agreements",1,null,28.285714285714285]
["Local Reviews",5,null,17.085714285714285,null,null,null,null,null,"Check local review totals"]
[null,null,null,null,null,null,null,null,null,"OK"]
["Decision Making: Local Reviews and Appeals"]
[]
[null,"Total number of decisions","Original decision upheld (%)"]
["Local Reviews",5,0.4]
["Appeals to Scottish Ministers2",6,0.5]
[]
["Enforcement Activity"]
[]
[null,"Number"]
["Cases Taken Up",35]
["Notices Served",2]
["Reports to Procurator Fiscal",0]
["Prosecutions",0]
["Number of breaches resolved",39]
["Approved and Delegated"]
[]
["Percentage Approved",0.94444444444444442,null,null,null,null,null,null,"Approved",289,306,"Total Applications less N17"]
["Percentage Delegated",0.95454545454545459,null,null,null,null,null,null,"Delegated",315,330,"Total Applications"]
[null,null,null,null,null,null,null,null,null,null,369,"applications received"]
["1. For a full description of the categories in this analysis please see NOTES page."]
["2. Cases where the decision was recalled and made by Ministers are not included in these figures."]
["3. Time has been removed from the decision time for 13 applications where delays were outwith the control of the local authority."]

{"sheet":"Dundee","index":16,"n_rows":77,"n_cols":13,"rows_kept":77,"cut":false,"hidden":false,"merged":[[61,0,61,3],[76,0,77,3],[2,5,2,7],[0,8,0,12],[1,8,1,12]]}
["Planning Authority Performance Statistics1,3",null,null,"Dundee City",null,null,null,null,"For Scottish Government Use during analysis\nPlease do not delete or move these columns"]
[null,null,null,"2018/19 Q4",null,null,null,null,"Check total number of applications"]
[null,null,null,"All Applications excluding Legacy Cases",null,null,null,null,null,127,"total apps",null,"OK"]
[null,null,null,null,null,null,null,null,null," "]
["Processing Agreements","Total Number of Decisions","% Within Agreed Timescales"]
["TOTAL",0,"-"]
["Major Applications",0,"-"]
["Local Applications",0,"-"]
["EIA  Applications",0,"-"]
["Other Applications",0,"-"]
["Applications with processing agreements are not included in the following figures."]
[null,"Total Number of Decisions","Proportion of Decisions","Average Time (Weeks)",null,null,null,null,null,"check sums to total"]
["All Major Developments",0,null,"-",null,null,null,null,null,"OK",{"$error":"#VALUE!"},{"$error":"#VALUE!"}]
["Without Legal Agreement",0,"-","-"]
["With Legal Agreement",0,"-","-"]
[null,null,null,null,null,null,null,null,null,"OK"]
["All Local Developments",86,null,8.6926910299003328,null,null,null,null,null,"OK","OK",{"$error":"#VALUE!"}]
["Without Legal Agreement",86,1,8.6926910299003328]
["With Legal Agreement",0,0,"-"]
["Local: less than 2 months",64,0.7441860465116279,7.2008928571428568,null,null,null,null,null,"OK","OK","OK"]
["Local: more than 2 months",22,0.2558139534883721,13.032467532467534]
[]
["All Local developments (non-householder)",49,null,9.5306122448979576,null,null,null,null,null,"OK","OK","OK"]
["Local: less than 2 months",30,0.61224489795918369,7.1285714285714281]
["Local: more than 2 months",19,0.38775510204081631,13.323308270676691]
[]
["Householder developments",37,null,7.583011583011583,null,null,null,null,null,"OK","OK","OK"]
["Local: less than 2 months",34,0.91891891891891897,7.2647058823529411]
["Local: more than 2 months",3,8.1081081081081086E-2,11.19047619047619]
[]
["Housing Developments - Major",0,null,"-"]
[]
["Housing Developments - Local",14,null,12.020408163265305,null,null,null,null,null,"OK","OK","OK"]
["Local: less than 2 months",4,0.2857142857142857,7.4285714285714288]
["Local: more than 2 months",10,0.7142857142857143,13.857142857142858]
[]
["Business & Industry - Major",0,null,"-"]
[]
["Business & Industry - Local",12,null,9.5952380952380967,null,null,null,null,null,"OK","OK","OK"]
["Local: less than 2 months",6,0.5,7.5]
["Local: more than 2 months",6,0.5,11.69047619047619]
[]
["Other developments - Major",0,null,"-",null,null,null,null,null," "]
[]
["Other developments - Local",20,null,7.9357142857142851,null,null,null,null,null,"OK","OK","OK"]
["Local: less than 2 months",18,0.9,6.9523809523809517]
["Local: more than 2 months",2,0.1,16.785714285714285]
[]
["EIA Developments",0,null,"-"]
["Other Consents",41,null,8.1846689895470384]
[]
["Decision Making: Applications subject to"]
["Planning/Legal Agreements",0,null,"-"]
["Local Reviews",0,null,"-",null,null,null,null,null,"Check local review totals"]
[null,null,null,null,null,null,null,null,null,"OK"]
["Decision Making: Local Reviews and Appeals"]
[]
[null,"Total number of decisions","Original decision upheld (%)"]
["Local Reviews",0,"-"]
["Appeals to Scottish Ministers2",0,"-"]
[]
["Enforcement Activity"]
[]
[null,"Number"]
["Cases Taken Up",31]
["Notices Served",1]
["Reports to Procurator Fiscal",0]
["Prosecutions",0]
["Number of breaches resolved",4]
["Approved and Delegated"]
[]
["Percentage Approved",0.93162393162393164,null,null,null,null,null,null,"Approved",109,117,"Total Applications less N17"]
["Percentage Delegated",0.96850393700787396,null,null,null,null,null,null,"Delegated",123,127,"Total Applications"]
[null,null,null,null,null,null,null,null,null,null,186,"applications received"]
["1. For a full description of the categories in this analysis please see NOTES page."]
["2. Cases where the decision was recalled and made by Ministers are not included in these figures."]
["3. Time has been removed from the decision time for 7 applications where delays were outwith the control of the local authority."]

{"sheet":"East Ayrshire","index":17,"n_rows":77,"n_cols":13,"rows_kept":77,"cut":false,"hidden":false,"merged":[[79,0,80,3],[61,0,61,3],[76,0,77,3],[2,5,2,7],[0,8,0,12],[1,8,1,12]]}
["Planning Authority Performance Statistics1,3",null,null,"East Ayrshire",null,null,null,null,"For Scottish Government Use during analysis\nPlease do not delete or move these columns"]
[null,null,null,"2018/19 Q4",null,null,null,null,"Check total number of applications"]
[null,null,null,"All Applications excluding Legacy Cases",null,null,null,null,null,94,"total apps",null,"OK"]
[null,null,null,null,null,null,null,null,null," "]
["Processing Agreements","Total Number of Decisions","% Within Agreed Timescales"]
["TOTAL",9,0]
["Major Applications",0,"-"]
["Local Applications",9,0]
["EIA  Applications",0,"-"]
["Other Applications",0,"-"]
["Applications with processing agreements are not included in the following figures."]
[null,"Total Number of Decisions","Proportion of Decisions","Average Time (Weeks)",null,null,null,null,null,"check sums to total"]
["All Major Developments",1,null,37.857142857142854,null,null,null,null,null,"OK","OK",{"$error":"#VALUE!"}]
["Without Legal Agreement",1,1,37.857142857142854]
["With Legal Agreement",0,0,"-"]
[null,null,null,null,null,null,null,null,null,"OK"]
["All Local Developments",70,null,8.3285714285714274,null,null,null,null,null,"OK","OK",{"$error":"#VALUE!"}]
["Without Legal Agreement",70,1,8.3285714285714274]
["With Legal Agreement",0,0,"-"]
["Local: less than 2 months",61,0.87142857142857144,7.004683840749415,null,null,null,null,null,"OK","OK","OK"]
["Local: more than 2 months",9,0.12857142857142856,17.301587301587301]
[]
["All Local developments (non-householder)",44,null,9.1363636363636367,null,null,null,null,null,"OK","OK","OK"]
["Local: less than 2 months",36,0.81818181818181823,7.1468253968253972]
["Local: more than 2 months",8,0.18181818181818182,18.089285714285715]
[]
["Householder developments",26,null,6.9615384615384617,null,null,null,null,null,"OK","OK","OK"]
["Local: less than 2 months",25,0.96153846153846156,6.8]
["Local: more than 2 months",1,3.8461538461538464E-2,11]
[]
["Housing Developments - Major",1,null,37.857142857142854]
[]
["Housing Developments - Local",13,null,10.967032967032967,null,null,null,null,null,"OK","OK","OK"]
["Local: less than 2 months",10,0.76923076923076927,7.4857142857142858]
["Local: more than 2 months",3,0.23076923076923078,22.571428571428573]
[]
["Business & Industry - Major",0,null,"-"]
[]
["Business & Industry - Local",11,null,8.5714285714285712,null,null,null,null,null,"OK","OK","OK"]
["Local: less than 2 months",10,0.90909090909090906,6.5714285714285712]
["Local: more than 2 months",1,9.0909090909090912E-2,28.571428571428573]
[]
["Other developments - Major",0,null,"-",null,null,null,null,null," "]
[]
["Other developments - Local",15,null,8.8380952380952387,null,null,null,null,null,"OK","OK","OK"]
["Local: less than 2 months",11,0.73333333333333328,7.6493506493506498]
["Local: more than 2 months",4,0.26666666666666666,12.107142857142858]
[]
["EIA Developments",0,null,"-"]
["Other Consents",14,null,6.4183673469387754]
[]
["Decision Making: Applications subject to"]
["Planning/Legal Agreements",0,null,"-"]
["Local Reviews",5,null,9.3714285714285701,null,null,null,null,null,"Check local review totals"]
[null,null,null,null,null,null,null,null,null,"OK"]
["Decision Making: Local Reviews and Appeals"]
[]
[null,"Total number of decisions","Original decision upheld (%)"]
["Local Reviews",5,0.6]
["Appeals to Scottish Ministers2",2,0.5]
[]
["Enforcement Activity"]
[]
[null,"Number"]
["Cases Taken Up",39]
["Notices Served",5]
["Reports to Procurator Fiscal",0]
["Prosecutions",0]
["Number of breaches resolved",99]
["Approved and Delegated"]
[]
["Percentage Approved",0.93406593406593408,null,null,null,null,null,null,"Approved",85,91,"Total Applications less N17"]
["Percentage Delegated",0.96808510638297873,null,null,null,null,null,null,"Delegated",91,94,"Total Applications"]
[null,null,null,null,null,null,null,null,null,null,158,"applications received"]
["1. For a full description of the categories in this analysis please see NOTES page."]
["2. Cases where the decision was recalled and made by Ministers are not included in these figures."]
["3. Time has been removed from the decision time for 7 applications where delays were outwith the control of the local authority."]

{"sheet":"East Dunbartonshire","index":18,"n_rows":77,"n_cols":13,"rows_kept":77,"cut":false,"hidden":false,"merged":[[76,0,77,3],[2,5,2,7],[0,8,0,12],[61,0,61,3],[1,8,1,12]]}
["Planning Authority Performance Statistics1,3",null,null,"East Dunbartonshire",null,null,null,null,"For Scottish Government Use during analysis\nPlease do not delete or move these columns"]
[null,null,null,"2018/19 Q4",null,null,null,null,"Check total number of applications"]
[null,null,null,"All Applications excluding Legacy Cases",null,null,null,null,null,145,"total apps",null,"OK"]
[null,null,null,null,null,null,null,null,null," "]
["Processing Agreements","Total Number of Decisions","% Within Agreed Timescales"]
["TOTAL",0,"-"]
["Major Applications",0,"-"]
["Local Applications",0,"-"]
["EIA  Applications",0,"-"]
["Other Applications",0,"-"]
["Applications with processing agreements are not included in the following figures."]
[null,"Total Number of Decisions","Proportion of Decisions","Average Time (Weeks)",null,null,null,null,null,"check sums to total"]
["All Major Developments",1,null,82.714285714285708,null,null,null,null,null,"OK","OK",{"$error":"#VALUE!"}]
["Without Legal Agreement",0,0,"-"]
["With Legal Agreement",1,1,82.714285714285708]
[null,null,null,null,null,null,null,null,null,"OK"]
["All Local Developments",124,null,7.8444700460829493,null,null,null,null,null,"OK","OK",{"$error":"#VALUE!"}]
["Without Legal Agreement",124,1,7.8444700460829493]
["With Legal Agreement",0,0,"-"]
["Local: less than 2 months",115,0.92741935483870963,7.4968944099378882,null,null,null,null,null,"OK","OK","OK"]
["Local: more than 2 months",9,7.2580645161290328E-2,12.285714285714286]
[]
["All Local developments (non-householder)",13,null,8.4505494505494507,null,null,null,null,null,"OK","OK","OK"]
["Local: less than 2 months",11,0.84615384615384615,7.5714285714285712]
["Local: more than 2 months",2,0.15384615384615385,13.285714285714286]
[]
["Householder developments",111,null,7.7734877734877736,null,null,null,null,null,"OK","OK","OK"]
["Local: less than 2 months",104,0.93693693693693691,7.4890109890109882]
["Local: more than 2 months",7,6.3063063063063057E-2,12]
[]
["Housing Developments - Major",1,null,82.714285714285708]
[]
["Housing Developments - Local",5,null,8.5714285714285712,null,null,null,null,null,"OK","OK","OK"]
["Local: less than 2 months",4,0.8,8.3571428571428577]
["Local: more than 2 months",1,0.2,9.4285714285714288]
[]
["Business & Industry - Major",0,null,"-"]
[]
["Business & Industry - Local",0,null,"-",null,null,null,null,null,"OK",{"$error":"#VALUE!"},{"$error":"#VALUE!"}]
["Local: less than 2 months",0,"-","-"]
["Local: more than 2 months",0,"-","-"]
[]
["Other developments - Major",0,null,"-",null,null,null,null,null," "]
[]
["Other developments - Local",8,null,8.375,null,null,null,null,null,"OK","OK","OK"]
["Local: less than 2 months",7,0.875,7.1224489795918364]
["Local: more than 2 months",1,0.125,17.142857142857142]
[]
["EIA Developments",0,null,"-"]
["Other Consents",20,null,6.9071428571428575]
[]
["Decision Making: Applications subject to"]
["Planning/Legal Agreements",1,null,82.714285714285708]
["Local Reviews",4,null,13.5,null,null,null,null,null,"Check local review totals"]
[null,null,null,null,null,null,null,null,null,"OK"]
["Decision Making: Local Reviews and Appeals"]
[]
[null,"Total number of decisions","Original decision upheld (%)"]
["Local Reviews",4,0.75]
["Appeals to Scottish Ministers2",1,1]
[]
["Enforcement Activity"]
[]
[null,"Number"]
["Cases Taken Up",34]
["Notices Served",0]
["Reports to Procurator Fiscal",0]
["Prosecutions",0]
["Number of breaches resolved",7]
["Approved and Delegated"]
[]
["Percentage Approved",0.93233082706766912,null,null,null,null,null,null,"Approved",124,133,"Total Applications less N17"]
["Percentage Delegated",0.98620689655172411,null,null,null,null,null,null,"Delegated",143,145,"Total Applications"]
[null,null,null,null,null,null,null,null,null,null,203,"applications received"]
["1. For a full description of the categories in this analysis please see NOTES page."]
["2. Cases where the decision was recalled and made by Ministers are not included in these figures."]
["3. Time has been removed from the decision time for 30 applications where delays were outwith the control of the local authority."]

{"sheet":"East Lothian","index":19,"n_rows":77,"n_cols":14,"rows_kept":77,"cut":false,"hidden":false,"merged":[[79,0,80,3],[76,0,77,3],[2,5,2,7],[0,8,0,12],[61,0,61,3],[4,9,4,12],[1,8,1,12]]}
["Planning Authority Performance Statistics1,3",null,null,"East Lothian",null,null,null,null,"For Scottish Government Use during analysis\nPlease do not delete or move these columns"]
[null,null,null,"2018/19 Q4",null,null,null,null,"Check total number of applications"]
[null,null,null,"All Applications excluding Legacy Cases",null,null,null,null,null,268,"total apps",null,"error",267]
[null,null,null,null,null,null,null,null,null," "]
["Processing Agreements","Total Number of Decisions","% Within Agreed Timescales",null,null,null,null,null,null,"The difference of one is due to a legacy cases therefore not in error. "]
["TOTAL",21,1]
["Major Applications",0,"-"]
["Local Applications",20,1]
["EIA  Applications",0,"-"]
["Other Applications",1,1]
["Applications with processing agreements are not included in the following figures."]
[null,"Total Number of Decisions","Proportion of Decisions","Average Time (Weeks)",null,null,null,null,null,"check sums to total"]
["All Major Developments",1,null,22.285714285714285,null,null,null,null,null,"OK","OK",{"$error":"#VALUE!"}]
["Without Legal Agreement",0,0,"-"]
["With Legal Agreement",1,1,22.285714285714285]
[null,null,null,null,null,null,null,null,null,"OK"]
["All Local Developments",195,null,9.1626373626373638,null,null,null,null,null,"OK","OK","OK"]
["Without Legal Agreement",193,0.98974358974358978,9.0207253886010363]
["With Legal Agreement",2,1.0256410256410256E-2,22.857142857142858]
["Local: less than 2 months",172,0.88205128205128203,7.2126245847176085,null,null,null,null,null,"OK","OK","OK"]
["Local: more than 2 months",23,0.11794871794871795,23.745341614906831]
[]
["All Local developments (non-householder)",85,null,11.932773109243698,null,null,null,null,null,"OK","OK","OK"]
["Local: less than 2 months",67,0.78823529411764703,7.748400852878464]
["Local: more than 2 months",18,0.21176470588235294,27.507936507936506]
[]
["Householder developments",110,null,7.0220779220779219,null,null,null,null,null,"OK","OK","OK"]
["Local: less than 2 months",105,0.95454545454545459,6.870748299319728]
["Local: more than 2 months",5,4.5454545454545456E-2,10.200000000000001]
[]
["Housing Developments - Major",1,null,22.285714285714285]
[]
["Housing Developments - Local",19,null,23.736842105263158,null,null,null,null,null,"OK","OK","OK"]
["Local: less than 2 months",8,0.42105263157894735,8.3928571428571423]
["Local: more than 2 months",11,0.57894736842105265,34.896103896103895]
[]
["Business & Industry - Major",0,null,"-"]
[]
["Business & Industry - Local",7,null,8.204081632653061,null,null,null,null,null,"OK","OK","OK"]
["Local: less than 2 months",6,0.8571428571428571,8.0714285714285712]
["Local: more than 2 months",1,0.14285714285714285,9]
[]
["Other developments - Major",0,null,"-",null,null,null,null,null," "]
[]
["Other developments - Local",55,null,8.5922077922077928,null,null,null,null,null,"OK","OK","OK"]
["Local: less than 2 months",49,0.89090909090909087,7.5568513119533529]
["Local: more than 2 months",6,0.10909090909090909,17.047619047619047]
[]
["EIA Developments",0,null,"-"]
["Other Consents",50,null,7.9885714285714284]
[]
["Decision Making: Applications subject to"]
["Planning/Legal Agreements",3,null,22.666666666666664]
["Local Reviews",2,null,9.6428571428571423,null,null,null,null,null,"Check local review totals"]
[null,null,null,null,null,null,null,null,null,"OK"]
["Decision Making: Local Reviews and Appeals"]
[]
[null,"Total number of decisions","Original decision upheld (%)"]
["Local Reviews",2,0.5]
["Appeals to Scottish Ministers2",1,0]
[]
["Enforcement Activity"]
[]
[null,"Number"]
["Cases Taken Up",62]
["Notices Served",7]
["Reports to Procurator Fiscal",0]
["Prosecutions",0]
["Number of breaches resolved",18]
["Approved and Delegated"]
[]
["Percentage Approved",0.96564885496183206,null,null,null,null,null,null,"Approved",253,262,"Total Applications less N17"]
["Percentage Delegated",0.98880597014925375,null,null,null,null,null,null,"Delegated",265,268,"Total Applications"]
[null,null,null,null,null,null,null,null,null,null,258,"applications received"]
["1. For a full description of the categories in this analysis please see NOTES page."]
["2. Cases where the decision was recalled and made by Ministers are not included in these figures."]
["3. Time has been removed from the decision time for 17 applications where delays were outwith the control of the local authority."]

{"sheet":"East Renfrewshire","index":20,"n_rows":77,"n_cols":13,"rows_kept":77,"cut":false,"hidden":false,"merged":[[61,0,61,3],[76,0,77,3],[2,5,2,7],[0,8,0,12],[1,8,1,12]]}
["Planning Authority Performance Statistics1,3",null,null,"East Renfrewshire",null,null,null,null,"For Scottish Government Use during analysis\nPlease do not delete or move these columns"]
[null,null,null,"2018/19 Q4",null,null,null,null,"Check total number of applications"]
[null,null,null,"All Applications excluding Legacy Cases",null,null,null,null,null,136,"total apps",null,"OK"]
[null,null,null,null,null,null,null,null,null," "]
["Processing Agreements","Total Number of Decisions","% Within Agreed Timescales"]
["TOTAL",0,"-"]
["Major Applications",0,"-"]
["Local Applications",0,"-"]
["EIA  Applications",0,"-"]
["Other Applications",0,"-"]
["Applications with processing agreements are not included in the following figures."]
[null,"Total Number of Decisions","Proportion of Decisions","Average Time (Weeks)",null,null,null,null,null,"check sums to total"]
["All Major Developments",0,null,"-",null,null,null,null,null,"OK",{"$error":"#VALUE!"},{"$error":"#VALUE!"}]
["Without Legal Agreement",0,"-","-"]
["With Legal Agreement",0,"-","-"]
[null,null,null,null,null,null,null,null,null,"OK"]
["All Local Developments",126,null,8.5022675736961464,null,null,null,null,null,"OK","OK",{"$error":"#VALUE!"}]
["Without Legal Agreement",126,1,8.5022675736961464]
["With Legal Agreement",0,0,"-"]
["Local: less than 2 months",88,0.69841269841269837,6.6931818181818183,null,null,null,null,null,"OK","OK","OK"]
["Local: more than 2 months",38,0.30158730158730157,12.69172932330827]
[]
["All Local developments (non-householder)",34,null,11.348739495798318,null,null,null,null,null,"OK","OK","OK"]
["Local: less than 2 months",13,0.38235294117647056,7.0769230769230775]
["Local: more than 2 months",21,0.61764705882352944,13.993197278911564]
[]
["Householder developments",92,null,7.4503105590062111,null,null,null,null,null,"OK","OK","OK"]
["Local: less than 2 months",75,0.81521739130434778,6.626666666666666]
["Local: more than 2 months",17,0.18478260869565216,11.08403361344538]
[]
["Housing Developments - Major",0,null,"-"]
[]
["Housing Developments - Local",10,null,10.271428571428572,null,null,null,null,null,"OK","OK","OK"]
["Local: less than 2 months",5,0.5,6.9428571428571431]
["Local: more than 2 months",5,0.5,13.6]
[]
["Business & Industry - Major",0,null,"-"]
[]
["Business & Industry - Local",2,null,9.7857142857142865,null,null,null,null,null,"OK","OK",{"$error":"#VALUE!"}]
["Local: less than 2 months",0,0,"-"]
["Local: more than 2 months",2,1,9.7857142857142865]
[]
["Other developments - Major",0,null,"-",null,null,null,null,null," "]
[]
["Other developments - Local",20,null,11.442857142857141,null,null,null,null,null,"OK","OK","OK"]
["Local: less than 2 months",8,0.4,7.1607142857142856]
["Local: more than 2 months",12,0.6,14.297619047619047]
[]
["EIA Developments",0,null,"-"]
["Other Consents",10,null,6.6857142857142851]
[]
["Decision Making: Applications subject to"]
["Planning/Legal Agreements",0,null,"-"]
["Local Reviews",3,null,4.6190476190476195,null,null,null,null,null,"Check local review totals"]
[null,null,null,null,null,null,null,null,null,"OK"]
["Decision Making: Local Reviews and Appeals"]
[]
[null,"Total number of decisions","Original decision upheld (%)"]
["Local Reviews",3,0.66666666666666663]
["Appeals to Scottish Ministers2",1,1]
[]
["Enforcement Activity"]
[]
[null,"Number"]
["Cases Taken Up",0]
["Notices Served",0]
["Reports to Procurator Fiscal",0]
["Prosecutions",0]
["Number of breaches resolved",8]
["Approved and Delegated"]
[]
["Percentage Approved",0.87596899224806202,null,null,null,null,null,null,"Approved",113,129,"Total Applications less N17"]
["Percentage Delegated",0.96323529411764708,null,null,null,null,null,null,"Delegated",131,136,"Total Applications"]
[null,null,null,null,null,null,null,null,null,null,180,"applications received"]
["1. For a full description of the categories in this analysis please see NOTES page."]
["2. Cases where the decision was recalled and made by Ministers are not included in these figures."]
["3. Time has been removed from the decision time for 1 application where delays were outwith the control of the local authority."]

{"sheet":"City of Edinburgh","index":21,"n_rows":77,"n_cols":13,"rows_kept":77,"cut":false,"hidden":false,"merged":[[79,0,80,3],[61,0,61,3],[2,5,2,7],[0,8,0,12],[76,0,77,3],[1,8,1,12]]}
["Planning Authority Performance Statistics1,3",null,null,"City of Edinburgh",null,null,null,null,"For Scottish Government Use during analysis\nPlease do not delete or move these columns"]
[null,null,null,"2018/19 Q4",null,null,null,null,"Check total number of applications"]
[null,null,null,"All Applications excluding Legacy Cases",null,null,null,null,null,897,"total apps",null,"OK"]
[null,null,null,null,null,null,null,null,null," "]
["Processing Agreements","Total Number of Decisions","% Within Agreed Timescales"]
["TOTAL",120,0.52500000000000002]
["Major Applications",6,0.33333333333333331]
["Local Applications",82,0.52439024390243905]
["EIA  Applications",0,"-"]
["Other Applications",32,0.5625]
["Applications with processing agreements are not included in the following figures."]
[null,"Total Number of Decisions","Proportion of Decisions","Average Time (Weeks)",null,null,null,null,null,"check sums to total"]
["All Major Developments",3,null,102.09523809523809,null,null,null,null,null,"OK","OK","OK"]
["Without Legal Agreement",1,0.33333333333333331,17.285714285714285]
["With Legal Agreement",2,0.66666666666666663,144.5]
[null,null,null,null,null,null,null,null,null,"OK"]
["All Local Developments",473,null,13.322259136212624,null,null,null,null,null,"OK","OK","OK"]
["Without Legal Agreement",464,0.98097251585623679,12.314655172413794]
["With Legal Agreement",9,1.9027484143763214E-2,65.26984126984128]
["Local: less than 2 months",269,0.56871035940803383,7.5087626128518323,null,null,null,null,null,"OK","OK","OK"]
["Local: more than 2 months",204,0.43128964059196617,20.988095238095237]
[]
["All Local developments (non-householder)",164,null,20.5897212543554,null,null,null,null,null,"OK","OK","OK"]
["Local: less than 2 months",58,0.35365853658536583,7.5467980295566504]
["Local: more than 2 months",106,0.64634146341463417,27.726415094339622]
[]
["Householder developments",309,null,9.4650947757743875,null,null,null,null,null,"OK","OK","OK"]
["Local: less than 2 months",211,0.68284789644012944,7.4983073798239674]
["Local: more than 2 months",98,0.31715210355987056,13.699708454810494]
[]
["Housing Developments - Major",1,null,145.14285714285714]
[]
["Housing Developments - Local",45,null,25.8,null,null,null,null,null,"OK","OK","OK"]
["Local: less than 2 months",14,0.31111111111111112,7.3877551020408161]
["Local: more than 2 months",31,0.68888888888888888,34.115207373271893]
[]
["Business & Industry - Major",1,null,143.85714285714286]
[]
["Business & Industry - Local",8,null,15.267857142857142,null,null,null,null,null,"OK","OK","OK"]
["Local: less than 2 months",3,0.375,8.0952380952380949]
["Local: more than 2 months",5,0.625,19.571428571428573]
[]
["Other developments - Major",1,null,17.285714285714285,null,null,null,null,null," "]
[]
["Other developments - Local",95,null,18.900751879699246,null,null,null,null,null,"OK","OK","OK"]
["Local: less than 2 months",33,0.3473684210526316,7.5584415584415581]
["Local: more than 2 months",62,0.65263157894736845,24.937788018433178]
[]
["EIA Developments",0,null,"-"]
["Other Consents",301,null,11.448030374940673]
[]
["Decision Making: Applications subject to"]
["Planning/Legal Agreements",11,null,79.675324675324674]
["Local Reviews",20,null,6.2857142857142856,null,null,null,null,null,"Check local review totals"]
[null,null,null,null,null,null,null,null,null,"OK"]
["Decision Making: Local Reviews and Appeals"]
[]
[null,"Total number of decisions","Original decision upheld (%)"]
["Local Reviews",20,0.6]
["Appeals to Scottish Ministers2",10,0.7]
[]
["Enforcement Activity"]
[]
[null,"Number"]
["Cases Taken Up",211]
["Notices Served",15]
["Reports to Procurator Fiscal",0]
["Prosecutions",0]
["Number of breaches resolved",47]
["Approved and Delegated"]
[]
["Percentage Approved",0.89975550122249393,null,null,null,null,null,null,"Approved",736,818,"Total Applications less N17"]
["Percentage Delegated",0.93979933110367897,null,null,null,null,null,null,"Delegated",843,897,"Total Applications"]
[null,null,null,null,null,null,null,null,null,null,1046,"applications received"]
["1. For a full description of the categories in this analysis please see NOTES page."]
["2. Cases where the decision was recalled and made by Ministers are not included in these figures."]
["3. Time has been removed from the decision time for 4 applications where delays were outwith the control of the local authority."]

{"sheet":"Falkirk","index":22,"n_rows":77,"n_cols":13,"rows_kept":77,"cut":false,"hidden":false,"merged":[[76,0,77,3],[2,5,2,7],[61,0,61,3],[0,8,0,12],[1,8,1,12]]}
["Planning Authority Performance Statistics1,3",null,null,"Falkirk",null,null,null,null,"For Scottish Government Use during analysis\nPlease do not delete or move these columns"]
[null,null,null,"2018/19 Q4",null,null,null,null,"Check total number of applications"]
[null,null,null,"All Applications excluding Legacy Cases",null,null,null,null,null,147,"total apps",null,"OK"]
[null,null,null,null,null,null,null,null,null," "]
["Processing Agreements","Total Number of Decisions","% Within Agreed Timescales"]
["TOTAL",0,"-"]
["Major Applications",0,"-"]
["Local Applications",0,"-"]
["EIA  Applications",0,"-"]
["Other Applications",0,"-"]
["Applications with processing agreements are not included in the following figures."]
[null,"Total Number of Decisions","Proportion of Decisions","Average Time (Weeks)",null,null,null,null,null,"check sums to total"]
["All Major Developments",2,null,38.928571428571431,null,null,null,null,null,"OK","OK",{"$error":"#VALUE!"}]
["Without Legal Agreement",2,1,38.928571428571431]
["With Legal Agreement",0,0,"-"]
[null,null,null,null,null,null,null,null,null,"OK"]
["All Local Developments",120,null,10.714285714285714,null,null,null,null,null,"OK","OK","OK"]
["Without Legal Agreement",115,0.95833333333333337,8.905590062111802]
["With Legal Agreement",5,4.1666666666666664E-2,52.31428571428571]
["Local: less than 2 months",86,0.71666666666666667,6.2109634551495017,null,null,null,null,null,"OK","OK","OK"]
["Local: more than 2 months",34,0.28333333333333333,22.105042016806724]
[]
["All Local developments (non-householder)",66,null,14.114718614718614,null,null,null,null,null,"OK","OK","OK"]
["Local: less than 2 months",36,0.54545454545454541,6.4603174603174605]
["Local: more than 2 months",30,0.45454545454545453,23.3]
[]
["Householder developments",54,null,6.5582010582010577,null,null,null,null,null,"OK","OK","OK"]
["Local: less than 2 months",50,0.92592592592592593,6.0314285714285711]
["Local: more than 2 months",4,7.407407407407407E-2,13.142857142857142]
[]
["Housing Developments - Major",1,null,35.714285714285715]
[]
["Housing Developments - Local",30,null,20.74285714285714,null,null,null,null,null,"OK","OK","OK"]
["Local: less than 2 months",10,0.33333333333333331,7.2714285714285714]
["Local: more than 2 months",20,0.66666666666666663,27.478571428571428]
[]
["Business & Industry - Major",0,null,"-"]
[]
["Business & Industry - Local",0,null,"-",null,null,null,null,null,"OK",{"$error":"#VALUE!"},{"$error":"#VALUE!"}]
["Local: less than 2 months",0,"-","-"]
["Local: more than 2 months",0,"-","-"]
[]
["Other developments - Major",0,null,"-",null,null,null,null,null," "]
[]
["Other developments - Local",34,null,8.1806722689075624,null,null,null,null,null,"OK","OK","OK"]
["Local: less than 2 months",26,0.76470588235294112,6.1483516483516487]
["Local: more than 2 months",8,0.23529411764705882,14.785714285714286]
[]
["EIA Developments",0,null,"-"]
["Other Consents",25,null,7.234285714285714]
[]
["Decision Making: Applications subject to"]
["Planning/Legal Agreements",5,null,52.31428571428571]
["Local Reviews",0,null,"-",null,null,null,null,null,"Check local review totals"]
[null,null,null,null,null,null,null,null,null,"OK"]
["Decision Making: Local Reviews and Appeals"]
[]
[null,"Total number of decisions","Original decision upheld (%)"]
["Local Reviews",0,"-"]
["Appeals to Scottish Ministers2",0,"-"]
[]
["Enforcement Activity"]
[]
[null,"Number"]
["Cases Taken Up",6]
["Notices Served",0]
["Reports to Procurator Fiscal",0]
["Prosecutions",0]
["Number of breaches resolved",2]
["Approved and Delegated"]
[]
["Percentage Approved",0.94927536231884058,null,null,null,null,null,null,"Approved",131,138,"Total Applications less N17"]
["Percentage Delegated",0.91836734693877553,null,null,null,null,null,null,"Delegated",135,147,"Total Applications"]
[null,null,null,null,null,null,null,null,null,null,173,"applications received"]
["1. For a full description of the categories in this analysis please see NOTES page."]
["2. Cases where the decision was recalled and made by Ministers are not included in these figures."]
["3. Time has been removed from the decision time for 2 applications where delays were outwith the control of the local authority."]

{"sheet":"Fife","index":23,"n_rows":77,"n_cols":13,"rows_kept":77,"cut":false,"hidden":false,"merged":[[61,0,61,3],[76,0,77,3],[2,5,2,7],[0,8,0,12],[1,8,1,12]]}
["Planning Authority Performance Statistics1,3",null,null,"Fife",null,null,null,null,"For Scottish Government Use during analysis\nPlease do not delete or move these columns"]
[null,null,null,"2018/19 Q4",null,null,null,null,"Check total number of applications"]
[null,null,null,"All Applications excluding Legacy Cases",null,null,null,null,null,555,"total apps",null,"OK"]
[null,null,null,null,null,null,null,null,null," "]
["Processing Agreements","Total Number of Decisions","% Within Agreed Timescales"]
["TOTAL",141,0.66666666666666663]
["Major Applications",1,0]
["Local Applications",108,0.66666666666666663]
["EIA  Applications",1,1]
["Other Applications",31,0.67741935483870963]
["Applications with processing agreements are not included in the following figures."]
[null,"Total Number of Decisions","Proportion of Decisions","Average Time (Weeks)",null,null,null,null,null,"check sums to total"]
["All Major Developments",1,null,48.285714285714285,null,null,null,null,null,"OK","OK",{"$error":"#VALUE!"}]
["Without Legal Agreement",1,1,48.285714285714285]
["With Legal Agreement",0,0,"-"]
[null,null,null,null,null,null,null,null,null,"OK"]
["All Local Developments",286,null,8.1703296703296697,null,null,null,null,null,"OK","OK",{"$error":"#VALUE!"}]
["Without Legal Agreement",286,1,8.1703296703296697]
["With Legal Agreement",0,0,"-"]
["Local: less than 2 months",228,0.79720279720279719,6.6641604010025057,null,null,null,null,null,"OK","OK","OK"]
["Local: more than 2 months",58,0.20279720279720279,14.091133004926109]
[]
["All Local developments (non-householder)",114,null,9.5614035087719298,null,null,null,null,null,"OK","OK","OK"]
["Local: less than 2 months",77,0.67543859649122806,6.5992578849721708]
["Local: more than 2 months",37,0.32456140350877194,15.725868725868725]
[]
["Householder developments",172,null,7.2483388704318941,null,null,null,null,null,"OK","OK","OK"]
["Local: less than 2 months",151,0.87790697674418605,6.6972563859981085]
["Local: more than 2 months",21,0.12209302325581395,11.210884353741497]
[]
["Housing Developments - Major",0,null,"-"]
[]
["Housing Developments - Local",22,null,14.155844155844155,null,null,null,null,null,"OK","OK","OK"]
["Local: less than 2 months",8,0.36363636363636365,6.5178571428571432]
["Local: more than 2 months",14,0.63636363636363635,18.520408163265305]
[]
["Business & Industry - Major",0,null,"-"]
[]
["Business & Industry - Local",3,null,6.2857142857142856,null,null,null,null,null,"OK","OK",{"$error":"#VALUE!"}]
["Local: less than 2 months",3,1,6.2857142857142856]
["Local: more than 2 months",0,0,"-"]
[]
["Other developments - Major",1,null,48.285714285714285,null,null,null,null,null," "]
[]
["Other developments - Local",86,null,8.5481727574750828,null,null,null,null,null,"OK","OK","OK"]
["Local: less than 2 months",63,0.73255813953488369,6.5487528344671206]
["Local: more than 2 months",23,0.26744186046511625,14.024844720496896]
[]
["EIA Developments",0,null,"-"]
["Other Consents",127,null,5.2024746906636663]
[]
["Decision Making: Applications subject to"]
["Planning/Legal Agreements",0,null,"-"]
["Local Reviews",5,null,12,null,null,null,null,null,"Check local review totals"]
[null,null,null,null,null,null,null,null,null,"OK"]
["Decision Making: Local Reviews and Appeals"]
[]
[null,"Total number of decisions","Original decision upheld (%)"]
["Local Reviews",5,0.6]
["Appeals to Scottish Ministers2",6,0.66700000000000004]
[]
["Enforcement Activity"]
[]
[null,"Number"]
["Cases Taken Up",17]
["Notices Served",0]
["Reports to Procurator Fiscal",0]
["Prosecutions",0]
["Number of breaches resolved",58]
["Approved and Delegated"]
[]
["Percentage Approved",0.95901639344262291,null,null,null,null,null,null,"Approved",468,488,"Total Applications less N17"]
["Percentage Delegated",0.9513513513513514,null,null,null,null,null,null,"Delegated",528,555,"Total Applications"]
[null,null,null,null,null,null,null,null,null,null,627,"applications received"]
["1. For a full description of the categories in this analysis please see NOTES page."]
["2. Cases where the decision was recalled and made by Ministers are not included in these figures."]
["3. Time has been removed from the decision time for 1 application where delays were outwith the control of the local authority."]

{"sheet":"Glasgow City","index":24,"n_rows":77,"n_cols":13,"rows_kept":77,"cut":false,"hidden":false,"merged":[[2,5,2,7],[61,0,61,3],[76,0,77,3],[0,8,0,12],[1,8,1,12]]}
["Planning Authority Performance Statistics1,3",null,null,"Glasgow City",null,null,null,null,"For Scottish Government Use during analysis\nPlease do not delete or move these columns"]
[null,null,null,"2018/19 Q4",null,null,null,null,"Check total number of applications"]
[null,null,null,"All Applications excluding Legacy Cases",null,null,null,null,null,560,"total apps",null,"OK"]
[null,null,null,null,null,null,null,null,null," "]
["Processing Agreements","Total Number of Decisions","% Within Agreed Timescales"]
["TOTAL",18,0.72222222222222221]
["Major Applications",0,"-"]
["Local Applications",13,0.76923076923076927]
["EIA  Applications",0,"-"]
["Other Applications",5,0.6]
["Applications with processing agreements are not included in the following figures."]
[null,"Total Number of Decisions","Proportion of Decisions","Average Time (Weeks)",null,null,null,null,null,"check sums to total"]
["All Major Developments",7,null,19.04081632653061,null,null,null,null,null,"OK","OK","OK"]
["Without Legal Agreement",4,0.5714285714285714,13.428571428571429]
["With Legal Agreement",3,0.42857142857142855,26.523809523809522]
[null,null,null,null,null,null,null,null,null,"OK"]
["All Local Developments",342,null,8.8525480367585629,null,null,null,null,null,"OK","OK","OK"]
["Without Legal Agreement",335,0.97953216374269003,8.4021321961620465]
["With Legal Agreement",7,2.046783625730994E-2,30.408163265306122]
["Local: less than 2 months",267,0.7807017543859649,6.4253611556982344,null,null,null,null,null,"OK","OK","OK"]
["Local: more than 2 months",75,0.21929824561403508,17.493333333333332]
[]
["All Local developments (non-householder)",176,null,10.939123376623376,null,null,null,null,null,"OK","OK","OK"]
["Local: less than 2 months",108,0.61363636363636365,6.3796296296296289]
["Local: more than 2 months",68,0.38636363636363635,18.180672268907564]
[]
["Householder developments",166,null,6.6402753872633387,null,null,null,null,null,"OK","OK","OK"]
["Local: less than 2 months",159,0.95783132530120485,6.4564240790655889]
["Local: more than 2 months",7,4.2168674698795178E-2,10.816326530612244]
[]
["Housing Developments - Major",4,null,23.678571428571427]
[]
["Housing Developments - Local",28,null,14.066326530612244,null,null,null,null,null,"OK","OK","OK"]
["Local: less than 2 months",13,0.4642857142857143,6.7912087912087911]
["Local: more than 2 months",15,0.5357142857142857,20.37142857142857]
[]
["Business & Industry - Major",1,null,18]
[]
["Business & Industry - Local",27,null,9.0529100529100539,null,null,null,null,null,"OK","OK","OK"]
["Local: less than 2 months",15,0.55555555555555558,6.2095238095238097]
["Local: more than 2 months",12,0.44444444444444442,12.607142857142858]
[]
["Other developments - Major",2,null,10.285714285714286,null,null,null,null,null," "]
[]
["Other developments - Local",104,null,11.01923076923077,null,null,null,null,null,"OK","OK","OK"]
["Local: less than 2 months",65,0.625,6.3978021978021982]
["Local: more than 2 months",39,0.375,18.721611721611719]
[]
["EIA Developments",1,null,45]
["Other Consents",192,null,9.3794642857142865]
[]
["Decision Making: Applications subject to"]
["Planning/Legal Agreements",11,null,30.675324675324674]
["Local Reviews",5,null,23.542857142857144,null,null,null,null,null,"Check local review totals"]
[null,null,null,null,null,null,null,null,null,"OK"]
["Decision Making: Local Reviews and Appeals"]
[]
[null,"Total number of decisions","Original decision upheld (%)"]
["Local Reviews",5,0.6]
["Appeals to Scottish Ministers2",30,0.433]
[]
["Enforcement Activity"]
[]
[null,"Number"]
["Cases Taken Up",186]
["Notices Served",11]
["Reports to Procurator Fiscal",0]
["Prosecutions",0]
["Number of breaches resolved",88]
["Approved and Delegated"]
[]
["Percentage Approved",0.90859232175502747,null,null,null,null,null,null,"Approved",497,547,"Total Applications less N17"]
["Percentage Delegated",0.98571428571428577,null,null,null,null,null,null,"Delegated",552,560,"Total Applications"]
[null,null,null,null,null,null,null,null,null,null,689,"applications received"]
["1. For a full description of the categories in this analysis please see NOTES page."]
["2. Cases where the decision was recalled and made by Ministers are not included in these figures."]
["3. Time has been removed from the decision time for 96 applications where delays were outwith the control of the local authority."]

{"sheet":"Highland","index":25,"n_rows":77,"n_cols":13,"rows_kept":77,"cut":false,"hidden":false,"merged":[[61,0,61,3],[76,0,77,3],[2,5,2,7],[0,8,0,12],[1,8,1,12]]}
["Planning Authority Performance Statistics1,3",null,null,"Highland",null,null,null,null,"For Scottish Government Use during analysis\nPlease do not delete or move these columns"]
[null,null,null,"2018/19 Q4",null,null,null,null,"Check total number of applications"]
[null,null,null,"All Applications excluding Legacy Cases",null,null,null,null,null,696,"total apps",null,"OK"]
[null,null,null,null,null,null,null,null,null," "]
["Processing Agreements","Total Number of Decisions","% Within Agreed Timescales"]
["TOTAL",8,0.75]
["Major Applications",2,0.5]
["Local Applications",6,0.83333333333333337]
["EIA  Applications",0,"-"]
["Other Applications",0,"-"]
["Applications with processing agreements are not included in the following figures."]
[null,"Total Number of Decisions","Proportion of Decisions","Average Time (Weeks)",null,null,null,null,null,"check sums to total"]
["All Major Developments",3,null,11.523809523809524,null,null,null,null,null,"OK","OK",{"$error":"#VALUE!"}]
["Without Legal Agreement",3,1,11.523809523809524]
["With Legal Agreement",0,0,"-"]
[null,null,null,null,null,null,null,null,null,"OK"]
["All Local Developments",585,null,11.981684981684982,null,null,null,null,null,"OK","OK","OK"]
["Without Legal Agreement",543,0.92820512820512824,10.607208629308076]
["With Legal Agreement",42,7.179487179487179E-2,29.751700680272108]
["Local: less than 2 months",376,0.64273504273504278,6.6094224924012162,null,null,null,null,null,"OK","OK","OK"]
["Local: more than 2 months",209,0.35726495726495727,21.646616541353382]
[]
["All Local developments (non-householder)",434,null,13.439433838051349,null,null,null,null,null,"OK","OK","OK"]
["Local: less than 2 months",243,0.55990783410138245,6.8001175778953558]
["Local: more than 2 months",191,0.44009216589861749,21.886312640239343]
[]
["Householder developments",151,null,7.7918637653736988,null,null,null,null,null,"OK","OK","OK"]
["Local: less than 2 months",133,0.88079470198675491,6.2610096670247044]
["Local: more than 2 months",18,0.11920529801324503,19.103174603174605]
[]
["Housing Developments - Major",0,null,"-"]
[]
["Housing Developments - Local",196,null,15.965743440233236,null,null,null,null,null,"OK","OK","OK"]
["Local: less than 2 months",94,0.47959183673469385,7.145896656534954]
["Local: more than 2 months",102,0.52040816326530615,24.093837535014007]
[]
["Business & Industry - Major",1,null,11.714285714285714]
[]
["Business & Industry - Local",59,null,13.605326876513317,null,null,null,null,null,"OK","OK","OK"]
["Local: less than 2 months",32,0.5423728813559322,6.7455357142857144]
["Local: more than 2 months",27,0.4576271186440678,21.735449735449738]
[]
["Other developments - Major",2,null,11.428571428571429,null,null,null,null,null," "]
[]
["Other developments - Local",137,null,10.167883211678831,null,null,null,null,null,"OK","OK","OK"]
["Local: less than 2 months",93,0.67883211678832112,6.4900153609831026]
["Local: more than 2 months",44,0.32116788321167883,17.941558441558442]
[]
["EIA Developments",9,null,27.857142857142858]
["Other Consents",91,null,8.4662480376766087]
[]
["Decision Making: Applications subject to"]
["Planning/Legal Agreements",42,null,29.751700680272108]
["Local Reviews",11,null,12.64935064935065,null,null,null,null,null,"Check local review totals"]
[null,null,null,null,null,null,null,null,null,"OK"]
["Decision Making: Local Reviews and Appeals"]
[]
[null,"Total number of decisions","Original decision upheld (%)"]
["Local Reviews",11,0.54545454545454541]
["Appeals to Scottish Ministers2",2,1]
[]
["Enforcement Activity"]
[]
[null,"Number"]
["Cases Taken Up",39]
["Notices Served",28]
["Reports to Procurator Fiscal",0]
["Prosecutions",0]
["Number of breaches resolved",106]
["Approved and Delegated"]
[]
["Percentage Approved",0.97134238310708898,null,null,null,null,null,null,"Approved",644,663,"Total Applications less N17"]
["Percentage Delegated",0.93965517241379315,null,null,null,null,null,null,"Delegated",654,696,"Total Applications"]
[null,null,null,null,null,null,null,null,null,null,1152,"applications received"]
["1. For a full description of the categories in this analysis please see NOTES page."]
["2. Cases where the decision was recalled and made by Ministers are not included in these figures."]
["3. Time has been removed from the decision time for 38 applications where delays were outwith the control of the local authority."]

{"sheet":"Inverclyde","index":26,"n_rows":77,"n_cols":13,"rows_kept":77,"cut":false,"hidden":false,"merged":[[61,0,61,3],[76,0,77,3],[2,5,2,7],[0,8,0,12],[1,8,1,12]]}
["Planning Authority Performance Statistics1,3",null,null,"Inverclyde",null,null,null,null,"For Scottish Government Use during analysis\nPlease do not delete or move these columns"]
[null,null,null,"2018/19 Q4",null,null,null,null,"Check total number of applications"]
[null,null,null,"All Applications excluding Legacy Cases",null,null,null,null,null,75,"total apps",null,"OK"]
[null,null,null,null,null,null,null,null,null," "]
["Processing Agreements","Total Number of Decisions","% Within Agreed Timescales"]
["TOTAL",1,1]
["Major Applications",1,1]
["Local Applications",0,"-"]
["EIA  Applications",0,"-"]
["Other Applications",0,"-"]
["Applications with processing agreements are not included in the following figures."]
[null,"Total Number of Decisions","Proportion of Decisions","Average Time (Weeks)",null,null,null,null,null,"check sums to total"]
["All Major Developments",0,null,"-",null,null,null,null,null,"OK",{"$error":"#VALUE!"},{"$error":"#VALUE!"}]
["Without Legal Agreement",0,"-","-"]
["With Legal Agreement",0,"-","-"]
[null,null,null,null,null,null,null,null,null,"OK"]
["All Local Developments",55,null,8.2831168831168842,null,null,null,null,null,"OK","OK",{"$error":"#VALUE!"}]
["Without Legal Agreement",55,1,8.2831168831168842]
["With Legal Agreement",0,0,"-"]
["Local: less than 2 months",39,0.70909090909090911,6.417582417582417,null,null,null,null,null,"OK","OK","OK"]
["Local: more than 2 months",16,0.29090909090909089,12.830357142857142]
[]
["All Local developments (non-householder)",27,null,9.7989417989417991,null,null,null,null,null,"OK","OK","OK"]
["Local: less than 2 months",15,0.55555555555555558,7.0761904761904759]
["Local: more than 2 months",12,0.44444444444444442,13.202380952380953]
[]
["Householder developments",28,null,6.8214285714285712,null,null,null,null,null,"OK","OK","OK"]
["Local: less than 2 months",24,0.8571428571428571,6.0059523809523805]
["Local: more than 2 months",4,0.14285714285714285,11.714285714285714]
[]
["Housing Developments - Major",0,null,"-"]
[]
["Housing Developments - Local",13,null,11.681318681318682,null,null,null,null,null,"OK","OK","OK"]
["Local: less than 2 months",4,0.30769230769230771,6.1071428571428568]
["Local: more than 2 months",9,0.69230769230769229,14.15873015873016]
[]
["Business & Industry - Major",0,null,"-"]
[]
["Business & Industry - Local",0,null,"-",null,null,null,null,null,"OK",{"$error":"#VALUE!"},{"$error":"#VALUE!"}]
["Local: less than 2 months",0,"-","-"]
["Local: more than 2 months",0,"-","-"]
[]
["Other developments - Major",0,null,"-",null,null,null,null,null," "]
[]
["Other developments - Local",14,null,8.0510204081632644,null,null,null,null,null,"OK","OK","OK"]
["Local: less than 2 months",11,0.7857142857142857,7.4285714285714288]
["Local: more than 2 months",3,0.21428571428571427,10.333333333333332]
[]
["EIA Developments",0,null,"-"]
["Other Consents",19,null,4.9172932330827068]
[]
["Decision Making: Applications subject to"]
["Planning/Legal Agreements",0,null,"-"]
["Local Reviews",3,null,17.857142857142858,null,null,null,null,null,"Check local review totals"]
[null,null,null,null,null,null,null,null,null,"OK"]
["Decision Making: Local Reviews and Appeals"]
[]
[null,"Total number of decisions","Original decision upheld (%)"]
["Local Reviews",3,0.66666666666666663]
["Appeals to Scottish Ministers2",1,1]
[]
["Enforcement Activity"]
[]
[null,"Number"]
["Cases Taken Up",1]
["Notices Served",0]
["Reports to Procurator Fiscal",0]
["Prosecutions",0]
["Number of breaches resolved",0]
["Approved and Delegated"]
[]
["Percentage Approved",0.95522388059701491,null,null,null,null,null,null,"Approved",64,67,"Total Applications less N17"]
["Percentage Delegated",0.90666666666666662,null,null,null,null,null,null,"Delegated",68,75,"Total Applications"]
[null,null,null,null,null,null,null,null,null,null,94,"applications received"]
["1. For a full description of the categories in this analysis please see NOTES page."]
["2. Cases where the decision was recalled and made by Ministers are not included in these figures."]
["3. Time has been removed from the decision time for 11 applications where delays were outwith the control of the local authority."]

{"sheet":"Loch Lomond","index":27,"n_rows":77,"n_cols":13,"rows_kept":77,"cut":false,"hidden":false,"merged":[[61,0,61,3],[76,0,77,3],[2,5,2,7],[0,8,0,12],[1,8,1,12]]}
["Planning Authority Performance Statistics1,3",null,null,"Loch Lomond and The Trossachs",null,null,null,null,"For Scottish Government Use during analysis\nPlease do not delete or move these columns"]
[null,null,null,"2018/19 Q4",null,null,null,null,"Check total number of applications"]
[null,null,null,"All Applications excluding Legacy Cases",null,null,null,null,null,80,"total apps",null,"OK"]
[null,null,null,null,null,null,null,null,null," "]
["Processing Agreements","Total Number of Decisions","% Within Agreed Timescales"]
["TOTAL",0,"-"]
["Major Applications",0,"-"]
["Local Applications",0,"-"]
["EIA  Applications",0,"-"]
["Other Applications",0,"-"]
["Applications with processing agreements are not included in the following figures."]
[null,"Total Number of Decisions","Proportion of Decisions","Average Time (Weeks)",null,null,null,null,null,"check sums to total"]
["All Major Developments",0,null,"-",null,null,null,null,null,"OK",{"$error":"#VALUE!"},{"$error":"#VALUE!"}]
["Without Legal Agreement",0,"-","-"]
["With Legal Agreement",0,"-","-"]
[null,null,null,null,null,null,null,null,null,"OK"]
["All Local Developments",67,null,11.584221748400852,null,null,null,null,null,"OK","OK","OK"]
["Without Legal Agreement",66,0.9850746268656716,11.393939393939393]
["With Legal Agreement",1,1.4925373134328358E-2,24.142857142857142]
["Local: less than 2 months",24,0.35820895522388058,6.3452380952380949,null,null,null,null,null,"OK","OK","OK"]
["Local: more than 2 months",43,0.64179104477611937,14.508305647840531]
[]
["All Local developments (non-householder)",49,null,12.1399416909621,null,null,null,null,null,"OK","OK","OK"]
["Local: less than 2 months",15,0.30612244897959184,6.6857142857142851]
["Local: more than 2 months",34,0.69387755102040816,14.546218487394958]
[]
["Householder developments",18,null,10.071428571428571,null,null,null,null,null,"OK","OK","OK"]
["Local: less than 2 months",9,0.5,5.7777777777777777]
["Local: more than 2 months",9,0.5,14.365079365079366]
[]
["Housing Developments - Major",0,null,"-"]
[]
["Housing Developments - Local",12,null,14.119047619047619,null,null,null,null,null,"OK","OK","OK"]
["Local: less than 2 months",4,0.33333333333333331,6.7142857142857144]
["Local: more than 2 months",8,0.66666666666666663,17.821428571428573]
[]
["Business & Industry - Major",0,null,"-"]
[]
["Business & Industry - Local",3,null,9.2857142857142865,null,null,null,null,null,"OK","OK","OK"]
["Local: less than 2 months",1,0.33333333333333331,7.2857142857142856]
["Local: more than 2 months",2,0.66666666666666663,10.285714285714286]
[]
["Other developments - Major",0,null,"-",null,null,null,null,null," "]
[]
["Other developments - Local",29,null,11.738916256157635,null,null,null,null,null,"OK","OK","OK"]
["Local: less than 2 months",10,0.34482758620689657,6.6142857142857139]
["Local: more than 2 months",19,0.65517241379310343,14.436090225563911]
[]
["EIA Developments",0,null,"-"]
["Other Consents",13,null,9.1318681318681314]
[]
["Decision Making: Applications subject to"]
["Planning/Legal Agreements",1,null,24.142857142857142]
["Local Reviews",1,null,5.7142857142857144,null,null,null,null,null,"Check local review totals"]
[null,null,null,null,null,null,null,null,null,"OK"]
["Decision Making: Local Reviews and Appeals"]
[]
[null,"Total number of decisions","Original decision upheld (%)"]
["Local Reviews",1,1]
["Appeals to Scottish Ministers2",0,"-"]
[]
["Enforcement Activity"]
[]
[null,"Number"]
["Cases Taken Up",13]
["Notices Served",1]
["Reports to Procurator Fiscal",0]
["Prosecutions",0]
["Number of breaches resolved",5]
["Approved and Delegated"]
[]
["Percentage Approved",0.9726027397260274,null,null,null,null,null,null,"Approved",71,73,"Total Applications less N17"]
["Percentage Delegated",0.96250000000000002,null,null,null,null,null,null,"Delegated",77,80,"Total Applications"]
[null,null,null,null,null,null,null,null,null,null,92,"applications received"]
["1. For a full description of the categories in this analysis please see NOTES page."]
["2. Cases where the decision was recalled and made by Ministers are not included in these figures."]
["3. Time has been removed from the decision time for 20 applications where delays were outwith the control of the local authority."]

{"sheet":"Midlothian","index":28,"n_rows":77,"n_cols":13,"rows_kept":77,"cut":false,"hidden":false,"merged":[[0,8,0,12],[1,8,1,12],[2,5,2,7],[61,0,61,3],[76,0,77,3]]}
["Planning Authority Performance Statistics1,3",null,null,"Midlothian",null,null,null,null,"For Scottish Government Use during analysis\nPlease do not delete or move these columns"]
[null,null,null,"2018/19 Q4",null,null,null,null,"Check total number of applications"]
[null,null,null,"All Applications excluding Legacy Cases",null,null,null,null,null,146,"total apps",null,"OK"]
[null,null,null,null,null,null,null,null,null," "]
["Processing Agreements","Total Number of Decisions","% Within Agreed Timescales"]
["TOTAL",0,"-"]
["Major Applications",0,"-"]
["Local Applications",0,"-"]
["EIA  Applications",0,"-"]
["Other Applications",0,"-"]
["Applications with processing agreements are not included in the following figures."]
[null,"Total Number of Decisions","Proportion of Decisions","Average Time (Weeks)",null,null,null,null,null,"check sums to total"]
["All Major Developments",2,null,22.642857142857142,null,null,null,null,null,"OK","OK",{"$error":"#VALUE!"}]
["Without Legal Agreement",0,0,"-"]
["With Legal Agreement",2,1,22.642857142857142]
[null,null,null,null,null,null,null,null,null,"OK"]
["All Local Developments",113,null,7.9418457648546141,null,null,null,null,null,"OK","OK","OK"]
["Without Legal Agreement",108,0.95575221238938057,7.6084656084656084]
["With Legal Agreement",5,4.4247787610619468E-2,15.142857142857142]
["Local: less than 2 months",93,0.82300884955752207,6.4101382488479262,null,null,null,null,null,"OK","OK","OK"]
["Local: more than 2 months",20,0.17699115044247787,15.064285714285715]
[]
["All Local developments (non-householder)",58,null,9.3103448275862064,null,null,null,null,null,"OK","OK","OK"]
["Local: less than 2 months",40,0.68965517241379315,6.5178571428571432]
["Local: more than 2 months",18,0.31034482758620691,15.515873015873016]
[]
["Householder developments",55,null,6.4987012987012989,null,null,null,null,null,"OK","OK","OK"]
["Local: less than 2 months",53,0.96363636363636362,6.3288409703504049]
["Local: more than 2 months",2,3.6363636363636362E-2,11]
[]
["Housing Developments - Major",2,null,22.642857142857142]
[]
["Housing Developments - Local",17,null,11.84033613445378,null,null,null,null,null,"OK","OK","OK"]
["Local: less than 2 months",7,0.41176470588235292,6.6734693877551026]
["Local: more than 2 months",10,0.58823529411764708,15.457142857142857]
[]
["Business & Industry - Major",0,null,"-"]
[]
["Business & Industry - Local",1,null,23.857142857142858,null,null,null,null,null,"OK","OK",{"$error":"#VALUE!"}]
["Local: less than 2 months",0,0,"-"]
["Local: more than 2 months",1,1,23.857142857142858]
[]
["Other developments - Major",0,null,"-",null,null,null,null,null," "]
[]
["Other developments - Local",37,null,7.8996138996138994,null,null,null,null,null,"OK","OK","OK"]
["Local: less than 2 months",30,0.81081081081081086,6.3809523809523805]
["Local: more than 2 months",7,0.1891891891891892,14.408163265306124]
[]
["EIA Developments",0,null,"-"]
["Other Consents",31,null,8.2764976958525356]
[]
["Decision Making: Applications subject to"]
["Planning/Legal Agreements",7,null,17.285714285714285]
["Local Reviews",5,null,15.428571428571429,null,null,null,null,null,"Check local review totals"]
[null,null,null,null,null,null,null,null,null,"OK"]
["Decision Making: Local Reviews and Appeals"]
[]
[null,"Total number of decisions","Original decision upheld (%)"]
["Local Reviews",5,0.6]
["Appeals to Scottish Ministers2",1,0]
[]
["Enforcement Activity"]
[]
[null,"Number"]
["Cases Taken Up",33]
["Notices Served",0]
["Reports to Procurator Fiscal",0]
["Prosecutions",0]
["Number of breaches resolved",39]
["Approved and Delegated"]
[]
["Percentage Approved",0.91791044776119401,null,null,null,null,null,null,"Approved",123,134,"Total Applications less N17"]
["Percentage Delegated",0.97945205479452058,null,null,null,null,null,null,"Delegated",143,146,"Total Applications"]
[null,null,null,null,null,null,null,null,null,null,266,"applications received"]
["1. For a full description of the categories in this analysis please see NOTES page."]
["2. Cases where the decision was recalled and made by Ministers are not included in these figures."]
["3. Time has been removed from the decision time for 18 applications where delays were outwith the control of the local authority."]

{"sheet":"Moray","index":29,"n_rows":77,"n_cols":13,"rows_kept":77,"cut":false,"hidden":false,"merged":[[76,0,77,3],[2,5,2,7],[0,8,0,12],[61,0,61,3],[1,8,1,12]]}
["Planning Authority Performance Statistics1,3",null,null,"Moray",null,null,null,null,"For Scottish Government Use during analysis\nPlease do not delete or move these columns"]
[null,null,null,"2018/19 Q4",null,null,null,null,"Check total number of applications"]
[null,null,null,"All Applications excluding Legacy Cases",null,null,null,null,null,128,"total apps",null,"OK"]
[null,null,null,null,null,null,null,null,null," "]
["Processing Agreements","Total Number of Decisions","% Within Agreed Timescales"]
["TOTAL",0,"-"]
["Major Applications",0,"-"]
["Local Applications",0,"-"]
["EIA  Applications",0,"-"]
["Other Applications",0,"-"]
["Applications with processing agreements are not included in the following figures."]
[null,"Total Number of Decisions","Proportion of Decisions","Average Time (Weeks)",null,null,null,null,null,"check sums to total"]
["All Major Developments",1,null,8.5714285714285712,null,null,null,null,null,"OK","OK",{"$error":"#VALUE!"}]
["Without Legal Agreement",1,1,8.5714285714285712]
["With Legal Agreement",0,0,"-"]
[null,null,null,null,null,null,null,null,null,"OK"]
["All Local Developments",111,null,6.486486486486486,null,null,null,null,null,"OK","OK","OK"]
["Without Legal Agreement",110,0.99099099099099097,6.4792207792207792]
["With Legal Agreement",1,9.0090090090090089E-3,7.2857142857142856]
["Local: less than 2 months",103,0.92792792792792789,6.2024965325936199,null,null,null,null,null,"OK","OK","OK"]
["Local: more than 2 months",8,7.2072072072072071E-2,10.142857142857142]
[]
["All Local developments (non-householder)",86,null,6.5332225913621258,null,null,null,null,null,"OK","OK","OK"]
["Local: less than 2 months",79,0.91860465116279066,6.191681735985533]
["Local: more than 2 months",7,8.1395348837209308E-2,10.387755102040815]
[]
["Householder developments",25,null,6.3257142857142856,null,null,null,null,null,"OK","OK","OK"]
["Local: less than 2 months",24,0.96,6.2380952380952381]
["Local: more than 2 months",1,0.04,8.4285714285714288]
[]
["Housing Developments - Major",0,null,"-"]
[]
["Housing Developments - Local",45,null,6.9301587301587304,null,null,null,null,null,"OK","OK","OK"]
["Local: less than 2 months",40,0.88888888888888884,6.5071428571428571]
["Local: more than 2 months",5,0.1111111111111111,10.314285714285715]
[]
["Business & Industry - Major",0,null,"-"]
[]
["Business & Industry - Local",25,null,6.2114285714285709,null,null,null,null,null,"OK","OK","OK"]
["Local: less than 2 months",24,0.96,5.9404761904761907]
["Local: more than 2 months",1,0.04,12.714285714285714]
[]
["Other developments - Major",0,null,"-",null,null,null,null,null," "]
[]
["Other developments - Local",11,null,6.1948051948051956,null,null,null,null,null,"OK","OK",{"$error":"#VALUE!"}]
["Local: less than 2 months",11,1,6.1948051948051956]
["Local: more than 2 months",0,0,"-"]
[]
["EIA Developments",0,null,"-"]
["Other Consents",16,null,7.0089285714285712]
[]
["Decision Making: Applications subject to"]
["Planning/Legal Agreements",1,null,7.2857142857142856]
["Local Reviews",2,null,13.642857142857142,null,null,null,null,null,"Check local review totals"]
[null,null,null,null,null,null,null,null,null,"OK"]
["Decision Making: Local Reviews and Appeals"]
[]
[null,"Total number of decisions","Original decision upheld (%)"]
["Local Reviews",2,0.5]
["Appeals to Scottish Ministers2",1,0]
[]
["Enforcement Activity"]
[]
[null,"Number"]
["Cases Taken Up",93]
["Notices Served",1]
["Reports to Procurator Fiscal",0]
["Prosecutions",0]
["Number of breaches resolved",59]
["Approved and Delegated"]
[]
["Percentage Approved",0.952755905511811,null,null,null,null,null,null,"Approved",121,127,"Total Applications less N17"]
["Percentage Delegated",0.9765625,null,null,null,null,null,null,"Delegated",125,128,"Total Applications"]
[null,null,null,null,null,null,null,null,null,null,199,"applications received"]
["1. For a full description of the categories in this analysis please see NOTES page."]
["2. Cases where the decision was recalled and made by Ministers are not included in these figures."]
["3. Time has been removed from the decision time for 40 applications where delays were outwith the control of the local authority."]

{"sheet":"Na h-Eileanan Siar","index":30,"n_rows":77,"n_cols":13,"rows_kept":77,"cut":false,"hidden":false,"merged":[[2,5,2,7],[0,8,0,12],[61,0,61,3],[1,8,1,12]]}
["Planning Authority Performance Statistics1,3",null,null,"Na h-Eileanan Siar",null,null,null,null,"For Scottish Government Use during analysis\nPlease do not delete or move these columns"]
[null,null,null,"2018/19 Q4",null,null,null,null,"Check total number of applications"]
[null,null,null,"All Applications excluding Legacy Cases",null,null,null,null,null,90,"total apps",null,"OK"]
[null,null,null,null,null,null,null,null,null," "]
["Processing Agreements","Total Number of Decisions","% Within Agreed Timescales"]
["TOTAL",0,"-"]
["Major Applications",0,"-"]
["Local Applications",0,"-"]
["EIA  Applications",0,"-"]
["Other Applications",0,"-"]
["Applications with processing agreements are not included in the following figures."]
[null,"Total Number of Decisions","Proportion of Decisions","Average Time (Weeks)",null,null,null,null,null,"check sums to total"]
["All Major Developments",0,null,"-",null,null,null,null,null,"OK",{"$error":"#VALUE!"},{"$error":"#VALUE!"}]
["Without Legal Agreement",0,"-","-"]
["With Legal Agreement",0,"-","-"]
[null,null,null,null,null,null,null,null,null,"OK"]
["All Local Developments",74,null,9.1563706563706564,null,null,null,null,null,"OK","OK",{"$error":"#VALUE!"}]
["Without Legal Agreement",74,1,9.1563706563706564]
["With Legal Agreement",0,0,"-"]
["Local: less than 2 months",37,0.5,6.9150579150579148,null,null,null,null,null,"OK","OK","OK"]
["Local: more than 2 months",37,0.5,11.397683397683398]
[]
["All Local developments (non-householder)",64,null,9.375,null,null,null,null,null,"OK","OK","OK"]
["Local: less than 2 months",30,0.46875,7]
["Local: more than 2 months",34,0.53125,11.470588235294118]
[]
["Householder developments",10,null,7.7571428571428571,null,null,null,null,null,"OK","OK","OK"]
["Local: less than 2 months",7,0.7,6.5510204081632653]
["Local: more than 2 months",3,0.3,10.571428571428571]
[]
["Housing Developments - Major",0,null,"-"]
[]
["Housing Developments - Local",26,null,9.5604395604395602,null,null,null,null,null,"OK","OK","OK"]
["Local: less than 2 months",13,0.5,7.1758241758241761]
["Local: more than 2 months",13,0.5,11.945054945054945]
[]
["Business & Industry - Major",0,null,"-"]
[]
["Business & Industry - Local",6,null,9.2857142857142865,null,null,null,null,null,"OK","OK","OK"]
["Local: less than 2 months",3,0.5,6.2380952380952381]
["Local: more than 2 months",3,0.5,12.333333333333332]
[]
["Other developments - Major",0,null,"-",null,null,null,null,null," "]
[]
["Other developments - Local",23,null,9.1739130434782616,null,null,null,null,null,"OK","OK","OK"]
["Local: less than 2 months",8,0.34782608695652173,6.6607142857142856]
["Local: more than 2 months",15,0.65217391304347827,10.514285714285714]
[]
["EIA Developments",0,null,"-"]
["Other Consents",16,null,5.3928571428571432]
[]
["Decision Making: Applications subject to"]
["Planning/Legal Agreements",0,null,"-"]
["Local Reviews",1,null,8.8571428571428577,null,null,null,null,null,"Check local review totals"]
[null,null,null,null,null,null,null,null,null,"OK"]
["Decision Making: Local Reviews and Appeals"]
[]
[null,"Total number of decisions","Original decision upheld (%)"]
["Local Reviews",1,0]
["Appeals to Scottish Ministers2",0,"-"]
[]
["Enforcement Activity"]
[]
[null,"Number"]
["Cases Taken Up",0]
["Notices Served",2]
["Reports to Procurator Fiscal",0]
["Prosecutions",0]
["Number of breaches resolved",2]
["Approved and Delegated"]
[]
["Percentage Approved",1,null,null,null,null,null,null,"Approved",80,80,"Total Applications less N17"]
["Percentage Delegated",1,null,null,null,null,null,null,"Delegated",90,90,"Total Applications"]
[null,null,null,null,null,null,null,null,null,null,114,"applications received"]
["1. For a full description of the categories in this analysis please see NOTES page."]
["2. Cases where the decision was recalled and made by Ministers are not included in these figures."]
["3. Time has not been removed from the decision time for any applications."]

{"sheet":"North Ayrshire","index":31,"n_rows":77,"n_cols":13,"rows_kept":77,"cut":false,"hidden":false,"merged":[[61,0,61,3],[76,0,77,3],[2,5,2,7],[0,8,0,12],[1,8,1,12]]}
["Planning Authority Performance Statistics1,3",null,null,"North Ayrshire",null,null,null,null,"For Scottish Government Use during analysis\nPlease do not delete or move these columns"]
[null,null,null,"2018/19 Q4",null,null,null,null,"Check total number of applications"]
[null,null,null,"All Applications excluding Legacy Cases",null,null,null,null,null,139,"total apps",null,"OK"]
[null,null,null,null,null,null,null,null,null," "]
["Processing Agreements","Total Number of Decisions","% Within Agreed Timescales"]
["TOTAL",1,1]
["Major Applications",1,1]
["Local Applications",0,"-"]
["EIA  Applications",0,"-"]
["Other Applications",0,"-"]
["Applications with processing agreements are not included in the following figures."]
[null,"Total Number of Decisions","Proportion of Decisions","Average Time (Weeks)",null,null,null,null,null,"check sums to total"]
["All Major Developments",0,null,"-",null,null,null,null,null,"OK",{"$error":"#VALUE!"},{"$error":"#VALUE!"}]
["Without Legal Agreement",0,"-","-"]
["With Legal Agreement",0,"-","-"]
[null,null,null,null,null,null,null,null,null,"OK"]
["All Local Developments",118,null,5.0460048426150124,null,null,null,null,null,"OK","OK",{"$error":"#VALUE!"}]
["Without Legal Agreement",118,1,5.0460048426150124]
["With Legal Agreement",0,0,"-"]
["Local: less than 2 months",116,0.98305084745762716,4.9692118226600988,null,null,null,null,null,"OK","OK","OK"]
["Local: more than 2 months",2,1.6949152542372881E-2,9.5]
[]
["All Local developments (non-householder)",52,null,5.8736263736263732,null,null,null,null,null,"OK","OK","OK"]
["Local: less than 2 months",50,0.96153846153846156,5.7285714285714286]
["Local: more than 2 months",2,3.8461538461538464E-2,9.5]
[]
["Householder developments",66,null,4.3939393939393936,null,null,null,null,null,"OK","OK",{"$error":"#VALUE!"}]
["Local: less than 2 months",66,1,4.3939393939393936]
["Local: more than 2 months",0,0,"-"]
[]
["Housing Developments - Major",0,null,"-"]
[]
["Housing Developments - Local",18,null,6.1984126984126977,null,null,null,null,null,"OK","OK","OK"]
["Local: less than 2 months",17,0.94444444444444442,6.0084033613445387]
["Local: more than 2 months",1,5.5555555555555552E-2,9.4285714285714288]
[]
["Business & Industry - Major",0,null,"-"]
[]
["Business & Industry - Local",1,null,4,null,null,null,null,null,"OK","OK",{"$error":"#VALUE!"}]
["Local: less than 2 months",1,1,4]
["Local: more than 2 months",0,0,"-"]
[]
["Other developments - Major",0,null,"-",null,null,null,null,null," "]
[]
["Other developments - Local",30,null,5.7142857142857144,null,null,null,null,null,"OK","OK","OK"]
["Local: less than 2 months",29,0.96666666666666667,5.5812807881773399]
["Local: more than 2 months",1,3.3333333333333333E-2,9.5714285714285712]
[]
["EIA Developments",0,null,"-"]
["Other Consents",20,null,3.6]
[]
["Decision Making: Applications subject to"]
["Planning/Legal Agreements",0,null,"-"]
["Local Reviews",2,null,3,null,null,null,null,null,"Check local review totals"]
[null,null,null,null,null,null,null,null,null,"OK"]
["Decision Making: Local Reviews and Appeals"]
[]
[null,"Total number of decisions","Original decision upheld (%)"]
["Local Reviews",2,1]
["Appeals to Scottish Ministers2",1,0]
[]
["Enforcement Activity"]
[]
[null,"Number"]
["Cases Taken Up",20]
["Notices Served",1]
["Reports to Procurator Fiscal",0]
["Prosecutions",0]
["Number of breaches resolved",30]
["Approved and Delegated"]
[]
["Percentage Approved",0.93076923076923079,null,null,null,null,null,null,"Approved",121,130,"Total Applications less N17"]
["Percentage Delegated",0.9928057553956835,null,null,null,null,null,null,"Delegated",138,139,"Total Applications"]
[null,null,null,null,null,null,null,null,null,null,167,"applications received"]
["1. For a full description of the categories in this analysis please see NOTES page."]
["2. Cases where the decision was recalled and made by Ministers are not included in these figures."]
["3. Time has been removed from the decision time for 10 applications where delays were outwith the control of the local authority."]

{"sheet":"North Lanarkshire","index":32,"n_rows":77,"n_cols":13,"rows_kept":77,"cut":false,"hidden":false,"merged":[[2,5,2,7],[61,0,61,3],[76,0,77,3],[0,8,0,12],[1,8,1,12]]}
["Planning Authority Performance Statistics1,3",null,null,"North Lanarkshire",null,null,null,null,"For Scottish Government Use during analysis\nPlease do not delete or move these columns"]
[null,null,null,"2018/19 Q4",null,null,null,null,"Check total number of applications"]
[null,null,null,"All Applications excluding Legacy Cases",null,null,null,null,null,183,"total apps",null,"OK"]
[null,null,null,null,null,null,null,null,null," "]
["Processing Agreements","Total Number of Decisions","% Within Agreed Timescales"]
["TOTAL",28,0.32142857142857145]
["Major Applications",1,1]
["Local Applications",24,0.29166666666666669]
["EIA  Applications",0,"-"]
["Other Applications",3,0.33333333333333331]
["Applications with processing agreements are not included in the following figures."]
[null,"Total Number of Decisions","Proportion of Decisions","Average Time (Weeks)",null,null,null,null,null,"check sums to total"]
["All Major Developments",2,null,12.785714285714286,null,null,null,null,null,"OK","OK",{"$error":"#VALUE!"}]
["Without Legal Agreement",2,1,12.785714285714286]
["With Legal Agreement",0,0,"-"]
[null,null,null,null,null,null,null,null,null,"OK"]
["All Local Developments",120,null,8.5785714285714274,null,null,null,null,null,"OK","OK",{"$error":"#VALUE!"}]
["Without Legal Agreement",120,1,8.5785714285714274]
["With Legal Agreement",0,0,"-"]
["Local: less than 2 months",63,0.52500000000000002,7.2925170068027212,null,null,null,null,null,"OK","OK","OK"]
["Local: more than 2 months",57,0.47499999999999998,10]
[]
["All Local developments (non-householder)",45,null,8.8984126984126988,null,null,null,null,null,"OK","OK","OK"]
["Local: less than 2 months",23,0.51111111111111107,7.1925465838509322]
["Local: more than 2 months",22,0.48888888888888887,10.681818181818182]
[]
["Householder developments",75,null,8.3866666666666667,null,null,null,null,null,"OK","OK","OK"]
["Local: less than 2 months",40,0.53333333333333333,7.3500000000000005]
["Local: more than 2 months",35,0.46666666666666667,9.5714285714285712]
[]
["Housing Developments - Major",0,null,"-"]
[]
["Housing Developments - Local",13,null,8.8351648351648358,null,null,null,null,null,"OK","OK","OK"]
["Local: less than 2 months",6,0.46153846153846156,5.9047619047619051]
["Local: more than 2 months",7,0.53846153846153844,11.346938775510205]
[]
["Business & Industry - Major",0,null,"-"]
[]
["Business & Industry - Local",12,null,8.75,null,null,null,null,null,"OK","OK","OK"]
["Local: less than 2 months",7,0.58333333333333337,7.8163265306122449]
["Local: more than 2 months",5,0.41666666666666669,10.057142857142859]
[]
["Other developments - Major",1,null,10.714285714285714,null,null,null,null,null," "]
[]
["Other developments - Local",19,null,9.1203007518797001,null,null,null,null,null,"OK","OK","OK"]
["Local: less than 2 months",9,0.47368421052631576,7.5555555555555554]
["Local: more than 2 months",10,0.52631578947368418,10.528571428571428]
[]
["EIA Developments",0,null,"-"]
["Other Consents",33,null,7.8744588744588748]
[]
["Decision Making: Applications subject to"]
["Planning/Legal Agreements",0,null,"-"]
["Local Reviews",4,null,11.714285714285714,null,null,null,null,null,"Check local review totals"]
[null,null,null,null,null,null,null,null,null,"OK"]
["Decision Making: Local Reviews and Appeals"]
[]
[null,"Total number of decisions","Original decision upheld (%)"]
["Local Reviews",4,0.75]
["Appeals to Scottish Ministers2",1,1]
[]
["Enforcement Activity"]
[]
[null,"Number"]
["Cases Taken Up",10]
["Notices Served",0]
["Reports to Procurator Fiscal",0]
["Prosecutions",0]
["Number of breaches resolved",26]
["Approved and Delegated"]
[]
["Percentage Approved",0.97023809523809523,null,null,null,null,null,null,"Approved",163,168,"Total Applications less N17"]
["Percentage Delegated",0.92896174863387981,null,null,null,null,null,null,"Delegated",170,183,"Total Applications"]
[null,null,null,null,null,null,null,null,null,null,259,"applications received"]
["1. For a full description of the categories in this analysis please see NOTES page."]
["2. Cases where the decision was recalled and made by Ministers are not included in these figures."]
["3. Time has been removed from the decision time for 4 applications where delays were outwith the control of the local authority."]

{"sheet":"Orkney Islands","index":33,"n_rows":77,"n_cols":13,"rows_kept":77,"cut":false,"hidden":false,"merged":[[2,5,2,7],[61,0,61,3],[76,0,77,3],[0,8,0,12],[1,8,1,12]]}
["Planning Authority Performance Statistics1,3",null,null,"Orkney Islands",null,null,null,null,"For Scottish Government Use during analysis\nPlease do not delete or move these columns"]
[null,null,null,"2018/19 Q4",null,null,null,null,"Check total number of applications"]
[null,null,null,"All Applications excluding Legacy Cases",null,null,null,null,null,98,"total apps",null,"OK"]
[null,null,null,null,null,null,null,null,null," "]
["Processing Agreements","Total Number of Decisions","% Within Agreed Timescales"]
["TOTAL",0,"-"]
["Major Applications",0,"-"]
["Local Applications",0,"-"]
["EIA  Applications",0,"-"]
["Other Applications",0,"-"]
["Applications with processing agreements are not included in the following figures."]
[null,"Total Number of Decisions","Proportion of Decisions","Average Time (Weeks)",null,null,null,null,null,"check sums to total"]
["All Major Developments",0,null,"-",null,null,null,null,null,"OK",{"$error":"#VALUE!"},{"$error":"#VALUE!"}]
["Without Legal Agreement",0,"-","-"]
["With Legal Agreement",0,"-","-"]
[null,null,null,null,null,null,null,null,null,"OK"]
["All Local Developments",77,null,7.7179962894248604,null,null,null,null,null,"OK","OK",{"$error":"#VALUE!"}]
["Without Legal Agreement",77,1,7.7179962894248604]
["With Legal Agreement",0,0,"-"]
["Local: less than 2 months",54,0.70129870129870131,6.1031746031746028,null,null,null,null,null,"OK","OK","OK"]
["Local: more than 2 months",23,0.29870129870129869,11.509316770186334]
[]
["All Local developments (non-householder)",57,null,8.0701754385964914,null,null,null,null,null,"OK","OK","OK"]
["Local: less than 2 months",37,0.64912280701754388,6.33976833976834]
["Local: more than 2 months",20,0.35087719298245612,11.271428571428572]
[]
["Householder developments",20,null,6.7142857142857144,null,null,null,null,null,"OK","OK","OK"]
["Local: less than 2 months",17,0.85,5.5882352941176467]
["Local: more than 2 months",3,0.15,13.095238095238097]
[]
["Housing Developments - Major",0,null,"-"]
[]
["Housing Developments - Local",28,null,8.2857142857142865,null,null,null,null,null,"OK","OK","OK"]
["Local: less than 2 months",18,0.6428571428571429,6.5873015873015879]
["Local: more than 2 months",10,0.35714285714285715,11.342857142857143]
[]
["Business & Industry - Major",0,null,"-"]
[]
["Business & Industry - Local",17,null,8.302521008403362,null,null,null,null,null,"OK","OK","OK"]
["Local: less than 2 months",11,0.6470588235294118,6.1038961038961039]
["Local: more than 2 months",6,0.35294117647058826,12.333333333333332]
[]
["Other developments - Major",0,null,"-",null,null,null,null,null," "]
[]
["Other developments - Local",8,null,7,null,null,null,null,null,"OK","OK","OK"]
["Local: less than 2 months",5,0.625,5.5714285714285712]
["Local: more than 2 months",3,0.375,9.3809523809523814]
[]
["EIA Developments",0,null,"-"]
["Other Consents",21,null,6.129251700680272]
[]
["Decision Making: Applications subject to"]
["Planning/Legal Agreements",0,null,"-"]
["Local Reviews",3,null,11.857142857142858,null,null,null,null,null,"Check local review totals"]
[null,null,null,null,null,null,null,null,null,"OK"]
["Decision Making: Local Reviews and Appeals"]
[]
[null,"Total number of decisions","Original decision upheld (%)"]
["Local Reviews",3,0.33333333333333331]
["Appeals to Scottish Ministers2",1,0]
[]
["Enforcement Activity"]
[]
[null,"Number"]
["Cases Taken Up",1]
["Notices Served",1]
["Reports to Procurator Fiscal",0]
["Prosecutions",0]
["Number of breaches resolved",0]
["Approved and Delegated"]
[]
["Percentage Approved",0.978494623655914,null,null,null,null,null,null,"Approved",91,93,"Total Applications less N17"]
["Percentage Delegated",0.95918367346938771,null,null,null,null,null,null,"Delegated",94,98,"Total Applications"]
[null,null,null,null,null,null,null,null,null,null,111,"applications received"]
["1. For a full description of the categories in this analysis please see NOTES page."]
["2. Cases where the decision was recalled and made by Ministers are not included in these figures."]
["3. Time has been removed from the decision time for 30 applications where delays were outwith the control of the local authority."]

{"sheet":"Perth and Kinross","index":34,"n_rows":77,"n_cols":14,"rows_kept":77,"cut":false,"hidden":false,"merged":[[79,0,80,3],[76,0,77,3],[2,5,2,7],[0,8,0,12],[61,0,61,3],[1,8,1,12]]}
["Planning Authority Performance Statistics1,3",null,null,"Perth and Kinross",null,null,null,null,"For Scottish Government Use during analysis\nPlease do not delete or move these columns"]
[null,null,null,"2018/19 Q4",null,null,null,null,"Check total number of applications"]
[null,null,null,"All Applications excluding Legacy Cases",null,null,null,null,null,360,"total apps",null,"OK",360]
[null,null,null,null,null,null,null,null,null," "]
["Processing Agreements","Total Number of Decisions","% Within Agreed Timescales"]
["TOTAL",3,1]
["Major Applications",0,"-"]
["Local Applications",3,1]
["EIA  Applications",0,"-"]
["Other Applications",0,"-"]
["Applications with processing agreements are not included in the following figures."]
[null,"Total Number of Decisions","Proportion of Decisions","Average Time (Weeks)",null,null,null,null,null,"check sums to total"]
["All Major Developments",1,null,15.142857142857142,null,null,null,null,null,"OK","OK",{"$error":"#VALUE!"}]
["Without Legal Agreement",1,1,15.142857142857142]
["With Legal Agreement",0,0,"-"]
[null,null,null,null,null,null,null,null,null,"OK"]
["All Local Developments",288,null,7.9107142857142856,null,null,null,null,null,"OK","OK","OK"]
["Without Legal Agreement",286,0.99305555555555558,7.8821178821178819]
["With Legal Agreement",2,6.9444444444444441E-3,12]
["Local: less than 2 months",225,0.78125,6.4977777777777774,null,null,null,null,null,"OK","OK","OK"]
["Local: more than 2 months",63,0.21875,12.956916099773242]
[]
["All Local developments (non-householder)",180,null,8.6198412698412703,null,null,null,null,null,"OK","OK","OK"]
["Local: less than 2 months",126,0.7,6.5657596371882088]
["Local: more than 2 months",54,0.3,13.412698412698413]
[]
["Householder developments",108,null,6.7288359788359795,null,null,null,null,null,"OK","OK","OK"]
["Local: less than 2 months",99,0.91666666666666663,6.4112554112554108]
["Local: more than 2 months",9,8.3333333333333329E-2,10.222222222222223]
[]
["Housing Developments - Major",1,null,15.142857142857142]
[]
["Housing Developments - Local",80,null,8.4821428571428577,null,null,null,null,null,"OK","OK","OK"]
["Local: less than 2 months",52,0.65,6.5054945054945055]
["Local: more than 2 months",28,0.35,12.153061224489795]
[]
["Business & Industry - Major",0,null,"-"]
[]
["Business & Industry - Local",21,null,8.2448979591836729,null,null,null,null,null,"OK","OK","OK"]
["Local: less than 2 months",17,0.80952380952380953,6.6638655462184877]
["Local: more than 2 months",4,0.19047619047619047,14.964285714285714]
[]
["Other developments - Major",0,null,"-",null,null,null,null,null," "]
[]
["Other developments - Local",70,null,8.66938775510204,null,null,null,null,null,"OK","OK","OK"]
["Local: less than 2 months",50,0.7142857142857143,6.5685714285714285]
["Local: more than 2 months",20,0.2857142857142857,13.921428571428573]
[]
["EIA Developments",1,null,17.428571428571427]
["Other Consents",67,null,6.407249466950959]
[]
["Decision Making: Applications subject to"]
["Planning/Legal Agreements",2,null,12]
["Local Reviews",24,null,17.922619047619047,null,null,null,null,null,"Check local review totals"]
[null,null,null,null,null,null,null,null,null,"OK","OK"]
["Decision Making: Local Reviews and Appeals"]
[]
[null,"Total number of decisions","Original decision upheld (%)"]
["Local Reviews",24,0.83]
["Appeals to Scottish Ministers2",6,0.16700000000000001]
[]
["Enforcement Activity"]
[]
[null,"Number"]
["Cases Taken Up",85]
["Notices Served",13]
["Reports to Procurator Fiscal",0]
["Prosecutions",0]
["Number of breaches resolved",67]
["Approved and Delegated"]
[]
["Percentage Approved",0.86176470588235299,null,null,null,null,null,null,"Approved",293,340,"Total Applications less N17"]
["Percentage Delegated",0.97499999999999998,null,null,null,null,null,null,"Delegated",351,360,"Total Applications"]
[null,null,null,null,null,null,null,null,null,null,413,"applications received"]
["1. For a full description of the categories in this analysis please see NOTES page."]
["2. Cases where the decision was recalled and made by Ministers are not included in these figures."]
["3. Time has been removed from the decision time for 14 applications where delays were outwith the control of the local authority."]

{"sheet":"Renfrewshire","index":35,"n_rows":77,"n_cols":13,"rows_kept":77,"cut":false,"hidden":false,"merged":[[79,0,80,3],[61,0,61,3],[76,0,77,3],[2,5,2,7],[0,8,0,12],[1,8,1,12]]}
["Planning Authority Performance Statistics1,3",null,null,"Renfrewshire",null,null,null,null,"For Scottish Government Use during analysis\nPlease do not delete or move these columns"]
[null,null,null,"2018/19 Q4",null,null,null,null,"Check total number of applications"]
[null,null,null,"All Applications excluding Legacy Cases",null,null,null,null,null,163,"total apps",null,"OK"]
[null,null,null,null,null,null,null,null,null," "]
["Processing Agreements","Total Number of Decisions","% Within Agreed Timescales"]
["TOTAL",2,1]
["Major Applications",1,1]
["Local Applications",1,1]
["EIA  Applications",0,"-"]
["Other Applications",0,"-"]
["Applications with processing agreements are not included in the following figures."]
[null,"Total Number of Decisions","Proportion of Decisions","Average Time (Weeks)",null,null,null,null,null,"check sums to total"]
["All Major Developments",2,null,31.428571428571427,null,null,null,null,null,"OK","OK",{"$error":"#VALUE!"}]
["Without Legal Agreement",2,1,31.428571428571427]
["With Legal Agreement",0,0,"-"]
[null,null,null,null,null,null,null,null,null,"OK"]
["All Local Developments",128,null,7.3381696428571432,null,null,null,null,null,"OK","OK",{"$error":"#VALUE!"}]
["Without Legal Agreement",128,1,7.3381696428571432]
["With Legal Agreement",0,0,"-"]
["Local: less than 2 months",110,0.859375,6.4623376623376618,null,null,null,null,null,"OK","OK","OK"]
["Local: more than 2 months",18,0.140625,12.69047619047619]
[]
["All Local developments (non-householder)",54,null,8.2301587301587311,null,null,null,null,null,"OK","OK","OK"]
["Local: less than 2 months",37,0.68518518518518523,6.0772200772200771]
["Local: more than 2 months",17,0.31481481481481483,12.91596638655462]
[]
["Householder developments",74,null,6.6872586872586881,null,null,null,null,null,"OK","OK","OK"]
["Local: less than 2 months",73,0.98648648648648651,6.6575342465753424]
["Local: more than 2 months",1,1.3513513513513514E-2,8.8571428571428577]
[]
["Housing Developments - Major",1,null,41]
[]
["Housing Developments - Local",12,null,9.7738095238095237,null,null,null,null,null,"OK","OK","OK"]
["Local: less than 2 months",4,0.33333333333333331,5.5714285714285712]
["Local: more than 2 months",8,0.66666666666666663,11.875]
[]
["Business & Industry - Major",1,null,21.857142857142858]
[]
["Business & Industry - Local",6,null,8.9761904761904763,null,null,null,null,null,"OK","OK","OK"]
["Local: less than 2 months",4,0.66666666666666663,5.8214285714285712]
["Local: more than 2 months",2,0.33333333333333331,15.285714285714286]
[]
["Other developments - Major",0,null,"-",null,null,null,null,null," "]
[]
["Other developments - Local",33,null,7.6363636363636358,null,null,null,null,null,"OK","OK","OK"]
["Local: less than 2 months",27,0.81818181818181823,6.28042328042328]
["Local: more than 2 months",6,0.18181818181818182,13.738095238095239]
[]
["EIA Developments",0,null,"-"]
["Other Consents",31,null,6.3087557603686637]
[]
["Decision Making: Applications subject to"]
["Planning/Legal Agreements",0,null,"-"]
["Local Reviews",2,null,8.3571428571428577,null,null,null,null,null,"Check local review totals"]
[null,null,null,null,null,null,null,null,null,"OK"]
["Decision Making: Local Reviews and Appeals"]
[]
[null,"Total number of decisions","Original decision upheld (%)"]
["Local Reviews",2,1]
["Appeals to Scottish Ministers2",0,"-"]
[]
["Enforcement Activity"]
[]
[null,"Number"]
["Cases Taken Up",1]
["Notices Served",0]
["Reports to Procurator Fiscal",0]
["Prosecutions",0]
["Number of breaches resolved",0]
["Approved and Delegated"]
[]
["Percentage Approved",0.96835443037974689,null,null,null,null,null,null,"Approved",153,158,"Total Applications less N17"]
["Percentage Delegated",0.96932515337423308,null,null,null,null,null,null,"Delegated",158,163,"Total Applications"]
[null,null,null,null,null,null,null,null,null,null,224,"applications received"]
["1. For a full description of the categories in this analysis please see NOTES page."]
["2. Cases where the decision was recalled and made by Ministers are not included in these figures."]
["3. Time has been removed from the decision time for 31 applications where delays were outwith the control of the local authority."]

{"sheet":"Scottish Borders","index":36,"n_rows":77,"n_cols":13,"rows_kept":77,"cut":false,"hidden":false,"merged":[[79,0,80,3],[61,0,61,3],[2,5,2,7],[0,8,0,12],[76,0,77,3],[1,8,1,12]]}
["Planning Authority Performance Statistics1,3",null,null,"Scottish Borders",null,null,null,null,"For Scottish Government Use during analysis\nPlease do not delete or move these columns"]
[null,null,null,"2018/19 Q4",null,null,null,null,"Check total number of applications"]
[null,null,null,"All Applications excluding Legacy Cases",null,null,null,null,null,310,"total apps",null,"OK"]
[null,null,null,null,null,null,null,null,null," "]
["Processing Agreements","Total Number of Decisions","% Within Agreed Timescales"]
["TOTAL",98,0.86734693877551017]
["Major Applications",2,1]
["Local Applications",84,0.86904761904761907]
["EIA  Applications",0,0]
["Other Applications",12,0.83333333333333337]
["Applications with processing agreements are not included in the following figures."]
[null,"Total Number of Decisions","Proportion of Decisions","Average Time (Weeks)",null,null,null,null,null,"check sums to total"]
["All Major Developments",1,null,15.428571428571429,null,null,null,null,null,"OK","OK",{"$error":"#VALUE!"}]
["Without Legal Agreement",1,1,15.428571428571429]
["With Legal Agreement",0,0,"-"]
[null,null,null,null,null,null,null,null,null,"OK"]
["All Local Developments",172,null,9.3654485049833891,null,null,null,null,null,"OK","OK","OK"]
["Without Legal Agreement",170,0.98837209302325579,8.6605042016806717]
["With Legal Agreement",2,1.1627906976744186E-2,69.285714285714292]
["Local: less than 2 months",122,0.70930232558139539,6.5316159250585475,null,null,null,null,null,"OK","OK","OK"]
["Local: more than 2 months",50,0.29069767441860467,16.279999999999998]
[]
["All Local developments (non-householder)",75,null,11.19047619047619,null,null,null,null,null,"OK","OK","OK"]
["Local: less than 2 months",48,0.64,6.7678571428571432]
["Local: more than 2 months",27,0.36,19.052910052910054]
[]
["Householder developments",97,null,7.9543446244477165,null,null,null,null,null,"OK","OK","OK"]
["Local: less than 2 months",74,0.76288659793814428,6.3783783783783781]
["Local: more than 2 months",23,0.23711340206185566,13.024844720496896]
[]
["Housing Developments - Major",1,null,15.428571428571429]
[]
["Housing Developments - Local",13,null,21.571428571428573,null,null,null,null,null,"OK","OK","OK"]
["Local: less than 2 months",4,0.30769230769230771,7.25]
["Local: more than 2 months",9,0.69230769230769229,27.936507936507933]
[]
["Business & Industry - Major",0,null,"-"]
[]
["Business & Industry - Local",5,null,15.457142857142857,null,null,null,null,null,"OK","OK","OK"]
["Local: less than 2 months",1,0.2,7]
["Local: more than 2 months",4,0.8,17.571428571428573]
[]
["Other developments - Major",0,null,"-",null,null,null,null,null," "]
[]
["Other developments - Local",52,null,8.615384615384615,null,null,null,null,null,"OK","OK","OK"]
["Local: less than 2 months",38,0.73076923076923073,6.7180451127819554]
["Local: more than 2 months",14,0.26923076923076922,13.76530612244898]
[]
["EIA Developments",0,null,"-"]
["Other Consents",39,null,7.2307692307692308]
[]
["Decision Making: Applications subject to"]
["Planning/Legal Agreements",2,null,69.285714285714292]
["Local Reviews",8,null,7.4464285714285712,null,null,null,null,null,"Check local review totals"]
[null,null,null,null,null,null,null,null,null,"OK"]
["Decision Making: Local Reviews and Appeals"]
[]
[null,"Total number of decisions","Original decision upheld (%)"]
["Local Reviews",8,0.25]
["Appeals to Scottish Ministers2",1,0]
[]
["Enforcement Activity"]
[]
[null,"Number"]
["Cases Taken Up",49]
["Notices Served",3]
["Reports to Procurator Fiscal",0]
["Prosecutions",0]
["Number of breaches resolved",34]
["Approved and Delegated"]
[]
["Percentage Approved",0.96116504854368934,null,null,null,null,null,null,"Approved",297,309,"Total Applications less N17"]
["Percentage Delegated",0.967741935483871,null,null,null,null,null,null,"Delegated",300,310,"Total Applications"]
[null,null,null,null,null,null,null,null,null,null,349,"applications received"]
["1. For a full description of the categories in this analysis please see NOTES page."]
["2. Cases where the decision was recalled and made by Ministers are not included in these figures."]
["3. Time has been removed from the decision time for 3 applications where delays were outwith the control of the local authority."]

{"sheet":"Shetland Islands","index":37,"n_rows":77,"n_cols":13,"rows_kept":77,"cut":false,"hidden":false,"merged":[[2,5,2,7],[61,0,61,3],[76,0,77,3],[0,8,0,12],[1,8,1,12]]}
["Planning Authority Performance Statistics1,3",null,null,"Shetland Islands",null,null,null,null,"For Scottish Government Use during analysis\nPlease do not delete or move these columns"]
[null,null,null,"2018/19 Q4",null,null,null,null,"Check total number of applications"]
[null,null,null,"All Applications excluding Legacy Cases",null,null,null,null,null,66,"total apps",null,"OK"]
[null,null,null,null,null,null,null,null,null," "]
["Processing Agreements","Total Number of Decisions","% Within Agreed Timescales"]
["TOTAL",2,1]
["Major Applications",0,"-"]
["Local Applications",0,"-"]
["EIA  Applications",2,1]
["Other Applications",0,"-"]
["Applications with processing agreements are not included in the following figures."]
[null,"Total Number of Decisions","Proportion of Decisions","Average Time (Weeks)",null,null,null,null,null,"check sums to total"]
["All Major Developments",0,null,"-",null,null,null,null,null,"OK",{"$error":"#VALUE!"},{"$error":"#VALUE!"}]
["Without Legal Agreement",0,"-","-"]
["With Legal Agreement",0,"-","-"]
[null,null,null,null,null,null,null,null,null,"OK"]
["All Local Developments",53,null,15.024258760107816,null,null,null,null,null,"OK","OK",{"$error":"#VALUE!"}]
["Without Legal Agreement",53,1,15.024258760107816]
["With Legal Agreement",0,0,"-"]
["Local: less than 2 months",7,0.13207547169811321,6.4285714285714288,null,null,null,null,null,"OK","OK","OK"]
["Local: more than 2 months",46,0.86792452830188682,16.332298136645964]
[]
["All Local developments (non-householder)",38,null,15.398496240601503,null,null,null,null,null,"OK","OK","OK"]
["Local: less than 2 months",6,0.15789473684210525,6.5476190476190483]
["Local: more than 2 months",32,0.84210526315789469,17.058035714285715]
[]
["Householder developments",15,null,14.076190476190476,null,null,null,null,null,"OK","OK","OK"]
["Local: less than 2 months",1,6.6666666666666666E-2,5.7142857142857144]
["Local: more than 2 months",14,0.93333333333333335,14.673469387755102]
[]
["Housing Developments - Major",0,null,"-"]
[]
["Housing Developments - Local",16,null,17.267857142857142,null,null,null,null,null,"OK","OK",{"$error":"#VALUE!"}]
["Local: less than 2 months",0,0,"-"]
["Local: more than 2 months",16,1,17.267857142857142]
[]
["Business & Industry - Major",0,null,"-"]
[]
["Business & Industry - Local",5,null,15.314285714285715,null,null,null,null,null,"OK","OK",{"$error":"#VALUE!"}]
["Local: less than 2 months",0,0,"-"]
["Local: more than 2 months",5,1,15.314285714285715]
[]
["Other developments - Major",0,null,"-",null,null,null,null,null," "]
[]
["Other developments - Local",10,null,15.028571428571428,null,null,null,null,null,"OK","OK","OK"]
["Local: less than 2 months",2,0.2,5]
["Local: more than 2 months",8,0.8,17.535714285714285]
[]
["EIA Developments",0,null,"-"]
["Other Consents",11,null,10.324675324675324]
[]
["Decision Making: Applications subject to"]
["Planning/Legal Agreements",0,null,"-"]
["Local Reviews",0,null,"-",null,null,null,null,null,"Check local review totals"]
[null,null,null,null,null,null,null,null,null,"OK"]
["Decision Making: Local Reviews and Appeals"]
[]
[null,"Total number of decisions","Original decision upheld (%)"]
["Local Reviews",0,"-"]
["Appeals to Scottish Ministers2",0,"-"]
[]
["Enforcement Activity"]
[]
[null,"Number"]
["Cases Taken Up",0]
["Notices Served",0]
["Reports to Procurator Fiscal",0]
["Prosecutions",0]
["Number of breaches resolved",12]
["Approved and Delegated"]
[]
["Percentage Approved",1,null,null,null,null,null,null,"Approved",61,61,"Total Applications less N17"]
["Percentage Delegated",1,null,null,null,null,null,null,"Delegated",66,66,"Total Applications"]
[null,null,null,null,null,null,null,null,null,null,85,"applications received"]
["1. For a full description of the categories in this analysis please see NOTES page."]
["2. Cases where the decision was recalled and made by Ministers are not included in these figures."]
["3. Time has been removed from the decision time for 4 applications where delays were outwith the control of the local authority."]

{"sheet":"South Ayrshire","index":38,"n_rows":77,"n_cols":13,"rows_kept":77,"cut":false,"hidden":false,"merged":[[61,0,61,3],[2,5,2,7],[0,8,0,12],[1,8,1,12],[76,0,77,3]]}
["Planning Authority Performance Statistics1,3",null,null,"South Ayrshire",null,null,null,null,"For Scottish Government Use during analysis\nPlease do not delete or move these columns"]
[null,null,null,"2018/19 Q4",null,null,null,null,"Check total number of applications"]
[null,null,null,"All Applications excluding Legacy Cases",null,null,null,null,null,168,"total apps",null,"OK"]
[null,null,null,null,null,null,null,null,null," "]
["Processing Agreements","Total Number of Decisions","% Within Agreed Timescales"]
["TOTAL",6,1]
["Major Applications",5,1]
["Local Applications",1,1]
["EIA  Applications",0,"-"]
["Other Applications",0,"-"]
["Applications with processing agreements are not included in the following figures."]
[null,"Total Number of Decisions","Proportion of Decisions","Average Time (Weeks)",null,null,null,null,null,"check sums to total"]
["All Major Developments",0,null,"-",null,null,null,null,null,"OK",{"$error":"#VALUE!"},{"$error":"#VALUE!"}]
["Without Legal Agreement",0,"-","-"]
["With Legal Agreement",0,"-","-"]
[null,null,null,null,null,null,null,null,null,"OK"]
["All Local Developments",115,null,7.1888198757763977,null,null,null,null,null,"OK","OK",{"$error":"#VALUE!"}]
["Without Legal Agreement",115,1,7.1888198757763977]
["With Legal Agreement",0,0,"-"]
["Local: less than 2 months",102,0.88695652173913042,6.4845938375350141,null,null,null,null,null,"OK","OK","OK"]
["Local: more than 2 months",13,0.11304347826086956,12.714285714285714]
[]
["All Local developments (non-householder)",70,null,7.426530612244898,null,null,null,null,null,"OK","OK","OK"]
["Local: less than 2 months",60,0.8571428571428571,6.3904761904761909]
["Local: more than 2 months",10,0.14285714285714285,13.642857142857142]
[]
["Householder developments",45,null,6.8190476190476188,null,null,null,null,null,"OK","OK","OK"]
["Local: less than 2 months",42,0.93333333333333335,6.6190476190476195]
["Local: more than 2 months",3,6.6666666666666666E-2,9.6190476190476186]
[]
["Housing Developments - Major",0,null,"-"]
[]
["Housing Developments - Local",31,null,7.4930875576036868,null,null,null,null,null,"OK","OK","OK"]
["Local: less than 2 months",27,0.87096774193548387,6.1693121693121693]
["Local: more than 2 months",4,0.12903225806451613,16.428571428571427]
[]
["Business & Industry - Major",0,null,"-"]
[]
["Business & Industry - Local",2,null,6.5714285714285712,null,null,null,null,null,"OK","OK",{"$error":"#VALUE!"}]
["Local: less than 2 months",2,1,6.5714285714285712]
["Local: more than 2 months",0,0,"-"]
[]
["Other developments - Major",0,null,"-",null,null,null,null,null," "]
[]
["Other developments - Local",36,null,7.4007936507936511,null,null,null,null,null,"OK","OK","OK"]
["Local: less than 2 months",30,0.83333333333333337,6.5238095238095237]
["Local: more than 2 months",6,0.16666666666666666,11.785714285714286]
[]
["EIA Developments",0,null,"-"]
["Other Consents",47,null,4.8844984802431606]
[]
["Decision Making: Applications subject to"]
["Planning/Legal Agreements",0,null,"-"]
["Local Reviews",10,null,18.242857142857144,null,null,null,null,null,"Check local review totals"]
[null,null,null,null,null,null,null,null,null,"OK"]
["Decision Making: Local Reviews and Appeals"]
[]
[null,"Total number of decisions","Original decision upheld (%)"]
["Local Reviews",10,0.4]
["Appeals to Scottish Ministers2",2,0.5]
[]
["Enforcement Activity"]
[]
[null,"Number"]
["Cases Taken Up",62]
["Notices Served",5]
["Reports to Procurator Fiscal",0]
["Prosecutions",0]
["Number of breaches resolved",52]
["Approved and Delegated"]
[]
["Percentage Approved",0.89261744966442957,null,null,null,null,null,null,"Approved",133,149,"Total Applications less N17"]
["Percentage Delegated",0.9285714285714286,null,null,null,null,null,null,"Delegated",156,168,"Total Applications"]
[null,null,null,null,null,null,null,null,null,null,201,"applications received"]
["1. For a full description of the categories in this analysis please see NOTES page."]
["2. Cases where the decision was recalled and made by Ministers are not included in these figures."]
["3. Time has been removed from the decision time for 2 applications where delays were outwith the control of the local authority."]

{"sheet":"South Lanarkshire","index":39,"n_rows":77,"n_cols":13,"rows_kept":77,"cut":false,"hidden":false,"merged":[[61,0,61,3],[76,0,77,3],[2,5,2,7],[0,8,0,12],[1,8,1,12]]}
["Planning Authority Performance Statistics1,3",null,null,"South Lanarkshire",null,null,null,null,"For Scottish Government Use during analysis\nPlease do not delete or move these columns"]
[null,null,null,"2018/19 Q4",null,null,null,null,"Check total number of applications"]
[null,null,null,"All Applications excluding Legacy Cases",null,null,null,null,null,367,"total apps",null,"OK"]
[null,null,null,null,null,null,null,null,null," "]
["Processing Agreements","Total Number of Decisions","% Within Agreed Timescales"]
["TOTAL",0,"-"]
["Major Applications",0,"-"]
["Local Applications",0,"-"]
["EIA  Applications",0,"-"]
["Other Applications",0,"-"]
["Applications with processing agreements are not included in the following figures."]
[null,"Total Number of Decisions","Proportion of Decisions","Average Time (Weeks)",null,null,null,null,null,"check sums to total"]
["All Major Developments",3,null,58.142857142857146,null,null,null,null,null,"OK","OK","OK"]
["Without Legal Agreement",2,0.66666666666666663,38.428571428571431]
["With Legal Agreement",1,0.33333333333333331,97.571428571428569]
[null,null,null,null,null,null,null,null,null,"OK"]
["All Local Developments",309,null,10.39204808136847,null,null,null,null,null,"OK","OK","OK"]
["Without Legal Agreement",306,0.99029126213592233,10.07563025210084]
["With Legal Agreement",3,9.7087378640776691E-3,42.666666666666671]
["Local: less than 2 months",167,0.54045307443365698,5.588537211291702,null,null,null,null,null,"OK","OK","OK"]
["Local: more than 2 months",142,0.45954692556634302,16.041247484909455]
[]
["All Local developments (non-householder)",138,null,13.80745341614907,null,null,null,null,null,"OK","OK","OK"]
["Local: less than 2 months",48,0.34782608695652173,6.2410714285714288]
["Local: more than 2 months",90,0.65217391304347827,17.842857142857145]
[]
["Householder developments",171,null,7.6357560568086882,null,null,null,null,null,"OK","OK","OK"]
["Local: less than 2 months",119,0.69590643274853803,5.3253301320528212]
["Local: more than 2 months",52,0.30409356725146197,12.923076923076923]
[]
["Housing Developments - Major",2,null,38.428571428571431]
[]
["Housing Developments - Local",70,null,13.093877551020409,null,null,null,null,null,"OK","OK","OK"]
["Local: less than 2 months",26,0.37142857142857144,6.1208791208791213]
["Local: more than 2 months",44,0.62857142857142856,17.214285714285715]
[]
["Business & Industry - Major",0,null,"-"]
[]
["Business & Industry - Local",13,null,13.835164835164834,null,null,null,null,null,"OK","OK","OK"]
["Local: less than 2 months",3,0.23076923076923078,7.3809523809523805]
["Local: more than 2 months",10,0.76923076923076927,15.771428571428572]
[]
["Other developments - Major",0,null,"-",null,null,null,null,null," "]
[]
["Other developments - Local",50,null,12.757142857142856,null,null,null,null,null,"OK","OK","OK"]
["Local: less than 2 months",19,0.38,6.2255639097744364]
["Local: more than 2 months",31,0.62,16.76036866359447]
[]
["EIA Developments",0,null,"-"]
["Other Consents",55,null,10.137662337662338]
[]
["Decision Making: Applications subject to"]
["Planning/Legal Agreements",4,null,56.392857142857146]
["Local Reviews",2,null,10.928571428571429,null,null,null,null,null,"Check local review totals"]
[null,null,null,null,null,null,null,null,null,"OK"]
["Decision Making: Local Reviews and Appeals"]
[]
[null,"Total number of decisions","Original decision upheld (%)"]
["Local Reviews",2,1]
["Appeals to Scottish Ministers2",1,1]
[]
["Enforcement Activity"]
[]
[null,"Number"]
["Cases Taken Up",7]
["Notices Served",5]
["Reports to Procurator Fiscal",0]
["Prosecutions",0]
["Number of breaches resolved",7]
["Approved and Delegated"]
[]
["Percentage Approved",0.98016997167138808,null,null,null,null,null,null,"Approved",346,353,"Total Applications less N17"]
["Percentage Delegated",0.94550408719346046,null,null,null,null,null,null,"Delegated",347,367,"Total Applications"]
[null,null,null,null,null,null,null,null,null,null,438,"applications received"]
["1. For a full description of the categories in this analysis please see NOTES page."]
["2. Cases where the decision was recalled and made by Ministers are not included in these figures."]
["3. Time has been removed from the decision time for 5 applications where delays were outwith the control of the local authority."]

{"sheet":"Stirling","index":40,"n_rows":77,"n_cols":13,"rows_kept":77,"cut":false,"hidden":false,"merged":[[79,0,80,3],[61,0,61,3],[76,0,77,3],[2,5,2,7],[0,8,0,12],[1,8,1,12]]}
["Planning Authority Performance Statistics1,3",null,null,"Stirling",null,null,null,null,"For Scottish Government Use during analysis\nPlease do not delete or move these columns"]
[null,null,null,"2018/19 Q4",null,null,null,null,"Check total number of applications"]
[null,null,null,"All Applications excluding Legacy Cases",null,null,null,null,null,150,"total apps",null,"OK"]
[null,null,null,null,null,null,null,null,null," "]
["Processing Agreements","Total Number of Decisions","% Within Agreed Timescales"]
["TOTAL",0,"-"]
["Major Applications",0,"-"]
["Local Applications",0,"-"]
["EIA  Applications",0,"-"]
["Other Applications",0,"-"]
["Applications with processing agreements are not included in the following figures."]
[null,"Total Number of Decisions","Proportion of Decisions","Average Time (Weeks)",null,null,null,null,null,"check sums to total"]
["All Major Developments",0,null,"-",null,null,null,null,null,"OK",{"$error":"#VALUE!"},{"$error":"#VALUE!"}]
["Without Legal Agreement",0,"-","-"]
["With Legal Agreement",0,"-","-"]
[null,null,null,null,null,null,null,null,null,"OK"]
["All Local Developments",122,null,8.3044496487119428,null,null,null,null,null,"OK","OK",{"$error":"#VALUE!"}]
["Without Legal Agreement",122,1,8.3044496487119428]
["With Legal Agreement",0,0,"-"]
["Local: less than 2 months",83,0.68032786885245899,5.6041308089500861,null,null,null,null,null,"OK","OK","OK"]
["Local: more than 2 months",39,0.31967213114754101,14.051282051282053]
[]
["All Local developments (non-householder)",65,null,10.549450549450549,null,null,null,null,null,"OK","OK","OK"]
["Local: less than 2 months",31,0.47692307692307695,6.1474654377880187]
["Local: more than 2 months",34,0.52307692307692311,14.563025210084033]
[]
["Householder developments",57,null,5.7443609022556386,null,null,null,null,null,"OK","OK","OK"]
["Local: less than 2 months",52,0.91228070175438591,5.2802197802197801]
["Local: more than 2 months",5,8.771929824561403E-2,10.571428571428571]
[]
["Housing Developments - Major",0,null,"-"]
[]
["Housing Developments - Local",25,null,12.154285714285715,null,null,null,null,null,"OK","OK","OK"]
["Local: less than 2 months",7,0.28000000000000003,6.2448979591836737]
["Local: more than 2 months",18,0.72,14.452380952380953]
[]
["Business & Industry - Major",0,null,"-"]
[]
["Business & Industry - Local",6,null,10.333333333333332,null,null,null,null,null,"OK","OK","OK"]
["Local: less than 2 months",2,0.33333333333333331,6.1428571428571432]
["Local: more than 2 months",4,0.66666666666666663,12.428571428571429]
[]
["Other developments - Major",0,null,"-",null,null,null,null,null," "]
[]
["Other developments - Local",29,null,9.4236453201970445,null,null,null,null,null,"OK","OK","OK"]
["Local: less than 2 months",19,0.65517241379310343,6.2105263157894735]
["Local: more than 2 months",10,0.34482758620689657,15.528571428571428]
[]
["EIA Developments",0,null,"-"]
["Other Consents",28,null,7.3571428571428568]
[]
["Decision Making: Applications subject to"]
["Planning/Legal Agreements",0,null,"-"]
["Local Reviews",0,null,"-",null,null,null,null,null,"Check local review totals"]
[null,null,null,null,null,null,null,null,null,"OK"]
["Decision Making: Local Reviews and Appeals"]
[]
[null,"Total number of decisions","Original decision upheld (%)"]
["Local Reviews",0,"-"]
["Appeals to Scottish Ministers2",1,0]
[]
["Enforcement Activity"]
[]
[null,"Number"]
["Cases Taken Up",6]
["Notices Served",2]
["Reports to Procurator Fiscal",0]
["Prosecutions",0]
["Number of breaches resolved",53]
["Approved and Delegated"]
[]
["Percentage Approved",0.93006993006993011,null,null,null,null,null,null,"Approved",133,143,"Total Applications less N17"]
["Percentage Delegated",0.96,null,null,null,null,null,null,"Delegated",144,150,"Total Applications"]
[null,null,null,null,null,null,null,null,null,null,222,"applications received"]
["1. For a full description of the categories in this analysis please see NOTES page."]
["2. Cases where the decision was recalled and made by Ministers are not included in these figures."]
["3. Time has been removed from the decision time for 0 applications where delays were outwith the control of the local authority."]

{"sheet":"West Dunbartonshire","index":41,"n_rows":77,"n_cols":13,"rows_kept":77,"cut":false,"hidden":false,"merged":[[76,0,77,3],[2,5,2,7],[0,8,0,12],[61,0,61,3],[1,8,1,12]]}
["Planning Authority Performance Statistics1,3",null,null,"West Dunbartonshire",null,null,null,null,"For Scottish Government Use during analysis\nPlease do not delete or move these columns"]
[null,null,null,"2018/19 Q4",null,null,null,null,"Check total number of applications"]
[null,null,null,"All Applications excluding Legacy Cases",null,null,null,null,null,38,"total apps",null,"OK"]
[null,null,null,null,null,null,null,null,null," "]
["Processing Agreements","Total Number of Decisions","% Within Agreed Timescales"]
["TOTAL",0,"-"]
["Major Applications",0,"-"]
["Local Applications",0,"-"]
["EIA  Applications",0,"-"]
["Other Applications",0,"-"]
["Applications with processing agreements are not included in the following figures."]
[null,"Total Number of Decisions","Proportion of Decisions","Average Time (Weeks)",null,null,null,null,null,"check sums to total"]
["All Major Developments",0,null,"-",null,null,null,null,null,"OK",{"$error":"#VALUE!"},{"$error":"#VALUE!"}]
["Without Legal Agreement",0,"-","-"]
["With Legal Agreement",0,"-","-"]
[null,null,null,null,null,null,null,null,null,"OK"]
["All Local Developments",28,null,15.933673469387756,null,null,null,null,null,"OK","OK",{"$error":"#VALUE!"}]
["Without Legal Agreement",28,1,15.933673469387756]
["With Legal Agreement",0,0,"-"]
["Local: less than 2 months",6,0.21428571428571427,7.6666666666666661,null,null,null,null,null,"OK","OK","OK"]
["Local: more than 2 months",22,0.7857142857142857,18.188311688311689]
[]
["All Local developments (non-householder)",13,null,21.285714285714285,null,null,null,null,null,"OK","OK",{"$error":"#VALUE!"}]
["Local: less than 2 months",0,0,"-"]
["Local: more than 2 months",13,1,21.285714285714285]
[]
["Householder developments",15,null,11.295238095238094,null,null,null,null,null,"OK","OK","OK"]
["Local: less than 2 months",6,0.4,7.6666666666666661]
["Local: more than 2 months",9,0.6,13.714285714285714]
[]
["Housing Developments - Major",0,null,"-"]
[]
["Housing Developments - Local",3,null,22.238095238095237,null,null,null,null,null,"OK","OK",{"$error":"#VALUE!"}]
["Local: less than 2 months",0,0,"-"]
["Local: more than 2 months",3,1,22.238095238095237]
[]
["Business & Industry - Major",0,null,"-"]
[]
["Business & Industry - Local",3,null,13.761904761904761,null,null,null,null,null,"OK","OK",{"$error":"#VALUE!"}]
["Local: less than 2 months",0,0,"-"]
["Local: more than 2 months",3,1,13.761904761904761]
[]
["Other developments - Major",0,null,"-",null,null,null,null,null," "]
[]
["Other developments - Local",7,null,24.102040816326532,null,null,null,null,null,"OK","OK",{"$error":"#VALUE!"}]
["Local: less than 2 months",0,0,"-"]
["Local: more than 2 months",7,1,24.102040816326532]
[]
["EIA Developments",1,null,26.285714285714285]
["Other Consents",9,null,22]
[]
["Decision Making: Applications subject to"]
["Planning/Legal Agreements",0,null,"-"]
["Local Reviews",0,null,"-",null,null,null,null,null,"Check local review totals"]
[null,null,null,null,null,null,null,null,null,"OK"]
["Decision Making: Local Reviews and Appeals"]
[]
[null,"Total number of decisions","Original decision upheld (%)"]
["Local Reviews",0,"-"]
["Appeals to Scottish Ministers2",1,0]
[]
["Enforcement Activity"]
[]
[null,"Number"]
["Cases Taken Up",23]
["Notices Served",0]
["Reports to Procurator Fiscal",0]
["Prosecutions",0]
["Number of breaches resolved",11]
["Approved and Delegated"]
[]
["Percentage Approved",1,null,null,null,null,null,null,"Approved",37,37,"Total Applications less N17"]
["Percentage Delegated",0.92105263157894735,null,null,null,null,null,null,"Delegated",35,38,"Total Applications"]
[null,null,null,null,null,null,null,null,null,null,57,"applications received"]
["1. For a full description of the categories in this analysis please see NOTES page."]
["2. Cases where the decision was recalled and made by Ministers are not included in these figures."]
["3. Time has been removed from the decision time for 14 applications where delays were outwith the control of the local authority."]

{"sheet":"West Lothian","index":42,"n_rows":77,"n_cols":13,"rows_kept":77,"cut":false,"hidden":false,"merged":[[76,0,77,3],[2,5,2,7],[0,8,0,12],[61,0,61,3],[1,8,1,12]]}
["Planning Authority Performance Statistics1,3",null,null,"West Lothian",null,null,null,null,"For Scottish Government Use during analysis\nPlease do not delete or move these columns"]
[null,null,null,"2018/19 Q4",null,null,null,null,"Check total number of applications"]
[null,null,null,"All Applications excluding Legacy Cases",null,null,null,null,null,253,"total apps",null,"OK"]
[null,null,null,null,null,null,null,null,null," "]
["Processing Agreements","Total Number of Decisions","% Within Agreed Timescales"]
["TOTAL",2,1]
["Major Applications",0,"-"]
["Local Applications",2,1]
["EIA  Applications",0,"-"]
["Other Applications",0,"-"]
["Applications with processing agreements are not included in the following figures."]
[null,"Total Number of Decisions","Proportion of Decisions","Average Time (Weeks)",null,null,null,null,null,"check sums to total"]
["All Major Developments",2,null,20.571428571428573,null,null,null,null,null,"OK","OK","OK"]
["Without Legal Agreement",1,0.5,17]
["With Legal Agreement",1,0.5,24.142857142857142]
[null,null,null,null,null,null,null,null,null,"OK"]
["All Local Developments",186,null,11.299539170506913,null,null,null,null,null,"OK","OK","OK"]
["Without Legal Agreement",169,0.90860215053763438,8.8588334742180894]
["With Legal Agreement",17,9.1397849462365593E-2,35.563025210084035]
["Local: less than 2 months",139,0.74731182795698925,6.227132579650565,null,null,null,null,null,"OK","OK","OK"]
["Local: more than 2 months",47,0.25268817204301075,26.300911854103344]
[]
["All Local developments (non-householder)",107,null,14.256341789052069,null,null,null,null,null,"OK","OK","OK"]
["Local: less than 2 months",71,0.66355140186915884,5.9295774647887329]
["Local: more than 2 months",36,0.3364485981308411,30.678571428571427]
[]
["Householder developments",79,null,7.2947558770343575,null,null,null,null,null,"OK","OK","OK"]
["Local: less than 2 months",68,0.86075949367088611,6.53781512605042]
["Local: more than 2 months",11,0.13924050632911392,11.974025974025974]
[]
["Housing Developments - Major",1,null,24.142857142857142]
[]
["Housing Developments - Local",26,null,27.994505494505493,null,null,null,null,null,"OK","OK","OK"]
["Local: less than 2 months",9,0.34615384615384615,5.6825396825396828]
["Local: more than 2 months",17,0.65384615384615385,39.806722689075627]
[]
["Business & Industry - Major",0,null,"-"]
[]
["Business & Industry - Local",13,null,8.0219780219780219,null,null,null,null,null,"OK","OK","OK"]
["Local: less than 2 months",10,0.76923076923076927,6.5428571428571427]
["Local: more than 2 months",3,0.23076923076923078,12.952380952380953]
[]
["Other developments - Major",1,null,17,null,null,null,null,null," "]
[]
["Other developments - Local",61,null,10.503512880562059,null,null,null,null,null,"OK","OK","OK"]
["Local: less than 2 months",46,0.75409836065573765,5.7577639751552789]
["Local: more than 2 months",15,0.24590163934426229,25.057142857142857]
[]
["EIA Developments",0,null,"-"]
["Other Consents",63,null,6.8843537414965983]
[]
["Decision Making: Applications subject to"]
["Planning/Legal Agreements",18,null,34.928571428571431]
["Local Reviews",5,null,7.1428571428571432,null,null,null,null,null,"Check local review totals"]
[null,null,null,null,null,null,null,null,null,"OK"]
["Decision Making: Local Reviews and Appeals"]
[]
[null,"Total number of decisions","Original decision upheld (%)"]
["Local Reviews",5,0.6]
["Appeals to Scottish Ministers2",0,"-"]
[]
["Enforcement Activity"]
[]
[null,"Number"]
["Cases Taken Up",114]
["Notices Served",11]
["Reports to Procurator Fiscal",0]
["Prosecutions",0]
["Number of breaches resolved",89]
["Approved and Delegated"]
[]
["Percentage Approved",0.9244444444444444,null,null,null,null,null,null,"Approved",208,225,"Total Applications less N17"]
["Percentage Delegated",0.94466403162055335,null,null,null,null,null,null,"Delegated",239,253,"Total Applications"]
[null,null,null,null,null,null,null,null,null,null,227,"applications received"]
["1. For a full description of the categories in this analysis please see NOTES page."]
["2. Cases where the decision was recalled and made by Ministers are not included in these figures."]
["3. Time has been removed from the decision time for 20 applications where delays were outwith the control of the local authority."]